Authority,Department,Spending Area,Expense Type,Posting Date,Reference,Amount,Supplier
OXFORDSHIRE CC,SOCIAL AND COMMUNITY SERVICES,CSS - BANBURY,ENTERTAINMENT EXPENSES,27/10/2023,9206464274,10.4,SPICEBALL LEISURE CENT
OXFORDSHIRE CC,CHILDREN'S & EDUCATION,WITNEY,CATERING,27/10/2023,9206464124,36.31,MCDONALDS
OXFORDSHIRE CC,SOCIAL AND COMMUNITY SERVICES,CSS - ABINGDON,CATERING PROVISIONS,27/10/2023,9206464250,11.75,B&M 515 - ABINGDON
OXFORDSHIRE CC,CHILDREN'S & EDUCATION,EYNSHAM,RESIDENTIAL ACTIVITIES,27/10/2023,9206464172,6,A AND A REMS A AND A R
OXFORDSHIRE CC,CHILDREN'S & EDUCATION,40 THE MOORS,CATERING PROVISIONS,27/10/2023,9206464194,9,SALTWAY FARM SHOP
OXFORDSHIRE CC,CHILDREN'S & EDUCATION,FAMILY SOLUTIONS PLUS NON-STAFF � SOUTH,OTHER TRANSPORT ARRANGEMENTS,27/10/2023,9206464292,9,OXFORDBUS.CO.UK
OXFORDSHIRE CC,CHILDREN'S & EDUCATION,"	LEAVING CARE NORTH",CATERING,27/10/2023,9206464334,9.65,SSP UK LTD
OXFORDSHIRE CC,SOCIAL AND COMMUNITY SERVICES,CSS - ABINGDON,CATERING PROVISIONS,27/10/2023,9206464252,81.42,TESCO STORES 2008
OXFORDSHIRE CC,CHILDREN'S & EDUCATION,FAMILY SOLUTIONS PLUS NON-STAFF - NORTH,PAYMENTS TO TRANSPORT OPERATORS,27/10/2023,9206464136,-2.6,TRAINLINE
OXFORDSHIRE CC,SOCIAL AND COMMUNITY SERVICES,CSS - BANBURY,MATERIALS,27/10/2023,9206464270,34.7,AMAZON.CO.UK H06JM58R4
OXFORDSHIRE CC,CHILDREN'S & EDUCATION,FAMILY SOLUTIONS PLUS NON-STAFF � SOUTH,PAYMENTS TO TRANSPORT OPERATORS,27/10/2023,9206464294,162.6,TRAINLINE
OXFORDSHIRE CC,CHILDREN'S & EDUCATION,"	LEAVING CARE NORTH",PAYMENTS TO TRANSPORT OPERATORS,27/10/2023,9206464336,27.82,TRAINLINE
OXFORDSHIRE CC,RESOURCES,ICT OPERATIONS & MAI,PURCHASE OF IT EQUIPMENT,27/10/2023,9206464218,57.1,AMAZON  203-6567095-30
OXFORDSHIRE CC,CHILDREN'S & EDUCATION,40 THE MOORS,CATERING PROVISIONS,27/10/2023,9206464234,33.06,SAINSBURYS S/MKTS
OXFORDSHIRE CC,CHILDREN'S & EDUCATION,PARTNERSHIP YOUTH OFFER,OTHER TRAINING COURSES AND QUALIFICATION,27/10/2023,9206464256,22.38,EB  A MENTALIZING APPR
OXFORDSHIRE CC,CHILDREN'S & EDUCATION,DIDCOT MOVE-ON HOME,CATERING,27/10/2023,9206464152,9.79,MCDONALDS
OXFORDSHIRE CC,CHILDREN'S & EDUCATION,"	LOOKED AFTER NORTH",VEHICLE FUEL,27/10/2023,9206464096,53.14,ESSO ERMONT WAY SSTN
OXFORDSHIRE CC,CORPORATE CORE,ICT OPERATIONS & MAI,MATERIALS,27/10/2023,9206464122,6.89,AMZNMKTPLACE
OXFORDSHIRE CC,CHILDREN'S & EDUCATION,FAMILY SOLUTIONS PLUS NON-STAFF - NORTH,PAYMENTS TO TRANSPORT OPERATORS,27/10/2023,9206464140,-2.6,TRAINLINE
OXFORDSHIRE CC,CHILDREN'S & EDUCATION,"	LEAVING CARE NORTH",OTHER TRANSPORT ARRANGEMENTS,27/10/2023,9206464326,1.8,ARRIVA THE SHIRES LIMI
OXFORDSHIRE CC,CHILDREN'S & EDUCATION,PAUSE PROGRAMME,CATERING PROVISIONS,27/10/2023,9206464390,1.75,SAINSBURYS S/MKTS
OXFORDSHIRE CC,CHILDREN'S & EDUCATION,FIELDWORK UASC,OTHER TRANSPORT ARRANGEMENTS,27/10/2023,9206464244,20,STGCOACH/CTYLINK
OXFORDSHIRE CC,CHILDREN'S & EDUCATION,"	LEAVING CARE NORTH",PAYMENTS TO TRANSPORT OPERATORS,27/10/2023,9206464330,7.8,GWR OXFORD SST
OXFORDSHIRE CC,CHILDREN'S & EDUCATION,40 THE MOORS,CATERING PROVISIONS,27/10/2023,9206464036,22.65,SAINSBURYS S/MKTS
OXFORDSHIRE CC,CHILDREN'S & EDUCATION,"	LOOKED AFTER NORTH",OTHER TRANSPORT ARRANGEMENTS,27/10/2023,9206464094,3,SWALE BOROUGH COUNCIL
OXFORDSHIRE CC,CHILDREN'S & EDUCATION,"	LEAVING CARE NORTH",CATERING,27/10/2023,9206464108,4.89,MCDONALDS
OXFORDSHIRE CC,SOCIAL AND COMMUNITY SERVICES,"	PUBLIC HEALTH GENERA",EDUCATIONAL AND VOCATIONAL TRAINING ,27/10/2023,9206464024,38,COURSRA 153E7R16J4P9I8
OXFORDSHIRE CC,CHILDREN'S & EDUCATION,DIDCOT MOVE-ON HOME,CATERING,27/10/2023,9206464148,8.91,MCDONALDS
OXFORDSHIRE CC,SOCIAL AND COMMUNITY SERVICES,"	MTFC",CATERING,27/10/2023,9206464128,14.05,COSTA COFFEE-HENLEY ON
OXFORDSHIRE CC,SOCIAL AND COMMUNITY SERVICES,HOLTON SITE,CATERING PROVISIONS,27/10/2023,9206463552,17.5,MILK AND MORE (RECUR
OXFORDSHIRE CC,CORPORATE CORE,INCOME TEAM,PAYMENT TO GOVERNMENT DEPARTMENTS,27/10/2023,9206463612,11,OXFORDSHIRE CC WEB1
OXFORDSHIRE CC,SHARED SERVICES,CSC SUPP & SERVICES,STATIONERY,27/10/2023,9206463634,10.49,ROBERT DYAS 136
OXFORDSHIRE CC,ENVIRONMENT AND ECONOMY,HARD FM,PREMISES REPAIRS,27/10/2023,9206463498,62.93,GENERAL BUILDING PLAST
OXFORDSHIRE CC,ENVIRONMENT AND ECONOMY,HARD FM,PREMISES REPAIRS,27/10/2023,9206463502,19.5,WICKES BANBURY
OXFORDSHIRE CC,CHILDREN'S & EDUCATION,FAMILY SOLUTIONS PLUS NON-STAFF � SOUTH,PAYMENTS TO TRANSPORT OPERATORS,27/10/2023,9206463546,-62.6,TRAINLINE
OXFORDSHIRE CC,SOCIAL AND COMMUNITY SERVICES,CSS - OXFORD,CATERING PROVISIONS,27/10/2023,9206463586,11.91,ALDI STORES 775-142
OXFORDSHIRE CC,ENVIRONMENT AND ECONOMY,HARD FM,PREMISES REPAIRS,27/10/2023,9206463492,136.82,DULUX DECORATOR CENTRE
OXFORDSHIRE CC,SOCIAL AND COMMUNITY SERVICES,UASC 16&17,VEHICLE FUEL,27/10/2023,9206463514,15.3,BP OXFORD SERVICE AREA
OXFORDSHIRE CC,SOCIAL AND COMMUNITY SERVICES,CSS BICESTER,MATERIALS,27/10/2023,9206463510,35.63,AMZNMKTPLACE
OXFORDSHIRE CC,CHILDREN'S & EDUCATION,CHILDREN IN CARE NON-STAFFING - SOUTH,OTHER TRANSPORT ARRANGEMENTS,27/10/2023,9206463540,18,ROYAL TAXIS
OXFORDSHIRE CC,ENVIRONMENT AND ECONOMY,HARD FM,PREMISES REPAIRS,27/10/2023,9206463482,50.3,WICKES OXFORD
OXFORDSHIRE CC,CHILDREN'S & EDUCATION,PAUSE PROGRAMME,CATERING PROVISIONS,27/10/2023,9206463784,9.2,COSTA THAME
OXFORDSHIRE CC,ENVIRONMENT AND ECONOMY,"	ROW MAINT",EQUIPMENT,27/10/2023,9206463820,104.32,JEWSON LTD
OXFORDSHIRE CC,CHILDREN'S & EDUCATION,THAME E&A HOME,CATERING PROVISIONS,27/10/2023,9206463836,8.4,SUMUP   KEVS ROLLS
OXFORDSHIRE CC,CHILDREN'S & EDUCATION,PAUSE PROGRAMME,CATERING PROVISIONS,27/10/2023,9206463658,5.68,LIDL GB OXFORD
OXFORDSHIRE CC,SOCIAL AND COMMUNITY SERVICES,FLEET OPERATIONS,TECHNICAL AND PROFESSIONAL CONSULTANT F,27/10/2023,9206463686,108,M P M S
OXFORDSHIRE CC,CHILDREN'S & EDUCATION,"	LOOKED AFTER CITY 2",OTHER TRANSPORT ARRANGEMENTS,27/10/2023,9206463850,2,OXFORD BUS COMPANY
OXFORDSHIRE CC,SOCIAL AND COMMUNITY SERVICES,CSS WITNEY,CATERING PROVISIONS,27/10/2023,9206463866,33.77,CO-OP GROUP 070582
OXFORDSHIRE CC,CHILDREN'S & EDUCATION,"	LEAVING CARE NORTH",HIRED AND CONTRACTED SERVICES,27/10/2023,9206463640,41.49,MAGENTA STORAGE
OXFORDSHIRE CC,CHILDREN'S & EDUCATION,"	LOOKED AFTER NORTH",OTHER TRANSPORT ARRANGEMENTS,27/10/2023,9206463670,1.3,WARWICK DC PARKING
OXFORDSHIRE CC,CORPORATE CORE,"MARKETING, COMMUNICATIONS & ENGAGEMENT",POSTAGE AND DELIVERY,27/10/2023,9206463978,150.65,SWIFT (24 HOUR) COURIE
OXFORDSHIRE CC,CHILDREN'S & EDUCATION,PAUSE PROGRAMME,OTHER TRANSPORT ARRANGEMENTS,27/10/2023,9206463654,4.5,OXFORDBUS.CO.UK
OXFORDSHIRE CC,ENVIRONMENT AND ECONOMY,"	SAMUELSON HOUSE",CATERING PROVISIONS,27/10/2023,9206463674,42.84,MILK AND MORE (RECUR
OXFORDSHIRE CC,ENVIRONMENT AND ECONOMY,MAINTENANCE STAFF,HARDWARE AND CROCKERY,27/10/2023,9206463898,73.6,HOMEBASE LTD
OXFORDSHIRE CC,SOCIAL AND COMMUNITY SERVICES,CSS - OXFORD,HARDWARE AND CROCKERY,27/10/2023,9206463890,100,HOMEBASE LTD 091
OXFORDSHIRE CC,SOCIAL AND COMMUNITY SERVICES,CSS - OXFORD,CATERING PROVISIONS,27/10/2023,9206463750,67.63,ALDI STORES 775-142
OXFORDSHIRE CC,SHARED SERVICES,CSC SUPP & SERVICES,STATIONERY,27/10/2023,9206463636,9.99,ROBERT DYAS 136
OXFORDSHIRE CC,CHILDREN'S & EDUCATION,PAUSE PROGRAMME,CATERING PROVISIONS,27/10/2023,9206463660,5.75,SAINSBURYS S/MKTS
OXFORDSHIRE CC,SOCIAL AND COMMUNITY SERVICES,FLEET OPERATIONS,CATERING PROVISIONS,27/10/2023,9206463688,20,MILK AND MORE (RECUR
OXFORDSHIRE CC,ENVIRONMENT AND ECONOMY,BANBURY LIBRARY,"NEWSPAPERS, PERIODICALS AND PUBLICATIONS",27/10/2023,9206463778,47.99,GUARDIAN NEWS & MEDIA
OXFORDSHIRE CC,CHILDREN'S & EDUCATION,DIDCOT MOVE-ON HOME,CATERING,27/10/2023,9206463796,40.62,MCDONALDS 8260535
OXFORDSHIRE CC,ENVIRONMENT AND ECONOMY,"	NAT TRAILS GENERAL",VEHICLE FUEL,27/10/2023,9206463856,48.26,SAINSBURYS PETROL
OXFORDSHIRE CC,CHILDREN'S & EDUCATION,UASC 16&17,VEHICLE FUEL,27/10/2023,9206463742,3.84,SHELL NR ULVERSTON
OXFORDSHIRE CC,CHILDREN'S & EDUCATION,THAME E&A HOME,MATERIALS,27/10/2023,9206463782,19.89,AMAZON.CO.UK H09OV36L4
OXFORDSHIRE CC,CHILDREN'S & EDUCATION,DIDCOT MOVE-ON HOME,CATERING PROVISIONS,27/10/2023,9206463798,44.5,ASDA GEORGE COM LEEDS
OXFORDSHIRE CC,CHILDREN'S & EDUCATION,THAME E&A HOME,CATERING,27/10/2023,9206463830,6.5,SUMUP   SANTAS DONUTS
OXFORDSHIRE CC,CHILDREN'S & EDUCATION,"	LOOKED AFTER CITY 2",OTHER TRANSPORT ARRANGEMENTS,27/10/2023,9206463846,2,OXFORD BUS COMPANY
OXFORDSHIRE CC,ENVIRONMENT AND ECONOMY,"	NAT TRAILS GENERAL",CATERING PROVISIONS,27/10/2023,9206463852,1,CO OPERATIVE FOOD
OXFORDSHIRE CC,ENVIRONMENT AND ECONOMY,MAINTENANCE STAFF,MATERIALS,27/10/2023,9206463896,71.92,AMZNMKTPLACE
OXFORDSHIRE CC,CUSTOMER AND CULTURE,REACTIVE MAINTENANCE,PREMISES REPAIRS,27/10/2023,9206463818,"1,433.23",WWW.SCREWFIX.COM
OXFORDSHIRE CC,CHILDREN'S & EDUCATION,THAME E&A HOME,CATERING,27/10/2023,9206463834,40.96,BURGER KING
OXFORDSHIRE CC,ENVIRONMENT AND ECONOMY,MAINTENANCE STAFF,TECHNICAL AND PROFESSIONAL CONSULTANT F,27/10/2023,9206463902,161.71,YORKSURVEY.CO.UK
OXFORDSHIRE CC,SOCIAL AND COMMUNITY SERVICES,CSS WITNEY,CATERING PROVISIONS,27/10/2023,9206463946,35.7,MILK AND MORE (RECUR
OXFORDSHIRE CC,SOCIAL AND COMMUNITY SERVICES,"	MUSEUMS COLLECTIONS",CATERING PROVISIONS,27/10/2023,9206463914,4.62,MILK AND MORE (RECUR
OXFORDSHIRE CC,CORPORATE CORE,"MARKETING, COMMUNICATIONS & ENGAGEMENT","PUBLICITY, PROMOTIONS AND ADVERTISEMENT",27/10/2023,9206463982,16.02,SNAP INC SNAP SNAP ADS
OXFORDSHIRE CC,CHILDREN'S & EDUCATION,THAME E&A HOME,ADHOC SITE ANDGROUNDS MAINTENANCE COSTS,27/10/2023,9206463936,30,HOMEBASE LTD 091
OXFORDSHIRE CC,CHILDREN'S & EDUCATION,THAME E&A HOME,CLOTHING AND UNIFORMS,27/10/2023,9206463726,24,PRIMARK 440
OXFORDSHIRE CC,ADULTS,FIELDWORK UASC,OTHER TRANSPORT ARRANGEMENTS,27/10/2023,9206463754,54.95,ZETTLE_ FEEL FIT GYM
OXFORDSHIRE CC,CHILDREN'S & EDUCATION,DIDCOT MOVE-ON HOME,ENTERTAINMENT EXPENSES,27/10/2023,9206463792,8.38,WWW.RIDGEWAYADVENTURES
OXFORDSHIRE CC,ENVIRONMENT AND ECONOMY,"	KNIGHTS COURT",OTHER TRANSPORT ARRANGEMENTS,27/10/2023,9206463824,2.2,UNION STREET CAR PARK
OXFORDSHIRE CC,CHILDREN'S & EDUCATION,THAME E&A HOME,RESIDENTIAL ACTIVITIES,27/10/2023,9206463838,30,FUNLAND AMUSEMENT PARK
OXFORDSHIRE CC,CHILDREN'S & EDUCATION,OXFORDSHIRE,CATERING PROVISIONS,27/10/2023,9206463926,14,TESCO STORES 4377
OXFORDSHIRE CC,CHILDREN'S & EDUCATION,UASC POST 18,OTHER TRANSPORT ARRANGEMENTS,27/10/2023,9206463990,58,OXFORDBUS.CO.UK
OXFORDSHIRE CC,CHILDREN'S & EDUCATION,"	LOOKED AFTER CITY 2",OTHER TRANSPORT ARRANGEMENTS,27/10/2023,9206463848,2,OXFORD BUS COMPANY
OXFORDSHIRE CC,SOCIAL AND COMMUNITY SERVICES,CSS - BANBURY,MATERIALS,27/10/2023,9206464268,33.99,AMZNMKTPLACE
OXFORDSHIRE CC,CHILDREN'S & EDUCATION,EYNSHAM,MATERIALS,27/10/2023,9206464034,7.99,TESCO SUBSCRIPTION
OXFORDSHIRE CC,CORPORATE CORE,THAME LIBRARY,CATERING PROVISIONS,27/10/2023,9206464066,5.6,SAINSBURYS S/MKTS
OXFORDSHIRE CC,CHILDREN'S & EDUCATION,"DIDCOT CC, PARK ROAD",OTHER PREMISES RELATED COSTS,27/10/2023,9206464182,149.99,ROBERT DYAS ECOM
OXFORDSHIRE CC,CHILDREN'S & EDUCATION,UASC POST 18,PRINTING,27/10/2023,9206463994,12.99,SQ  OFFICE OF CARE LEA
OXFORDSHIRE CC,SOCIAL AND COMMUNITY SERVICES,"	PUBLIC HEALTH GENERA",EDUCATIONAL AND VOCATIONAL TRAINING ,27/10/2023,9206464028,46,COURSRA 2UPUYMNLEL0SSO
OXFORDSHIRE CC,CHILDREN'S & EDUCATION,DIDCOT MOVE-ON HOME,CATERING,27/10/2023,9206464156,8,MCDONALDS
OXFORDSHIRE CC,CHILDREN'S & EDUCATION,EYNSHAM,CATERING PROVISIONS,27/10/2023,9206464174,2.3,CO-OPERATIVE FOOD
OXFORDSHIRE CC,RESOURCES,ICT OPERATIONS & MAI,IT SOFTWARE,27/10/2023,9206464214,170,MOSAIC EVENTS LTD
OXFORDSHIRE CC,CHILDREN'S & EDUCATION,FAMILY SOLUTIONS PLUS NON-STAFF � SOUTH,PAYMENTS TO TRANSPORT OPERATORS,27/10/2023,9206464158,28.32,TRAINLINE
OXFORDSHIRE CC,SOCIAL AND COMMUNITY SERVICES,CSS WANTAGE,MATERIALS,26/10/2023,9200102494,3.98,CARD FACTORY
OXFORDSHIRE CC,CHILDREN'S & EDUCATION,"	LEAVING CARE CITY 1",HOSPITALITY EXPENSES,26/10/2023,9200102586,7.3,THE PLOUGH
OXFORDSHIRE CC,ENVIRONMENT AND ECONOMY,WASTE REDUCTION GEN,"PUBLICITY, PROMOTIONS AND ADVERTISEMENT",26/10/2023,9200102546,150,NOTHING BUT FOOTPRINTS
OXFORDSHIRE CC,ENVIRONMENT AND ECONOMY,WASTE REDUCTION GEN,"PUBLICITY, PROMOTIONS AND ADVERTISEMENT",26/10/2023,9200102548,100,SUMUP   ORINOCO
OXFORDSHIRE CC,PUBLIC HEALTH,CHILDREN IN CARE NON-STAFFING - SOUTH,PAYMENT TO GOVERNMENT DEPARTMENTS,26/10/2023,9200102496,69,HM PASSPORT OFFICE
OXFORDSHIRE CC,SOCIAL AND COMMUNITY SERVICES,CSS WANTAGE,CATERING PROVISIONS,26/10/2023,9200102504,4.65,WAITROSE 675
OXFORDSHIRE CC,SHARED SERVICES,CSC - PERMITS,PURCHASE OF IT EQUIPMENT,26/10/2023,9200102574,373.82,AMZNMKTPLACE
OXFORDSHIRE CC,ENVIRONMENT AND ECONOMY,WASTE REDUCTION GEN,OTHER TRANSPORT ARRANGEMENTS,26/10/2023,9200102550,4.2,CAR PARK CHARGES
OXFORDSHIRE CC,CORPORATE CORE,INCOME TEAM,PAYMENT TO GOVERNMENT DEPARTMENTS,26/10/2023,9200102560,1.5,FIND A WILL
OXFORDSHIRE CC,CHILDREN'S & EDUCATION,PAUSE PROGRAMME,CATERING,26/10/2023,9200102642,5,CAFFE NERO OXFORD HEAD
OXFORDSHIRE CC,PUBLIC HEALTH,CHILDREN IN CARE NON-STAFFING - SOUTH,PAYMENT TO GOVERNMENT DEPARTMENTS,26/10/2023,9200102498,69,HM PASSPORT OFFICE
OXFORDSHIRE CC,CHILDREN'S & EDUCATION,EYNSHAM,CATERING,26/10/2023,9200102582,11.45,KASPA'S DESSERTS
OXFORDSHIRE CC,ENVIRONMENT AND ECONOMY,MAINTENANCE STAFF,MATERIALS,26/10/2023,9200102726,63.96,AMZNMKTPLACE
OXFORDSHIRE CC,SOCIAL AND COMMUNITY SERVICES,CSS WITNEY,MATERIALS,26/10/2023,9200102750,17.39,AMZNMKTPLACE
OXFORDSHIRE CC,CORPORATE CORE,"MARKETING, COMMUNICATIONS & ENGAGEMENT",POSTAGE AND DELIVERY,26/10/2023,9200102758,348,ROYAL MAIL GROUP LTD
OXFORDSHIRE CC,CHILDREN'S & EDUCATION,EYNSHAM,CATERING PROVISIONS,26/10/2023,9200102856,2.6,SELECTA U.K. LIMITED
OXFORDSHIRE CC,SOCIAL AND COMMUNITY SERVICES,CSS WITNEY,MATERIALS,26/10/2023,9200102734,106.4,AMZNMKTPLACE
OXFORDSHIRE CC,SOCIAL AND COMMUNITY SERVICES,CSS WITNEY,MATERIALS,26/10/2023,9200102742,29.94,AMZNMKTPLACE
OXFORDSHIRE CC,SOCIAL AND COMMUNITY SERVICES,CSS WITNEY,MATERIALS,26/10/2023,9200102736,14.38,AMAZON.CO.UK H00K85M04
OXFORDSHIRE CC,CHILDREN'S & EDUCATION,"	LOOKED AFTER CITY 2",PAYMENTS TO TRANSPORT OPERATORS,26/10/2023,9200102668,134.05,GWR OXFORD TO
OXFORDSHIRE CC,CHILDREN'S & EDUCATION,HEADINGTON LIBRARY,MATERIALS,26/10/2023,9200102706,52.98,AMZNMKTPLACE
OXFORDSHIRE CC,CHILDREN'S & EDUCATION,FAMILY SOLUTIONS PLUS NON-STAFF � SOUTH,PAYMENTS TO TRANSPORT OPERATORS,26/10/2023,9200102902,51.7,BKG HOTEL AT BOOKING.C
OXFORDSHIRE CC,CHILDREN'S & EDUCATION,"	OCCG GRANT",CATERING PROVISIONS,26/10/2023,9200102920,11.1,STARBUCKS BURFORD
OXFORDSHIRE CC,CUSTOMER AND CULTURE,HARD FM,MATERIALS,26/10/2023,9200102664,6.9,AMZNMKTPLACE
OXFORDSHIRE CC,ENVIRONMENT AND ECONOMY,"	NAT TRAILS GENERAL",VEHICLE FUEL,26/10/2023,9200102676,76.31,BP BUCKLAND CONNECT
OXFORDSHIRE CC,SOCIAL AND COMMUNITY SERVICES,CSS WITNEY,MATERIALS,26/10/2023,9200102752,69.98,AMZNMKTPLACE
OXFORDSHIRE CC,CORPORATE CORE,"MARKETING, COMMUNICATIONS & ENGAGEMENT",POSTAGE AND DELIVERY,26/10/2023,9200102760,12.24,ROYAL MAIL GROUP LTD
OXFORDSHIRE CC,ENVIRONMENT AND ECONOMY,MAINTENANCE STAFF,HARDWARE AND CROCKERY,26/10/2023,9200102730,555.41,WWW.SCREWFIX.COM
OXFORDSHIRE CC,SOCIAL AND COMMUNITY SERVICES,CSS WITNEY,MATERIALS,26/10/2023,9200102738,9.42,AMAZON.CO.UK H04KC9MA4
OXFORDSHIRE CC,SOCIAL AND COMMUNITY SERVICES,CSS - BANBURY,MATERIALS,26/10/2023,9200102896,6.96,AMZNMKTPLACE
OXFORDSHIRE CC,CHILDREN'S & EDUCATION,FAMILY SOLUTIONS PLUS NON-STAFF � SOUTH,PAYMENTS TO TRANSPORT OPERATORS,26/10/2023,9200102910,-51.7,BKG HOTEL AT BOOKING.C
OXFORDSHIRE CC,CHILDREN'S & EDUCATION,PAUSE PROGRAMME,OTHER TRANSPORT ARRANGEMENTS,26/10/2023,9200102928,1.7,SABA UK VWHDC GB5501 M
OXFORDSHIRE CC,SOCIAL AND COMMUNITY SERVICES,CSS WITNEY,MATERIALS,26/10/2023,9200102744,5.99,AMZNMKTPLACE
OXFORDSHIRE CC,SOCIAL AND COMMUNITY SERVICES,CSS WANTAGE,CATERING PROVISIONS,26/10/2023,9200102754,27.79,AMZNMKTPLACE
OXFORDSHIRE CC,CORPORATE CORE,"MARKETING, COMMUNICATIONS & ENGAGEMENT","PUBLICITY, PROMOTIONS AND ADVERTISEMENT",26/10/2023,9200102764,573.49,TIKTOK ADS
OXFORDSHIRE CC,CHILDREN'S & EDUCATION,PAUSE PROGRAMME,MATERIALS,26/10/2023,9200102932,9,TIMPSON LTD
OXFORDSHIRE CC,SOCIAL AND COMMUNITY SERVICES,CSS WITNEY,MATERIALS,26/10/2023,9200102740,9.56,AMAZON.CO.UK H055V4HH4
OXFORDSHIRE CC,SOCIAL AND COMMUNITY SERVICES,CSS BICESTER,DAY ACTIVITIES,26/10/2023,9200102542,11.98,AMZNMKTPLACE
OXFORDSHIRE CC,SOCIAL AND COMMUNITY SERVICES,CSS WITNEY,CATERING PROVISIONS,26/10/2023,9200102682,16.53,LIDL GB WITNEY
OXFORDSHIRE CC,CHILDREN'S & EDUCATION,"	OCCG GRANT",OTHER TRANSPORT ARRANGEMENTS,26/10/2023,9200102690,-120,CLR MUHAMMAD ASHFAQ
OXFORDSHIRE CC,CORPORATE CORE,"MARKETING, COMMUNICATIONS & ENGAGEMENT","PUBLICITY, PROMOTIONS AND ADVERTISEMENT",26/10/2023,9200102766,15.79,SNAP INC SNAP SNAP ADS
OXFORDSHIRE CC,CHILDREN'S & EDUCATION,PAUSE PROGRAMME,CATERING,26/10/2023,9200102936,8.55,COSTA COFFEE 43011690
OXFORDSHIRE CC,CHILDREN'S & EDUCATION,EYNSHAM,CATERING PROVISIONS,26/10/2023,9200102866,2.1,SELECTA U.K. LIMITED
OXFORDSHIRE CC,SOCIAL AND COMMUNITY SERVICES,CSS - ABINGDON,OTHER TRANSPORT ARRANGEMENTS,26/10/2023,9200102880,5,OXPENS CAR PARK
OXFORDSHIRE CC,SOCIAL AND COMMUNITY SERVICES,CSS - BANBURY,MATERIALS,26/10/2023,9200102888,7.59,AMZNMKTPLACE
OXFORDSHIRE CC,ENVIRONMENT AND ECONOMY,"	COUNTY PRINT FINSHRS",PRINTING,26/10/2023,9200102660,372.98,C.L.C PRESENTATION SYS
OXFORDSHIRE CC,CHILDREN'S & EDUCATION,HEADINGTON LIBRARY,"NEWSPAPERS, PERIODICALS AND PUBLICATIONS",26/10/2023,9200102702,85.9,NEWSTEAM GROUP
OXFORDSHIRE CC,CHILDREN'S & EDUCATION,PAUSE PROGRAMME,CATERING PROVISIONS,26/10/2023,9200102580,2.4,WM MORRISONS STORE
OXFORDSHIRE CC,CHILDREN'S & EDUCATION,"	RESIDENTIAL STRATEGY",EDUCATIONAL AND VOCATIONAL TRAINING ,26/10/2023,9200102592,89.82,PROTRAININGS
OXFORDSHIRE CC,CHILDREN'S & EDUCATION,CHILDREN IN CARE NON-STAFFING - NORTH,OTHER TRANSPORT ARRANGEMENTS,26/10/2023,9200102874,8.5,RIVERSIDE
OXFORDSHIRE CC,CHILDREN'S & EDUCATION,MANAGEMENT RECHARGES,HIRED AND CONTRACTED SERVICES,26/10/2023,9200102600,187.5,SWINDON CCRC TRUST
OXFORDSHIRE CC,CHILDREN'S & EDUCATION,THAME E&A HOME,MATERIALS,26/10/2023,9200102638,19.79,AMZNMKTPLACE
OXFORDSHIRE CC,ENTERPRISEVC,HOLDING CODE FOR REA,PREMISES REPAIRS,26/10/2023,9200102884,9.25,B & Q 1156
OXFORDSHIRE CC,SOCIAL AND COMMUNITY SERVICES,CSS - ABINGDON,MATERIALS,26/10/2023,9200102878,6.24,SCRIBBLER OXFORD
OXFORDSHIRE CC,SOCIAL AND COMMUNITY SERVICES,CSS - BANBURY,FURNITURE,26/10/2023,9200102886,16,DUNELM SOFT FURNISHIN
OXFORDSHIRE CC,SOCIAL AND COMMUNITY SERVICES,CSS WANTAGE,MATERIALS,26/10/2023,9200102490,41.94,AMZNMKTPLACE
OXFORDSHIRE CC,CHILDREN'S & EDUCATION,THAME E&A HOME,OTHER TRANSPORT ARRANGEMENTS,26/10/2023,9200102604,3.8,WESTGATE OXFORD CAR PA
OXFORDSHIRE CC,CHILDREN'S & EDUCATION,EYNSHAM,CATERING,26/10/2023,9200102500,2.2,CO-OPERATIVE FOOD
OXFORDSHIRE CC,CHILDREN'S & EDUCATION,FSP NON-STAFFING - CENTRAL,FURNITURE,26/10/2023,9200102584,339.98,SP DHAMMATEKUK
OXFORDSHIRE CC,CHILDREN'S & EDUCATION,PAUSE PROGRAMME,CATERING PROVISIONS,26/10/2023,9200102578,1.2,WM MORRISONS STORE
OXFORDSHIRE CC,CHILDREN'S & EDUCATION,EYNSHAM,OTHER TRANSPORT ARRANGEMENTS,26/10/2023,9200102868,6.1,OXPENS CAR PARK
OXFORDSHIRE CC,SOCIAL AND COMMUNITY SERVICES,CSS - ABINGDON,MATERIALS,26/10/2023,9200102882,11.31,CARD FACTORY
OXFORDSHIRE CC,SOCIAL AND COMMUNITY SERVICES,CSS - BANBURY,MATERIALS,26/10/2023,9200102892,24.33,CARD FACTORY
OXFORDSHIRE CC,CHILDREN'S & EDUCATION,THAME E&A HOME,CATERING,26/10/2023,9200102608,12.3,THE SHAKE LAB OXFORD
OXFORDSHIRE CC,CHILDREN'S & EDUCATION,KINGFISHER,CATERING,26/10/2023,9200102628,9.19,MCDONALDS
OXFORDSHIRE CC,ADULTS,FIELDWORK UASC,OTHER TRANSPORT ARRANGEMENTS,26/10/2023,9200102612,22.99,THE GYM GROUP
OXFORDSHIRE CC,SOCIAL AND COMMUNITY SERVICES,BUSINESS SUPPORT SERVICE,PURCHASE OF IT EQUIPMENT,26/10/2023,9200102634,46.98,AMZNMKTPLACE
OXFORDSHIRE CC,CHILDREN'S & EDUCATION,KINGFISHER,OTHER TRANSPORT ARRANGEMENTS,26/10/2023,9200102778,24.8,SQ  MULLDOON TAXIS
OXFORDSHIRE CC,CORPORATE CORE,,STATIONERY,26/10/2023,9200102786,4.88,LYRECO UK LTD
OXFORDSHIRE CC,SOCIAL AND COMMUNITY SERVICES,"	SHARED LIVES",CATERING PROVISIONS,26/10/2023,9200102772,65.79,TESCO STORES 2008
OXFORDSHIRE CC,CHILDREN'S & EDUCATION,KINGFISHER,CLOTHING AND UNIFORMS,26/10/2023,9200102780,38,PRIMARK 693
OXFORDSHIRE CC,CORPORATE CORE,,STATIONERY,26/10/2023,9200102792,7.61,LYRECO UK LTD
OXFORDSHIRE CC,CHILDREN'S & EDUCATION,KINGFISHER,PAYMENTS TO TRANSPORT OPERATORS,26/10/2023,9200102800,58.98,EASYJET
OXFORDSHIRE CC,CHILDREN'S & EDUCATION,FAMILY SOLUTIONS PLUS NON-STAFF - NORTH,PAYMENT TO GOVERNMENT DEPARTMENTS,26/10/2023,9200102794,-29.5,GEN REGISTER OFFICE
OXFORDSHIRE CC,CHILDREN'S & EDUCATION,"	LEAVING CARE NORTH",PAYMENTS TO TRANSPORT OPERATORS,26/10/2023,9200102802,70.7,BRIGHTON & HOVE BUSES
OXFORDSHIRE CC,CORPORATE CORE,ICT OPERATIONS & MAI,MATERIALS,26/10/2023,9200102814,29.79,AMZNMKTPLACE
OXFORDSHIRE CC,CORPORATE CORE,,STATIONERY,26/10/2023,9200102790,198.07,LYRECO UK LTD
OXFORDSHIRE CC,CHILDREN'S & EDUCATION,KINGFISHER,CATERING,26/10/2023,9200102798,9.05,GREGGS PLC
OXFORDSHIRE CC,CHILDREN'S & EDUCATION,FAMILY SOLUTIONS PLUS NON-STAFF - NORTH,PAYMENTS TO TRANSPORT OPERATORS,26/10/2023,9200102818,32.5,TRAINLINE
OXFORDSHIRE CC,CHILDREN'S & EDUCATION,"	LOOKED AFTER NORTH",OTHER TRANSPORT ARRANGEMENTS,26/10/2023,9200102812,28,SQ  ANDYCARS
OXFORDSHIRE CC,CHILDREN'S & EDUCATION,NRPF & HOMELESSNESS,HIRE OF ACCOMMODATION AND FACILITIES,26/10/2023,9200102822,194.8,TRAVELODGE
OXFORDSHIRE CC,CORPORATE CORE,ICT OPERATIONS & MAI,MATERIALS,26/10/2023,9200102816,-6.99,AMZNMKTPLACE
OXFORDSHIRE CC,CHILDREN'S & EDUCATION,EYNSHAM,CATERING PROVISIONS,26/10/2023,9200102832,36.75,HOME BARGAINS
OXFORDSHIRE CC,CHILDREN'S & EDUCATION,40 THE MOORS,HARDWARE AND CROCKERY,26/10/2023,9200102834,41.11,DULUX DECORATOR CENTRE
OXFORDSHIRE CC,SOCIAL AND COMMUNITY SERVICES,CSS WITNEY,MATERIALS,26/10/2023,9200102746,11.99,AMZNMKTPLACE
OXFORDSHIRE CC,CHILDREN'S & EDUCATION,KINGFISHER,OTHER TRANSPORT ARRANGEMENTS,26/10/2023,9200102782,47.9,SUMUP   ALL THE 5S
OXFORDSHIRE CC,CHILDREN'S & EDUCATION,UASC POST 18,PAYMENTS TO TRANSPORT OPERATORS,26/10/2023,9200102768,32.3,TRAINLINE
OXFORDSHIRE CC,CHILDREN'S & EDUCATION,KINGFISHER,IT SOFTWARE,26/10/2023,9200102776,3,WIFI: TRAVELODGE - WI
OXFORDSHIRE CC,CHILDREN'S & EDUCATION,KINGFISHER,VEHICLE FUEL,26/10/2023,9200102784,30,TESCO PFS 3920
OXFORDSHIRE CC,CORPORATE CORE,,STATIONERY,26/10/2023,9200102788,42,LYRECO UK LTD
OXFORDSHIRE CC,CHILDREN'S & EDUCATION,KINGFISHER,CATERING,26/10/2023,9200102796,32.05,ALL BAR ONE
OXFORDSHIRE CC,ENVIRONMENT AND ECONOMY,WASTE REDUCTION GEN,"PUBLICITY, PROMOTIONS AND ADVERTISEMENT",26/10/2023,9200102544,"1,501.50",SOMETHING DIFFERENT
OXFORDSHIRE CC,CHILDREN'S & EDUCATION,"	OCCG GRANT",CATERING,26/10/2023,9200102646,15.7,CO-OP GROUP FOOD
OXFORDSHIRE CC,ENVIRONMENT AND ECONOMY,HARD FM,PREMISES REPAIRS,26/10/2023,9200102518,53.17,B & Q 1062
OXFORDSHIRE CC,SOCIAL AND COMMUNITY SERVICES,UASC 16&17,MATERIALS,26/10/2023,9200102520,294.05,CYCLE KING
OXFORDSHIRE CC,CHILDREN'S & EDUCATION,FAMILY SOLUTIONS PLUS NON-STAFF � SOUTH,PAYMENTS TO TRANSPORT OPERATORS,26/10/2023,9200102534,76.52,TRAINLINE
OXFORDSHIRE CC,SOCIAL AND COMMUNITY SERVICES,CSS - BANBURY,MATERIALS,26/10/2023,9200102894,22.49,AMZNMKTPLACE
OXFORDSHIRE CC,CHILDREN'S & EDUCATION,FAMILY SOLUTIONS PLUS NON-STAFF � SOUTH,PAYMENTS TO TRANSPORT OPERATORS,26/10/2023,9200102906,57.2,BKG HOTEL AT BOOKING.C
OXFORDSHIRE CC,CHILDREN'S & EDUCATION,PAUSE PROGRAMME,CATERING,26/10/2023,9200102926,4.5,ZETTLE_ LA BAGUETTE LT
OXFORDSHIRE CC,CHILDREN'S & EDUCATION,WITNEY,CATERING PROVISIONS,26/10/2023,9200102840,17.03,LIDL GB WITNEY
OXFORDSHIRE CC,CHILDREN'S & EDUCATION,EYNSHAM,CATERING PROVISIONS,26/10/2023,9200102858,3.9,SELECTA U.K. LIMITED
OXFORDSHIRE CC,CHILDREN'S & EDUCATION,EYNSHAM,CATERING PROVISIONS,26/10/2023,9200102862,2.1,SELECTA U.K. LIMITED
OXFORDSHIRE CC,SOCIAL AND COMMUNITY SERVICES,CSS - OXFORD,CATERING PROVISIONS,26/10/2023,9200102552,52.61,ALDI STORES 775-142
OXFORDSHIRE CC,CHILDREN'S & EDUCATION,40 THE MOORS,CLEANING MATERIALS,26/10/2023,9200102562,29.98,AMZNMKTPLACE
OXFORDSHIRE CC,CHILDREN'S & EDUCATION,EYNSHAM,CATERING,26/10/2023,9200102502,1.75,CO-OPERATIVE FOOD
OXFORDSHIRE CC,SOCIAL AND COMMUNITY SERVICES,CSS - OXFORD,EQUIPMENT,26/10/2023,9200102716,22.95,AMZNMKTPLACE
OXFORDSHIRE CC,CHILDREN'S & EDUCATION,"	RIVERSIDE CENTRE",VEHICLE FUEL,26/10/2023,9200102554,106.15,SAINSBURYS PETROL
OXFORDSHIRE CC,CHILDREN'S & EDUCATION,40 THE MOORS,CLEANING MATERIALS,26/10/2023,9200102566,23.25,AMZNMKTPLACE
OXFORDSHIRE CC,CUSTOMER AND CULTURE,HARD FM,PREMISES REPAIRS,26/10/2023,9200102514,30.5,B & Q 1062
OXFORDSHIRE CC,ENVIRONMENT AND ECONOMY,FLEET COSTS,VEHICLE - HIRE CHARGES,26/10/2023,9200102524,30,OCC CIVIL ENFORCEMENT
OXFORDSHIRE CC,CHILDREN'S & EDUCATION,FAMILY SOLUTIONS PLUS NON-STAFF � SOUTH,HIRE OF ACCOMMODATION AND FACILITIES,26/10/2023,9200102538,68.32,TRAVELODGE
OXFORDSHIRE CC,CHILDREN'S & EDUCATION,EYNSHAM,SUBSCRIPTIONS,26/10/2023,9200102854,33.6,FUSION LIFESTYLE
OXFORDSHIRE CC,ENVIRONMENT AND ECONOMY,"	COUNTY HALL",OTHER PREMISES RELATED COSTS,26/10/2023,9200102722,75.89,SP DUKES VALLEY
OXFORDSHIRE CC,CHILDREN'S & EDUCATION,40 THE MOORS,CLEANING MATERIALS,26/10/2023,9200102568,16.45,AMZNMKTPLACE
OXFORDSHIRE CC,ENVIRONMENT AND ECONOMY,HARD FM,PREMISES REPAIRS,26/10/2023,9200102516,39.9,B & Q 1062
OXFORDSHIRE CC,CHILDREN'S & EDUCATION,CHILDREN IN CARE NON-STAFFING - CENTRL 2,PAYMENTS TO TRANSPORT OPERATORS,26/10/2023,9200102530,39.83,TRAINLINE
OXFORDSHIRE CC,CHILDREN'S & EDUCATION,FAMILY SOLUTIONS PLUS NON-STAFF � SOUTH,PAYMENTS TO TRANSPORT OPERATORS,26/10/2023,9200102532,76.52,TRAINLINE
OXFORDSHIRE CC,CHILDREN'S & EDUCATION,"	LOOKED AFTER CITY 2",OTHER TRANSPORT ARRANGEMENTS,26/10/2023,9200102666,2,OXFORD BUS COMPANY
OXFORDSHIRE CC,SOCIAL AND COMMUNITY SERVICES,CSS - BANBURY,MATERIALS,26/10/2023,9200102900,3.99,AMZNMKTPLACE
OXFORDSHIRE CC,SOCIAL AND COMMUNITY SERVICES,CSS WITNEY,MATERIALS,26/10/2023,9200102748,43.98,AMZNMKTPLACE
OXFORDSHIRE CC,SOCIAL AND COMMUNITY SERVICES,CSS WANTAGE,CATERING PROVISIONS,26/10/2023,9200102756,31.22,AMZNMKTPLACE
OXFORDSHIRE CC,CHILDREN'S & EDUCATION,40 THE MOORS,CATERING,25/10/2023,9194478830,118.2,SAINSBURYS.CO.UK
OXFORDSHIRE CC,SOCIAL AND COMMUNITY SERVICES,CSS WITNEY,MATERIALS,25/10/2023,9194478776,-7.78,AMZNMKTPLACE
OXFORDSHIRE CC,CORPORATE CORE,"MARKETING, COMMUNICATIONS & ENGAGEMENT","PUBLICITY, PROMOTIONS AND ADVERTISEMENT",25/10/2023,9194478810,16.24,SNAP INC SNAP SNAP ADS
OXFORDSHIRE CC,CHILDREN'S & EDUCATION,"	LEAVING CARE SOUTH",MATERIALS,25/10/2023,9194478866,20,AMAZON.CO.UK H04V88XR4
OXFORDSHIRE CC,CHILDREN'S & EDUCATION,KINGFISHER,PAYMENTS TO TRANSPORT OPERATORS,25/10/2023,9194478886,440,EASYJET
OXFORDSHIRE CC,CHILDREN'S & EDUCATION,KINGFISHER,CATERING,25/10/2023,9194478878,86.3,NOLITO ITALIAN BAR AND
OXFORDSHIRE CC,CHILDREN'S & EDUCATION,KINGFISHER,DRUGS AND MEDICAL SUPPLIES,25/10/2023,9194478896,2.3,BOOTS 2120
OXFORDSHIRE CC,CHILDREN'S & EDUCATION,"	LEAVING CARE SOUTH",MATERIALS,25/10/2023,9194478872,4,AMAZON.CO.UK H09H57XO4
OXFORDSHIRE CC,CHILDREN'S & EDUCATION,KINGFISHER,OTHER TRANSPORT ARRANGEMENTS,25/10/2023,9194478890,2,STGCOACH/CTYLINK
OXFORDSHIRE CC,CHILDREN'S & EDUCATION,FSP NON-STAFFING - CENTRAL,MATERIALS,25/10/2023,9194478856,348,M & M SKIP HIRE
OXFORDSHIRE CC,CHILDREN'S & EDUCATION,KINGFISHER,MATERIALS,25/10/2023,9194478884,8.99,WH SMITH LUTON AIRPORT
OXFORDSHIRE CC,CHILDREN'S & EDUCATION,KINGFISHER,CATERING,25/10/2023,9194478898,13,LUTON AIRPORT STARBUCK
OXFORDSHIRE CC,CHILDREN'S & EDUCATION,KINGFISHER,PAYMENTS TO TRANSPORT OPERATORS,25/10/2023,9194478904,96,EASYJET
OXFORDSHIRE CC,CHILDREN'S & EDUCATION,FAMILY SOLUTIONS PLUS NON-STAFF - NORTH,POSTAGE AND DELIVERY,25/10/2023,9194479198,24,TESCO STORES 2064
OXFORDSHIRE CC,CHILDREN'S & EDUCATION,QUALITY ASSURANCE SOUTH TEAM,PAYMENTS TO TRANSPORT OPERATORS,25/10/2023,9194479232,76.48,TRAVELODGE
OXFORDSHIRE CC,SOCIAL AND COMMUNITY SERVICES,CSS - BANBURY,CATERING PROVISIONS,25/10/2023,9194479206,25.27,AMAZON  026-7566385-15
OXFORDSHIRE CC,CHILDREN'S & EDUCATION,CSS - ABINGDON,MATERIALS,25/10/2023,9194479266,30.3,ALDI STORES
OXFORDSHIRE CC,CHILDREN'S & EDUCATION,"	LOOKED AFTER NORTH",HIRE OF ACCOMMODATION AND FACILITIES,25/10/2023,9194479190,116.26,TRAVELODGE
OXFORDSHIRE CC,CHILDREN'S & EDUCATION,QUALITY ASSURANCE SOUTH TEAM,PAYMENTS TO TRANSPORT OPERATORS,25/10/2023,9194479228,67.3,TRAVELODGE
OXFORDSHIRE CC,SOCIAL AND COMMUNITY SERVICES,CSS WITNEY,MATERIALS,25/10/2023,9194478266,14.98,AMAZON.CO.UK H098H7PU4
OXFORDSHIRE CC,SOCIAL AND COMMUNITY SERVICES,CSS WANTAGE,MATERIALS,25/10/2023,9194478276,8,THE OLD FARM SHOP
OXFORDSHIRE CC,CHILDREN'S & EDUCATION,WITNEY,HARDWARE AND CROCKERY,25/10/2023,9194478292,17,B & Q 1176
OXFORDSHIRE CC,CHILDREN'S & EDUCATION,PAUSE PROGRAMME,CATERING,25/10/2023,9194479286,9.97,MCDONALDS
OXFORDSHIRE CC,CHILDREN'S & EDUCATION,PAUSE PROGRAMME,OTHER TRANSPORT ARRANGEMENTS,25/10/2023,9194479302,4.2,RINGGO PARKING
OXFORDSHIRE CC,CHILDREN'S & EDUCATION,CSS - ABINGDON,CATERING PROVISIONS,25/10/2023,9194479272,7.6,TESCO STORES 2008
OXFORDSHIRE CC,CHILDREN'S & EDUCATION,WITNEY,MATERIALS,25/10/2023,9194478286,33.97,AMZNMKTPLACE
OXFORDSHIRE CC,CHILDREN'S & EDUCATION,PAUSE PROGRAMME,CATERING,25/10/2023,9194479292,9.7,ARTISAN CAFE
OXFORDSHIRE CC,CHILDREN'S & EDUCATION,PAUSE PROGRAMME,OTHER TRANSPORT ARRANGEMENTS,25/10/2023,9194479294,4.4,SABA UK VWHDC GB5501 M
OXFORDSHIRE CC,CHILDREN'S & EDUCATION,PAUSE PROGRAMME,OTHER TRANSPORT ARRANGEMENTS,25/10/2023,9194479296,5,OXFORD BUS COMPANY
OXFORDSHIRE CC,ENTERPRISEVC,,CAR LEASING - PRIVATE RENTALS,25/10/2023,9194479050,66.7,ENTERPRISE RENT-A-CAR
OXFORDSHIRE CC,SOCIAL AND COMMUNITY SERVICES,WALLINGFORD LIBRARY,CATERING PROVISIONS,25/10/2023,9194479074,1.55,WAITROSE 675
OXFORDSHIRE CC,CHILDREN'S & EDUCATION,KINGFISHER,PREMISES REPAIRS,25/10/2023,9194479056,24,ZETTLE_ SHAH
OXFORDSHIRE CC,ENTERPRISEVC,,CAR LEASING - PRIVATE RENTALS,25/10/2023,9194479040,90.19,ENTERPRISE RENT-A-CAR
OXFORDSHIRE CC,CHILDREN'S & EDUCATION,KINGFISHER,OTHER TRANSPORT ARRANGEMENTS,25/10/2023,9194479062,48.9,SUMUP   MAHATIR
OXFORDSHIRE CC,SOCIAL AND COMMUNITY SERVICES,"	MTFC",CATERING,25/10/2023,9194479096,37.8,TEMPTATIONS OF OXFORD
OXFORDSHIRE CC,ENTERPRISEVC,,CAR LEASING - PRIVATE RENTALS,25/10/2023,9194479044,38.06,ENTERPRISE RENT-A-CAR
OXFORDSHIRE CC,CHILDREN'S & EDUCATION,KINGFISHER,CATERING,25/10/2023,9194479066,6.6,GREGGS PLC
OXFORDSHIRE CC,CHILDREN'S & EDUCATION,FAMILY SOLUTIONS PLUS NON-STAFF - NORTH,EDUCATIONAL AND VOCATIONAL TRAINING ,25/10/2023,9194479106,6,THE KIDZ BARN
OXFORDSHIRE CC,CORPORATE CORE,THAME LIBRARY,"NEWSPAPERS, PERIODICALS AND PUBLICATIONS",25/10/2023,9194478916,5.6,SAINSBURYS S/MKTS
OXFORDSHIRE CC,ENTERPRISEVC,,CAR LEASING - PRIVATE RENTALS,25/10/2023,9194478990,111.35,ENTERPRISE RENT-A-CAR
OXFORDSHIRE CC,CORPORATE CORE,,STATIONERY,25/10/2023,9194478950,5.32,LYRECO UK LTD
OXFORDSHIRE CC,ENTERPRISEVC,,CAR LEASING - PRIVATE RENTALS,25/10/2023,9194479010,126.19,ENTERPRISE RENT-A-CAR
OXFORDSHIRE CC,CORPORATE CORE,,STATIONERY,25/10/2023,9194478978,14.33,LYRECO UK LTD
OXFORDSHIRE CC,CORPORATE CORE,,STATIONERY,25/10/2023,9194478964,124.86,LYRECO UK LTD
OXFORDSHIRE CC,ENTERPRISEVC,,CAR LEASING - PRIVATE RENTALS,25/10/2023,9194479002,119.95,ENTERPRISE RENT-A-CAR
OXFORDSHIRE CC,ENTERPRISEVC,,CAR LEASING - PRIVATE RENTALS,25/10/2023,9194479026,38.06,ENTERPRISE RENT-A-CAR
OXFORDSHIRE CC,CHILDREN'S & EDUCATION,KINGFISHER,CATERING,25/10/2023,9194478908,3.1,PRET A MANGER
OXFORDSHIRE CC,CORPORATE CORE,,STATIONERY,25/10/2023,9194478944,43.15,LYRECO UK LTD
OXFORDSHIRE CC,CORPORATE CORE,,STATIONERY,25/10/2023,9194478970,175.08,LYRECO UK LTD
OXFORDSHIRE CC,ENTERPRISEVC,,CAR LEASING - PRIVATE RENTALS,25/10/2023,9194479030,169.86,ENTERPRISE RENT-A-CAR
OXFORDSHIRE CC,ENTERPRISEVC,,CAR LEASING - PRIVATE RENTALS,25/10/2023,9194479034,48.89,ENTERPRISE RENT-A-CAR
OXFORDSHIRE CC,ENTERPRISEVC,,CAR LEASING - PRIVATE RENTALS,25/10/2023,9194479000,53,ENTERPRISE RENT-A-CAR
OXFORDSHIRE CC,ENTERPRISEVC,,CAR LEASING - PRIVATE RENTALS,25/10/2023,9194479018,189.17,ENTERPRISE RENT-A-CAR
OXFORDSHIRE CC,CHILDREN'S & EDUCATION,EYNSHAM,CATERING PROVISIONS,25/10/2023,9194478928,208.33,TESCO STORES 2008
OXFORDSHIRE CC,CORPORATE CORE,,STATIONERY,25/10/2023,9194478954,34.46,LYRECO UK LTD
OXFORDSHIRE CC,ENTERPRISEVC,,CAR LEASING - PRIVATE RENTALS,25/10/2023,9194478994,173.66,ENTERPRISE RENT-A-CAR
OXFORDSHIRE CC,ENTERPRISEVC,,CAR LEASING - PRIVATE RENTALS,25/10/2023,9194479016,165.53,ENTERPRISE RENT-A-CAR
OXFORDSHIRE CC,CORPORATE CORE,,STATIONERY,25/10/2023,9194478938,50.24,LYRECO UK LTD
OXFORDSHIRE CC,CHILDREN'S & EDUCATION,QUALITY ASSURANCE SOUTH TEAM,PAYMENTS TO TRANSPORT OPERATORS,25/10/2023,9194479222,57.1,TRAVELODGE
OXFORDSHIRE CC,CHILDREN'S & EDUCATION,"	LOOKED AFTER CITY 2",PAYMENTS TO TRANSPORT OPERATORS,25/10/2023,9194478704,15,GWR OXFORD TO
OXFORDSHIRE CC,ENVIRONMENT AND ECONOMY,"	NAT TRAILS GENERAL",CATERING PROVISIONS,25/10/2023,9194478710,0.95,CO OP GROUP FOOD
OXFORDSHIRE CC,ENVIRONMENT AND ECONOMY,"	NAT TRAILS GENERAL",CATERING PROVISIONS,25/10/2023,9194478716,4.58,CO OP GROUP FOOD
OXFORDSHIRE CC,SOCIAL AND COMMUNITY SERVICES,CSS WITNEY,HARDWARE AND CROCKERY,25/10/2023,9194478730,33,B & Q 1176
OXFORDSHIRE CC,CHILDREN'S & EDUCATION,HEADINGTON LIBRARY,MATERIALS,25/10/2023,9194478734,5.99,AMZNMKTPLACE
OXFORDSHIRE CC,CORPORATE CORE,"MARKETING, COMMUNICATIONS & ENGAGEMENT",IT SOFTWARE,25/10/2023,9194478816,167.44,ADOBE.COM
OXFORDSHIRE CC,SOCIAL AND COMMUNITY SERVICES,ABINGDON LIBRARY,EQUIPMENT,25/10/2023,9194478848,39.47,AMZNMKTPLACE
OXFORDSHIRE CC,CHILDREN'S & EDUCATION,"	PARENT PARTNERSHIP",POSTAGE AND DELIVERY,25/10/2023,9194478792,0.82,ROYAL MAIL GROUP LTD
OXFORDSHIRE CC,CORPORATE CORE,"MARKETING, COMMUNICATIONS & ENGAGEMENT","PUBLICITY, PROMOTIONS AND ADVERTISEMENT",25/10/2023,9194478820,16.26,SNAP INC SNAP SNAP ADS
OXFORDSHIRE CC,CHILDREN'S & EDUCATION,"	PARENT PARTNERSHIP",POSTAGE AND DELIVERY,25/10/2023,9194478800,119.88,ROYAL MAIL GROUP LTD
OXFORDSHIRE CC,CHILDREN'S & EDUCATION,KINGFISHER,PAYMENTS TO TRANSPORT OPERATORS,25/10/2023,9194478448,55,EASYJET
OXFORDSHIRE CC,CHILDREN'S & EDUCATION,KINGFISHER,PAYMENTS TO TRANSPORT OPERATORS,25/10/2023,9194478462,55,EASYJET
OXFORDSHIRE CC,SHARED SERVICES,CSC SUPP & SERVICES,PAYMENTS TO TRANSPORT OPERATORS,25/10/2023,9194478492,166.6,WWW.GWR.COM
OXFORDSHIRE CC,CHILDREN'S & EDUCATION,EYNSHAM,DRUGS AND MEDICAL SUPPLIES,25/10/2023,9194478522,5.99,SUPERDRUG STORES PLC
OXFORDSHIRE CC,CHILDREN'S & EDUCATION,"	LEAVING CARE CITY 2",MATERIALS,25/10/2023,9194478378,4.99,AMZNMKTPLACE
OXFORDSHIRE CC,CHILDREN'S & EDUCATION,CHILDREN IN CARE NON-STAFFING - SOUTH,OTHER TRANSPORT ARRANGEMENTS,25/10/2023,9194478384,15,CROSS STREET CARS
OXFORDSHIRE CC,ENVIRONMENT AND ECONOMY,MULTICAV,PAYMENTS TO TRANSPORT OPERATORS,25/10/2023,9194478406,151.1,CROSS COUNTRY RAIL
OXFORDSHIRE CC,CHILDREN'S & EDUCATION,CHILDREN IN CARE NON-STAFFING - SOUTH,OTHER TRANSPORT ARRANGEMENTS,25/10/2023,9194478388,15,CROSS STREET CARS
OXFORDSHIRE CC,ENVIRONMENT AND ECONOMY,"	HWAYS NETWORK MGT",TRAINING RELATED EXPENDITURE,25/10/2023,9194478410,87.36,CONSTRUCTION INDUS
OXFORDSHIRE CC,CHILDREN'S & EDUCATION,CHILDREN IN CARE NON-STAFFING - CENTRL 1,PAYMENTS TO TRANSPORT OPERATORS,25/10/2023,9194478394,64.08,TRAINLINE
OXFORDSHIRE CC,SOCIAL AND COMMUNITY SERVICES,COMMUNITY PARTNERSHIP TEAM,CATERING PROVISIONS,25/10/2023,9194478434,36.91,TESCO STORES 2413
OXFORDSHIRE CC,CHILDREN'S & EDUCATION,EYNSHAM,CATERING,25/10/2023,9194478518,17.3,THE SHAKE SHOP
OXFORDSHIRE CC,CHILDREN'S & EDUCATION,PAUSE PROGRAMME,CATERING,25/10/2023,9194478670,14.3,THE OLD FIRE STATION B
OXFORDSHIRE CC,SOCIAL AND COMMUNITY SERVICES,"	LIBRARY COLLECTIONS",MATERIALS,25/10/2023,9194478678,85.6,AMZNMKTPLACE
OXFORDSHIRE CC,CORPORATE CORE,INCOME TEAM,PAYMENT TO GOVERNMENT DEPARTMENTS,25/10/2023,9194478652,1.5,FIND A WILL
OXFORDSHIRE CC,CHILDREN'S & EDUCATION,CHILDREN IN CARE NON-STAFFING - NORTH,PAYMENTS TO TRANSPORT OPERATORS,25/10/2023,9194478686,70.91,TRAINLINE
OXFORDSHIRE CC,SOCIAL AND COMMUNITY SERVICES,FLEET OPERATIONS,ROAD FUND LICENCES AND MOTS,25/10/2023,9194478556,327.5,DVLA VEHICLE TAX
OXFORDSHIRE CC,CHILDREN'S & EDUCATION,FAMILY SOLUTIONS PLUS NON-STAFF - NORTH,CATERING PROVISIONS,25/10/2023,9194478592,20,TESCO GIFT CARD
OXFORDSHIRE CC,CHILDREN'S & EDUCATION,UASC POST 18,MATERIALS,25/10/2023,9194478534,412.95,WWW.ARGOS.CO.UK
OXFORDSHIRE CC,CHILDREN'S & EDUCATION,"	MALTFIELD HOUSE",EDUCATIONAL AND VOCATIONAL TRAINING ,25/10/2023,9194478566,29,CENTREOFEXCELLENCE
OXFORDSHIRE CC,CORPORATE CORE,PUBLIC HEALTH GENERA,OTHER TRAINING COURSES AND QUALIFICATION,25/10/2023,9194478606,216,EB  DELIVERING EFFECTI
OXFORDSHIRE CC,CHILDREN'S & EDUCATION,UASC POST 18,MATERIALS,25/10/2023,9194478530,489,CURRYS ONLINE
OXFORDSHIRE CC,CHILDREN'S & EDUCATION,THAME E&A HOME,ENTERTAINMENT EXPENSES,25/10/2023,9194478580,81.97,WWW.WOBURNSAFARI.CO.UK
OXFORDSHIRE CC,CORPORATE CORE,LIBRARY COLLECTIONS,"BOOKS, DVDS AND CDS",25/10/2023,9194478542,193.1,OVERDRIVE DIST
OXFORDSHIRE CC,CHILDREN'S & EDUCATION,THAME E&A HOME,CATERING,25/10/2023,9194478574,36.96,WOBURN SAFARI CATERING
OXFORDSHIRE CC,CORPORATE CORE,LIBRARY COLLECTIONS,"BOOKS, DVDS AND CDS",25/10/2023,9194478550,247.8,OVERDRIVE DIST
OXFORDSHIRE CC,CHILDREN'S & EDUCATION,WITNEY,CATERING PROVISIONS,25/10/2023,9194478628,12.88,TESCO STORES 2413
OXFORDSHIRE CC,CHILDREN'S & EDUCATION,40 THE MOORS,CATERING PROVISIONS,25/10/2023,9194478622,12.98,SAINSBURYS S/MKTS
OXFORDSHIRE CC,CHILDREN'S & EDUCATION,THAME E&A HOME,CATERING,25/10/2023,9194478616,6.6,THAME BP SF CONNECT
OXFORDSHIRE CC,CHILDREN'S & EDUCATION,PAUSE PROGRAMME,CATERING,25/10/2023,9194478662,10,SUMUP   MISSING BEAN L
OXFORDSHIRE CC,ENVIRONMENT AND ECONOMY,HARD FM,PREMISES REPAIRS,25/10/2023,9194478328,8.99,WWW.SCREWFIX.COM
OXFORDSHIRE CC,CHILDREN'S & EDUCATION,THAME E&A HOME,VEHICLE FUEL,25/10/2023,9194478354,24.77,ESSO THAME SERVICE ARE
OXFORDSHIRE CC,CHILDREN'S & EDUCATION,KINGFISHER,PAYMENTS TO TRANSPORT OPERATORS,25/10/2023,9194478312,39.99,WWW.HXPAYMENTS.COM
OXFORDSHIRE CC,ENVIRONMENT AND ECONOMY,HARD FM,PREMISES REPAIRS,25/10/2023,9194478338,475.51,HOWDENS - OXFORD D879
OXFORDSHIRE CC,SOCIAL AND COMMUNITY SERVICES,UASC 16&17,MATERIALS,25/10/2023,9194478368,189,HALFORDS 0853
OXFORDSHIRE CC,SOCIAL AND COMMUNITY SERVICES,CSS - ABINGDON,MATERIALS,25/10/2023,9194478318,8.95,AMAZON.CO.UK H033K6XK4
OXFORDSHIRE CC,CHILDREN'S & EDUCATION,THAME E&A HOME,CATERING,25/10/2023,9194478350,17.47,WOBURN SAFARI CATERING
OXFORDSHIRE CC,SOCIAL AND COMMUNITY SERVICES,CSS WALLINGFORD,ENTERTAINMENT EXPENSES,25/10/2023,9194478304,3,WWW.BETTER.ORG.UK
OXFORDSHIRE CC,ENVIRONMENT AND ECONOMY,HARD FM,PREMISES REPAIRS,25/10/2023,9194478330,20.56,WOLSELEY UK
OXFORDSHIRE CC,SOCIAL AND COMMUNITY SERVICES,UASC 16&17,VEHICLE FUEL,25/10/2023,9194478360,30,TESCO PAY AT PUMP 4267
OXFORDSHIRE CC,CHILDREN'S & EDUCATION,NRPF & HOMELESSNESS,HIRE OF ACCOMMODATION AND FACILITIES,25/10/2023,9194479114,172.36,TRAVELODGE
OXFORDSHIRE CC,ENVIRONMENT AND ECONOMY,HARD FM,CATERING PROVISIONS,25/10/2023,9194479148,17,SIP CARS PARKS (1) LIM
OXFORDSHIRE CC,CHILDREN'S & EDUCATION,FSP NON-STAFFING - CENTRAL,PAYMENTS TO TRANSPORT OPERATORS,25/10/2023,9194479142,35.2,WWW.GWR.COM
OXFORDSHIRE CC,RESOURCES,ICT OPERATIONS & MAI,PURCHASE OF IT EQUIPMENT,25/10/2023,9194479168,"3,245.00",AMAZON.CO.UK H06HM1PS4
OXFORDSHIRE CC,CHILDREN'S & EDUCATION,FAMILY SOLUTIONS PLUS NON-STAFF � SOUTH,MATERIALS,25/10/2023,9194479132,7.99,AMZNMKTPLACE
OXFORDSHIRE CC,SOCIAL AND COMMUNITY SERVICES,"	HISTORY SERVICE","BOOKS, DVDS AND CDS",25/10/2023,9194479156,12.53,UK.BOOKSHOP.ORG
OXFORDSHIRE CC,CHILDREN'S & EDUCATION,FAMILY SOLUTIONS PLUS NON-STAFF � SOUTH,MATERIALS,25/10/2023,9194479138,29.36,AMZNMKTPLACE
OXFORDSHIRE CC,RESOURCES,ICT OPERATIONS & MAI,PURCHASE OF IT EQUIPMENT,25/10/2023,9194479162,"3,245.00",AMAZON.CO.UK H02H70PY4
OXFORDSHIRE CC,CHILDREN'S & EDUCATION,SUPPORTED INTERNSHIPS FOR YP WITH SEND,PAYMENTS TO OTHER ESTABLISHMENTS,25/10/2023,9194479258,9.99,AMZNMKTPLACE
OXFORDSHIRE CC,CHILDREN'S & EDUCATION,QUALITY ASSURANCE SOUTH TEAM,PAYMENTS TO TRANSPORT OPERATORS,25/10/2023,9194479216,105.66,TRAINLINE
OXFORDSHIRE CC,CHILDREN'S & EDUCATION,FAMILY SOLUTIONS PLUS NON-STAFF � SOUTH,OTHER TRANSPORT ARRANGEMENTS,25/10/2023,9194479242,9,OXFORDBUS.CO.UK
OXFORDSHIRE CC,CORPORATE CORE,,STATIONERY,24/10/2023,9189837232,267.05,LYRECO UK LTD
OXFORDSHIRE CC,ENVIRONMENT AND ECONOMY,HOLDING CODE FOR REA,OTHER TRANSPORT ARRANGEMENTS,24/10/2023,9189837266,1,OCC WALLINGFORD
OXFORDSHIRE CC,CHILDREN'S & EDUCATION,FAMILY SOLUTIONS PLUS NON-STAFF - NORTH,CATERING PROVISIONS,24/10/2023,9189837274,40,TESCO STORES 2064
OXFORDSHIRE CC,CORPORATE CORE,,STATIONERY,24/10/2023,9189837220,209.95,LYRECO UK LTD
OXFORDSHIRE CC,CHILDREN'S & EDUCATION,EYNSHAM,CATERING EQUIPMENT,24/10/2023,9189837216,15,WWW.ARGOS.CO.UK
OXFORDSHIRE CC,CORPORATE CORE,THAME LIBRARY,"NEWSPAPERS, PERIODICALS AND PUBLICATIONS",24/10/2023,9189837212,5.6,SAINSBURYS S/MKTS
OXFORDSHIRE CC,CHILDREN'S & EDUCATION,CNTL EARLY HELP-RHIL,CATERING PROVISIONS,24/10/2023,9189837210,11.85,CO OPERATIVE FOOD
OXFORDSHIRE CC,CHILDREN'S & EDUCATION,"	LEAVING CARE SOUTH",PAYMENTS TO TRANSPORT OPERATORS,24/10/2023,9189837198,82.8,GWR OXFORD TO
OXFORDSHIRE CC,SOCIAL AND COMMUNITY SERVICES,BICESTER LIBRARY,EQUIPMENT,24/10/2023,9189837208,11.99,AMZNMKTPLACE
OXFORDSHIRE CC,CHILDREN'S & EDUCATION,40 THE MOORS,RESIDENTIAL ACTIVITIES,24/10/2023,9189837256,33.7,SAINSBURYS S/MKTS
OXFORDSHIRE CC,CHILDREN'S & EDUCATION,FAMILY SOLUTIONS PLUS NON-STAFF - NORTH,PAYMENTS TO TRANSPORT OPERATORS,24/10/2023,9189837248,27.4,TRAINLINE
OXFORDSHIRE CC,CHILDREN'S & EDUCATION,FAMILY SOLUTIONS PLUS NON-STAFF � SOUTH,MATERIALS,24/10/2023,9189837252,31.67,AMZNMKTPLACE
OXFORDSHIRE CC,CHILDREN'S & EDUCATION,"	LOOKED AFTER NORTH",ENTERTAINMENT EXPENSES,24/10/2023,9189837240,8.95,PARTYMAN WORLD OF PLAY
OXFORDSHIRE CC,ENVIRONMENT AND ECONOMY,HARD FM,PREMISES REPAIRS,24/10/2023,9189837098,94.36,B AND Q
OXFORDSHIRE CC,CHILDREN'S & EDUCATION,"	LEAVING CARE CITY 2",OTHER EXPENSES,24/10/2023,9189837108,12.38,AMZNMKTPLACE
OXFORDSHIRE CC,CHILDREN'S & EDUCATION,FSP NON-STAFFING - CENTRAL,CATERING PROVISIONS,24/10/2023,9189837116,2.75,TESCO STORES 4377
OXFORDSHIRE CC,SOCIAL AND COMMUNITY SERVICES,CSS BICESTER,MATERIALS,24/10/2023,9189837102,7.99,TESCO SUBSCRIPTION
OXFORDSHIRE CC,CHILDREN'S & EDUCATION,CHILDREN IN CARE NON-STAFFING - SOUTH,PAYMENTS TO TRANSPORT OPERATORS,24/10/2023,9189837110,95.06,TRAINLINE
OXFORDSHIRE CC,CHILDREN'S & EDUCATION,THAME E&A HOME,CATERING PROVISIONS,24/10/2023,9189837112,120.33,TESCO STORES 2038
OXFORDSHIRE CC,ENVIRONMENT AND ECONOMY,HARD FM,PREMISES REPAIRS,24/10/2023,9189837096,10.99,WWW.SCREWFIX.COM
OXFORDSHIRE CC,CHILDREN'S & EDUCATION,"	LEAVING CARE CITY 2",OTHER EXPENSES,24/10/2023,9189837106,23.99,AMZNMKTPLACE
OXFORDSHIRE CC,CHILDREN'S & EDUCATION,FSP NON-STAFFING - CENTRAL,CATERING PROVISIONS,24/10/2023,9189837114,4.49,TESCO STORES 2008
OXFORDSHIRE CC,CHILDREN'S & EDUCATION,"	LEAVING CARE NORTH",PROFESSIONAL SUBSCRIPTIONS,24/10/2023,9189837118,17.84,ONTOPUP.COM
OXFORDSHIRE CC,CHILDREN'S & EDUCATION,PAUSE PROGRAMME,PAYMENTS TO TRANSPORT OPERATORS,24/10/2023,9189837134,17.31,TRAINLINE
OXFORDSHIRE CC,CHILDREN'S & EDUCATION,KINGFISHER,HIRE OF ACCOMMODATION AND FACILITIES,24/10/2023,9189837120,354.92,TRAVELODGE
OXFORDSHIRE CC,CHILDREN'S & EDUCATION,PAUSE PROGRAMME,OTHER TRANSPORT ARRANGEMENTS,24/10/2023,9189837136,0.5,BRITANNIA PARKING WAIT
OXFORDSHIRE CC,CHILDREN'S & EDUCATION,KINGFISHER,PAYMENTS TO TRANSPORT OPERATORS,24/10/2023,9189837122,206.46,EASYJET
OXFORDSHIRE CC,CHILDREN'S & EDUCATION,KINGFISHER,PAYMENTS TO TRANSPORT OPERATORS,24/10/2023,9189837124,355.91,EASYJET
OXFORDSHIRE CC,CHILDREN'S & EDUCATION,PAUSE PROGRAMME,OTHER TRANSPORT ARRANGEMENTS,24/10/2023,9189837132,4.7,THAMES VALLEY BUSES
OXFORDSHIRE CC,CHILDREN'S & EDUCATION,PAUSE PROGRAMME,CATERING PROVISIONS,24/10/2023,9189837138,3.5,B&M 515 - ABINGDON
OXFORDSHIRE CC,CHILDREN'S & EDUCATION,EYNSHAM,CATERING PROVISIONS,24/10/2023,9189837140,2.49,SPAR EYNSHAM
OXFORDSHIRE CC,CHILDREN'S & EDUCATION,PAUSE PROGRAMME,OTHER TRANSPORT ARRANGEMENTS,24/10/2023,9189837294,0.5,BRITANNIA PARKING WAIT
OXFORDSHIRE CC,SOCIAL AND COMMUNITY SERVICES,BICESTER LIBRARY,CATERING,24/10/2023,9189837204,23,AMAZON.CO.UK H04IR2ER4
OXFORDSHIRE CC,SOCIAL AND COMMUNITY SERVICES,BICESTER LIBRARY,STATIONERY,24/10/2023,9189837206,5.99,AMZNMKTPLACE
OXFORDSHIRE CC,CHILDREN'S & EDUCATION,THAME E&A HOME,CATERING PROVISIONS,24/10/2023,9189837150,2.45,ASDA SUPERSTORE
OXFORDSHIRE CC,CHILDREN'S & EDUCATION,THAME E&A HOME,ENTERTAINMENT EXPENSES,24/10/2023,9189837144,43.2,EA DIGITICKETS CORAL R
OXFORDSHIRE CC,CHILDREN'S & EDUCATION,THAME E&A HOME,SUBSCRIPTIONS,24/10/2023,9189837146,9.55,EVERYONE ACTIVE
OXFORDSHIRE CC,CHILDREN'S & EDUCATION,THAME E&A HOME,CATERING PROVISIONS,24/10/2023,9189837148,7,ASDA SUPERSTORE
OXFORDSHIRE CC,CHILDREN'S & EDUCATION,VIRTUAL SCHOOL POST 16 PPP,MATERIALS,24/10/2023,9189837156,350,VOUCHER EXPRESS
OXFORDSHIRE CC,SOCIAL AND COMMUNITY SERVICES,CSS WITNEY,CATERING PROVISIONS,24/10/2023,9189837172,22.41,CO-OP GROUP 070582
OXFORDSHIRE CC,CHILDREN'S & EDUCATION,"	LEAVING CARE NORTH",CATERING PROVISIONS,24/10/2023,9189837166,60,TESCO GIFT CARD
OXFORDSHIRE CC,CHILDREN'S & EDUCATION,PAUSE PROGRAMME,OTHER TRANSPORT ARRANGEMENTS,24/10/2023,9189837162,5.6,HGH CAR PARK
OXFORDSHIRE CC,CORPORATE CORE,INCOME TEAM,PAYMENT TO GOVERNMENT DEPARTMENTS,24/10/2023,9189837170,911.75,WWW.MONEYCLAIM.GOV
OXFORDSHIRE CC,CHILDREN'S & EDUCATION,PAUSE PROGRAMME,CATERING,24/10/2023,9189837164,10.55,COSTA COFFEE 43011689
OXFORDSHIRE CC,CHILDREN'S & EDUCATION,PAUSE PROGRAMME,CATERING PROVISIONS,24/10/2023,9189837160,14.3,WM MORRISONS STORE
OXFORDSHIRE CC,CHILDREN'S & EDUCATION,CHILDREN IN CARE NON-STAFFING - NORTH,MATERIALS,24/10/2023,9189837168,-13.5,ARGOS BANBURY INSI
OXFORDSHIRE CC,SOCIAL AND COMMUNITY SERVICES,CSS BICESTER,CATERING PROVISIONS,24/10/2023,9189837100,133.34,TESCO STORES 2162
OXFORDSHIRE CC,CHILDREN'S & EDUCATION,PAUSE PROGRAMME,CATERING PROVISIONS,24/10/2023,9189837298,30.7,WAITROSE 675
OXFORDSHIRE CC,CHILDREN'S & EDUCATION,CARE LEAVERS STAFFING,CLOTHING AND UNIFORMS,24/10/2023,9189837292,139.95,NIKE GBP
OXFORDSHIRE CC,SOCIAL AND COMMUNITY SERVICES,CSS - BANBURY,MATERIALS,24/10/2023,9189837280,25.34,AMZNMKTPLACE
OXFORDSHIRE CC,CHILDREN'S & EDUCATION,PAUSE PROGRAMME,CATERING PROVISIONS,24/10/2023,9189837296,8.99,B&M 514 - DICOT
OXFORDSHIRE CC,SOCIAL AND COMMUNITY SERVICES,CSS - BANBURY,MATERIALS,24/10/2023,9189837282,-13.12,AMZNMKTPLACE
OXFORDSHIRE CC,CHILDREN'S & EDUCATION,"	OCCG GRANT",MATERIALS,24/10/2023,9189837290,9,TIMPSON LTD
OXFORDSHIRE CC,ENVIRONMENT AND ECONOMY,"	OXFORDSHIRE MUSEUM",STAFF SUBSISTENCE,24/10/2023,9189837182,99,BKG HOTEL AT BOOKING.C
OXFORDSHIRE CC,SOCIAL AND COMMUNITY SERVICES,LEADERSHIP TEAM,MATERIALS,24/10/2023,9189837190,-13.93,AMZNMKTPLACE
OXFORDSHIRE CC,SOCIAL AND COMMUNITY SERVICES,CSS WANTAGE,MATERIALS,24/10/2023,9189837184,22.99,AMZNMKTPLACE
OXFORDSHIRE CC,CHILDREN'S & EDUCATION,KIDLINGTON LIBRARY,EQUIPMENT,24/10/2023,9189837192,5,THE OXFORD SNOB
OXFORDSHIRE CC,SOCIAL AND COMMUNITY SERVICES,ABINGDON LIBRARY,"NEWSPAPERS, PERIODICALS AND PUBLICATIONS",24/10/2023,9189837194,55.99,GUARDIAN NEWS & MEDIA
OXFORDSHIRE CC,RESOURCES,LEGAL SERVICES,PURCHASE OF IT EQUIPMENT,24/10/2023,9189837180,25.56,AMAZON.CO.UK H019Q81C4
OXFORDSHIRE CC,CORPORATE CORE,"MARKETING, COMMUNICATIONS & ENGAGEMENT",MATERIALS,24/10/2023,9189837188,13.24,CREATIVE MARKET
OXFORDSHIRE CC,SOCIAL AND COMMUNITY SERVICES,ABINGDON LIBRARY,MATERIALS,24/10/2023,9189837196,3,POUNDLAND LTD - 1366
OXFORDSHIRE CC,CORPORATE CORE,"	LEGAL SERVICES",LEGAL COSTS,24/10/2023,9189837260,119.04,THAMES WATER
OXFORDSHIRE CC,ENTERPRISEVC,HOLDING CODE FOR REA,PREMISES REPAIRS,24/10/2023,9189837268,118.95,WICKES OXFORD
OXFORDSHIRE CC,SOCIAL AND COMMUNITY SERVICES,CSS - BANBURY,OTHER TRANSPORT ARRANGEMENTS,24/10/2023,9189837276,23.46,HERMES INT WL
OXFORDSHIRE CC,CHILDREN'S & EDUCATION,"	OCCG GRANT",MATERIALS,24/10/2023,9189837262,9,TIMPSON LTD
OXFORDSHIRE CC,ENTERPRISEVC,HOLDING CODE FOR REA,PREMISES REPAIRS,24/10/2023,9189837270,31.5,B AND Q
OXFORDSHIRE CC,SOCIAL AND COMMUNITY SERVICES,CSS - BANBURY,MATERIALS,24/10/2023,9189837278,9.49,AMZNMKTPLACE
OXFORDSHIRE CC,SOCIAL AND COMMUNITY SERVICES,CSS - BANBURY,CATERING PROVISIONS,24/10/2023,9189837264,146.02,SAINSBURYS.CO.UK
OXFORDSHIRE CC,CHILDREN'S & EDUCATION,BANBURY CC,CATERING PROVISIONS,24/10/2023,9189837272,5.8,TESCO STORES 2064
OXFORDSHIRE CC,CHILDREN'S & EDUCATION,WITNEY,MATERIALS,24/10/2023,9189837084,79.96,AMZNMKTPLACE
OXFORDSHIRE CC,CHILDREN'S & EDUCATION,THAME E&A HOME,DRUGS AND MEDICAL SUPPLIES,24/10/2023,9189837092,5.5,"BOOTS,THAME"
OXFORDSHIRE CC,CHILDREN'S & EDUCATION,"	LOOKED AFTER NORTH",ENTERTAINMENT EXPENSES,24/10/2023,9189837242,18.25,PARTYMAN WORLD OF PLAY
OXFORDSHIRE CC,CHILDREN'S & EDUCATION,WITNEY,MATERIALS,24/10/2023,9189837086,29.98,AMZNMKTPLACE
OXFORDSHIRE CC,CUSTOMER AND CULTURE,HARD FM,PREMISES REPAIRS,24/10/2023,9189837094,24.13,TOPPS TILES BANBUR
OXFORDSHIRE CC,CHILDREN'S & EDUCATION,WITNEY,ENTERTAINMENT EXPENSES,24/10/2023,9189837088,29,ABSOLUTELY TEN PIN
OXFORDSHIRE CC,CHILDREN'S & EDUCATION,EYNSHAM,CATERING,24/10/2023,9189837082,3.15,TESCO PFS 2488
OXFORDSHIRE CC,CHILDREN'S & EDUCATION,KINGFISHER,PAYMENTS TO TRANSPORT OPERATORS,24/10/2023,9189837090,88.85,EXPEDIA HOTELSCOM72683
OXFORDSHIRE CC,CORPORATE CORE,,STATIONERY,24/10/2023,9189837222,5.3,LYRECO UK LTD
OXFORDSHIRE CC,CHILDREN'S & EDUCATION,"	MALTFIELD HOUSE","SUPPLIES, STATIONERY AND MATERIALS",24/10/2023,9189837214,11.99,AMZNMKTPLACE
OXFORDSHIRE CC,CORPORATE CORE,,STATIONERY,24/10/2023,9189837218,244.57,LYRECO UK LTD
OXFORDSHIRE CC,CORPORATE CORE,,STATIONERY,24/10/2023,9189837226,23.46,LYRECO UK LTD
OXFORDSHIRE CC,CHILDREN'S & EDUCATION,FAMILY SOLUTIONS PLUS NON-STAFF - NORTH,HIRE OF ACCOMMODATION AND FACILITIES,24/10/2023,9189837234,-122,LEONARDO HTL PLYMOUTH
OXFORDSHIRE CC,CORPORATE CORE,,STATIONERY,24/10/2023,9189837228,72.35,LYRECO UK LTD
OXFORDSHIRE CC,CHILDREN'S & EDUCATION,"	LOOKED AFTER NORTH",VEHICLE FUEL,24/10/2023,9189837236,32.07,TESCO PFS 3878
OXFORDSHIRE CC,CORPORATE CORE,,STATIONERY,24/10/2023,9189837230,250.33,LYRECO UK LTD
OXFORDSHIRE CC,CHILDREN'S & EDUCATION,"	LOOKED AFTER NORTH",ENTERTAINMENT EXPENSES,24/10/2023,9189837238,3,PARTYMAN WORLD OF PLAY
OXFORDSHIRE CC,CORPORATE CORE,,STATIONERY,24/10/2023,9189837224,121.74,LYRECO UK LTD
OXFORDSHIRE CC,CHILDREN'S & EDUCATION,40 THE MOORS,DRUGS AND MEDICAL SUPPLIES,23/10/2023,9181609310,0.5,SAINSBURYS S/MKTS
OXFORDSHIRE CC,CHILDREN'S & EDUCATION,SWINDON,HIRED AND CONTRACTED SERVICES,23/10/2023,9181608410,70,SQ  HAPPY LITTLE FACES
OXFORDSHIRE CC,ENVIRONMENT AND ECONOMY,CAPABILITY & AMBITION FUND,EQUIPMENT,23/10/2023,9181608424,21.3,FARNELL
OXFORDSHIRE CC,CHILDREN'S & EDUCATION,PAUSE PROGRAMME,OTHER TRANSPORT ARRANGEMENTS,23/10/2023,9181608570,2,OXFORDBUS.CO.UK
OXFORDSHIRE CC,SOCIAL AND COMMUNITY SERVICES,CSS - OXFORD,CATERING PROVISIONS,23/10/2023,9181608478,73.44,ALDI STORES 775-142
OXFORDSHIRE CC,CHILDREN'S & EDUCATION,SWINDON,HIRED AND CONTRACTED SERVICES,23/10/2023,9181608414,176.28,ASDA SUPERSTORE
OXFORDSHIRE CC,CHILDREN'S & EDUCATION,CHILDREN IN CARE NON-STAFFING - SOUTH,ENTERTAINMENT EXPENSES,23/10/2023,9181608396,10.99,INFLATA PETERBOROUGH L
OXFORDSHIRE CC,SOCIAL AND COMMUNITY SERVICES,CSS - OXFORD,MATERIALS,23/10/2023,9181608482,70.77,ALDI STORES 775-142
OXFORDSHIRE CC,SOCIAL AND COMMUNITY SERVICES,CSS - ABINGDON,MATERIALS,23/10/2023,9181608358,6.99,AMZNMKTPLACE
OXFORDSHIRE CC,ENVIRONMENT AND ECONOMY,HARD FM,PREMISES REPAIRS,23/10/2023,9181608374,30.24,SCREWFIX OXFORD COWLEY
OXFORDSHIRE CC,CHILDREN'S & EDUCATION,DIDCOT MOVE-ON HOME,CATERING PROVISIONS,23/10/2023,9181609264,21.1,SAINSBURYS S/MKTS
OXFORDSHIRE CC,CHILDREN'S & EDUCATION,40 THE MOORS,MATERIALS,23/10/2023,9181609298,52.06,AMZNMKTPLACE
OXFORDSHIRE CC,CHILDREN'S & EDUCATION,FAMILY SOLUTIONS PLUS NON-STAFF - NORTH,CLOTHING AND UNIFORMS,23/10/2023,9181608592,30.99,SPORTS DIRECT
OXFORDSHIRE CC,ADULTS,PAUSE PROGRAMME,CATERING PROVISIONS,23/10/2023,9181608572,5.25,SAINSBURYS S/MKTS
OXFORDSHIRE CC,CHILDREN'S & EDUCATION,CHILDREN IN CARE NON-STAFFING - SOUTH,PAYMENTS TO TRANSPORT OPERATORS,23/10/2023,9181608394,98.02,TRAINLINE
OXFORDSHIRE CC,CHILDREN'S & EDUCATION,THAME E&A HOME,CATERING PROVISIONS,23/10/2023,9181608656,8.2,SIP CARS PARKS (1) LIM
OXFORDSHIRE CC,CHILDREN'S & EDUCATION,THAME E&A HOME,ENTERTAINMENT EXPENSES,23/10/2023,9181608658,13.13,CINEWORLD HWY CP
OXFORDSHIRE CC,CHILDREN'S & EDUCATION,"	LOOKED AFTER NORTH",VEHICLE FUEL,23/10/2023,9181609194,19.41,TESCO PFS 3878
OXFORDSHIRE CC,CHILDREN'S & EDUCATION,40 THE MOORS,HARDWARE AND CROCKERY,23/10/2023,9181609302,15.65,B & Q 1062
OXFORDSHIRE CC,CHILDREN'S & EDUCATION,THAME E&A HOME,ENTERTAINMENT EXPENSES,23/10/2023,9181608660,7.98,CINEWORLD HWY CP
OXFORDSHIRE CC,CHILDREN'S & EDUCATION,UASC 16&17,RESIDENTIAL ACTIVITIES,23/10/2023,9181608662,22.99,THE GYM GROUP
OXFORDSHIRE CC,CORPORATE CORE,"	LEGAL SERVICES",LEGAL COSTS,23/10/2023,9181609354,11,BCP COUNCIL
OXFORDSHIRE CC,CHILDREN'S & EDUCATION,ATV ADOPTION WOODLEY,HIRE OF ACCOMMODATION AND FACILITIES,23/10/2023,9181608330,232.91,PREMIER INN
OXFORDSHIRE CC,CHILDREN'S & EDUCATION,WITNEY,CATERING PROVISIONS,23/10/2023,9181608340,14.94,ALDI 41 775
OXFORDSHIRE CC,CHILDREN'S & EDUCATION,UASC 16&17,CATERING PROVISIONS,23/10/2023,9181608632,24.62,TESCO STORES 2994
OXFORDSHIRE CC,CHILDREN'S & EDUCATION,"	MALTFIELD HOUSE","SUPPLIES, STATIONERY AND MATERIALS",23/10/2023,9181609130,9.95,AMZNMKTPLACE
OXFORDSHIRE CC,CORPORATE CORE,,STATIONERY,23/10/2023,9181609150,64.2,LYRECO UK LTD
OXFORDSHIRE CC,CHILDREN'S & EDUCATION,"	MALTFIELD HOUSE","SUPPLIES, STATIONERY AND MATERIALS",23/10/2023,9181609126,15.99,AMZNMKTPLACE
OXFORDSHIRE CC,CHILDREN'S & EDUCATION,EYNSHAM,MATERIALS,23/10/2023,9181609148,19.96,AMZNMKTPLACE
OXFORDSHIRE CC,CORPORATE CORE,,STATIONERY,23/10/2023,9181609158,150.51,LYRECO UK LTD
OXFORDSHIRE CC,ENVIRONMENT AND ECONOMY,MAINTENANCE STAFF,CATERING PROVISIONS,23/10/2023,9181608906,41.75,SAINSBURY'S S/MKT
OXFORDSHIRE CC,CHILDREN'S & EDUCATION,FAMILY SOLUTIONS PLUS NON-STAFF - NORTH,CATERING PROVISIONS,23/10/2023,9181609500,1.45,ICELAND
OXFORDSHIRE CC,CHILDREN'S & EDUCATION,EYNSHAM,MATERIALS,23/10/2023,9181608728,7.99,WH SMITH WITNEY
OXFORDSHIRE CC,CHILDREN'S & EDUCATION,KINGFISHER,HOSPITALITY EXPENSES,23/10/2023,9181608742,3.2,DISCO BOWL BANBURY
OXFORDSHIRE CC,CHILDREN'S & EDUCATION,THAME E&A HOME,MATERIALS,23/10/2023,9181608758,68.76,WWW.SIGN-HOLDERS.CO.UK
OXFORDSHIRE CC,CHILDREN'S & EDUCATION,ATV ADOPTION WOODLEY,HIRE OF ACCOMMODATION AND FACILITIES,23/10/2023,9181608332,285.44,PREMIER INN
OXFORDSHIRE CC,CHILDREN'S & EDUCATION,WITNEY,CATERING PROVISIONS,23/10/2023,9181608342,46.59,ALDI 41 775
OXFORDSHIRE CC,SOCIAL AND COMMUNITY SERVICES,CSS - OXFORD,CATERING PROVISIONS,23/10/2023,9181608364,3.82,ALDI STORES 775-142
OXFORDSHIRE CC,CHILDREN'S & EDUCATION,40 THE MOORS,CLEANING MATERIALS,23/10/2023,9181609300,98.74,AMZNMKTPLACE
OXFORDSHIRE CC,CHILDREN'S & EDUCATION,SWINDON,HIRED AND CONTRACTED SERVICES,23/10/2023,9181608416,18.05,CO-OPERATIVE FOOD
OXFORDSHIRE CC,CHILDREN'S & EDUCATION,EYNSHAM,CATERING PROVISIONS,23/10/2023,9181608558,11.76,SPAR EYNSHAM
OXFORDSHIRE CC,CHILDREN'S & EDUCATION,PAUSE PROGRAMME,CATERING PROVISIONS,23/10/2023,9181608566,40.71,ALDI 77 775
OXFORDSHIRE CC,CHILDREN'S & EDUCATION,UASC 16&17,CATERING PROVISIONS,23/10/2023,9181608574,25.35,ASDA STORE 4442
OXFORDSHIRE CC,CHILDREN'S & EDUCATION,DIDCOT MOVE-ON HOME,MATERIALS,23/10/2023,9181609258,6,THE WORKS
OXFORDSHIRE CC,CHILDREN'S & EDUCATION,DIDCOT MOVE-ON HOME,HARDWARE AND CROCKERY,23/10/2023,9181608484,120,HOMEBASE LTD
OXFORDSHIRE CC,CHILDREN'S & EDUCATION,SWINDON,HIRED AND CONTRACTED SERVICES,23/10/2023,9181608422,7.2,SAINSBURYS S/MKTS
OXFORDSHIRE CC,ENVIRONMENT AND ECONOMY,"	COUNTY PRINT FINSHRS",MATERIALS,23/10/2023,9181608376,34.99,AMZNMKTPLACE
OXFORDSHIRE CC,SOCIAL AND COMMUNITY SERVICES,CSS - OXFORD,CATERING PROVISIONS,23/10/2023,9181608368,1.38,ALDI STORES 775-142
OXFORDSHIRE CC,CHILDREN'S & EDUCATION,FSP NON-STAFFING - CENTRAL,CATERING PROVISIONS,23/10/2023,9181609278,102.95,PAYPAL  ARGOSDIRECT
OXFORDSHIRE CC,CHILDREN'S & EDUCATION,40 THE MOORS,MATERIALS,23/10/2023,9181609306,75,WWW.ARGOS.CO.UK
OXFORDSHIRE CC,ENVIRONMENT AND ECONOMY,"	HWAYS NETWORK MGT",OTHER TRAINING COURSES AND QUALIFICATION,23/10/2023,9181608444,452.83,TRAVELODGE
OXFORDSHIRE CC,CHILDREN'S & EDUCATION,"	OCCG GRANT",CATERING,23/10/2023,9181608578,24.47,MCDONALDS
OXFORDSHIRE CC,CHILDREN'S & EDUCATION,EYNSHAM,ENTERTAINMENT EXPENSES,23/10/2023,9181608560,22.59,HOLLYWOOD BOWL
OXFORDSHIRE CC,CHILDREN'S & EDUCATION,PAUSE PROGRAMME,OTHER TRANSPORT ARRANGEMENTS,23/10/2023,9181608568,2,OXFORDBUS.CO.UK
OXFORDSHIRE CC,SOCIAL AND COMMUNITY SERVICES,CSS - OXFORD,DAY ACTIVITIES,23/10/2023,9181608370,80,ZETTLE_ DELTAVIOLIN
OXFORDSHIRE CC,CHILDREN'S & EDUCATION,DIDCOT MOVE-ON HOME,CATERING PROVISIONS,23/10/2023,9181609262,6.35,SAINSBURYS S/MKTS
OXFORDSHIRE CC,CHILDREN'S & EDUCATION,SERVICES/SUPPLIES,PAYMENTS TO VOLUNTARY BODIES,23/10/2023,9181609284,198,PAYPAL  NAS UK NAS UK
OXFORDSHIRE CC,CHILDREN'S & EDUCATION,WITNEY,CATERING PROVISIONS,23/10/2023,9181609346,6.92,SAINSBURYS S/MKTS
OXFORDSHIRE CC,SOCIAL AND COMMUNITY SERVICES,CSS - BANBURY,MATERIALS,23/10/2023,9181609442,-13.59,AMZNMKTPLACE
OXFORDSHIRE CC,SOCIAL AND COMMUNITY SERVICES,CSS WANTAGE,CLOTHING AND UNIFORMS,23/10/2023,9181608322,24.99,AMZNMKTPLACE
OXFORDSHIRE CC,SOCIAL AND COMMUNITY SERVICES,WALLINGFORD LIBRARY,CATERING PROVISIONS,23/10/2023,9181609204,1.3,WAITROSE 675
OXFORDSHIRE CC,CORPORATE CORE,"MARKETING, COMMUNICATIONS & ENGAGEMENT","PUBLICITY, PROMOTIONS AND ADVERTISEMENT",23/10/2023,9181609026,500,FACEBK  Q95JVUB9Z2
OXFORDSHIRE CC,CHILDREN'S & EDUCATION,CHILDREN IN CARE NON-STAFFING - SOUTH,OTHER TRANSPORT ARRANGEMENTS,23/10/2023,9181609232,3.35,RINGGO PARKING
OXFORDSHIRE CC,CHILDREN'S & EDUCATION,FAMILY SOLUTIONS PLUS NON-STAFF - NORTH,PAYMENTS TO TRANSPORT OPERATORS,23/10/2023,9181609386,58.7,WWW.GWR.COM
OXFORDSHIRE CC,SOCIAL AND COMMUNITY SERVICES,CSS - BANBURY,MATERIALS,23/10/2023,9181609444,26.14,AMAZON.CO.UK H082O5NU4
OXFORDSHIRE CC,CORPORATE CORE,"MARKETING, COMMUNICATIONS & ENGAGEMENT","PUBLICITY, PROMOTIONS AND ADVERTISEMENT",23/10/2023,9181609030,20.42,SNAP INC SNAP SNAP ADS
OXFORDSHIRE CC,CHILDREN'S & EDUCATION,CARE LEAVERS STAFFING,DOMESTIC SUPPLIES,23/10/2023,9181609532,131.99,AMAZON  204-5111931-92
OXFORDSHIRE CC,SOCIAL AND COMMUNITY SERVICES,BULLINGDON PRISON,"BOOKS, DVDS AND CDS",23/10/2023,9181609070,59,AMAZON.CO.UK H02OC7TY4
OXFORDSHIRE CC,CORPORATE CORE,THAME LIBRARY,"NEWSPAPERS, PERIODICALS AND PUBLICATIONS",23/10/2023,9181609114,7.3,SAINSBURYS S/MKTS
OXFORDSHIRE CC,CORPORATE CORE,THAME LIBRARY,"NEWSPAPERS, PERIODICALS AND PUBLICATIONS",23/10/2023,9181609110,5.6,SAINSBURYS S/MKTS
OXFORDSHIRE CC,CHILDREN'S & EDUCATION,"	OCCG GRANT",MATERIALS,23/10/2023,9181608922,29.95,AMZNMKTPLACE
OXFORDSHIRE CC,CHILDREN'S & EDUCATION,UASC POST 18,CATERING PROVISIONS,23/10/2023,9181608622,24.99,TESCO STORES 2994
OXFORDSHIRE CC,ENVIRONMENT AND ECONOMY,HOLDING CODE FOR REA,OTHER TRANSPORT ARRANGEMENTS,23/10/2023,9181609390,100,NCP PCN PAYMENT
OXFORDSHIRE CC,CHILDREN'S & EDUCATION,EYNSHAM,MATERIALS,23/10/2023,9181609322,26.98,AMZNMKTPLACE
OXFORDSHIRE CC,CORPORATE CORE,"	LEGAL SERVICES",LEGAL COSTS,23/10/2023,9181609350,11,OXFORDSHIRE CC WEB1
OXFORDSHIRE CC,CORPORATE CORE,"MARKETING, COMMUNICATIONS & ENGAGEMENT",OTHER TRAINING COURSES AND QUALIFICATION,23/10/2023,9181609022,"1,979.06",DATACAMP INC.
OXFORDSHIRE CC,CORPORATE CORE,"MARKETING, COMMUNICATIONS & ENGAGEMENT","PUBLICITY, PROMOTIONS AND ADVERTISEMENT",23/10/2023,9181609036,20.86,SNAP INC SNAP SNAP ADS
OXFORDSHIRE CC,CHILDREN'S & EDUCATION,40 THE MOORS,CATERING PROVISIONS,23/10/2023,9181609078,168.85,ASDA GROCERIES ONLINE
OXFORDSHIRE CC,CHILDREN'S & EDUCATION,DISABILITIES TEAM S,PAYMENT TO GOVERNMENT DEPARTMENTS,23/10/2023,9181608446,38,GEN REGISTER OFFICE
OXFORDSHIRE CC,CORPORATE CORE,THAME LIBRARY,STATIONERY,23/10/2023,9181609116,6.99,AMAZON.CO.UK H02T44JX4
OXFORDSHIRE CC,CHILDREN'S & EDUCATION,KINGFISHER,HOSPITALITY EXPENSES,23/10/2023,9181608740,16,DISCO BOWL BANBURY
OXFORDSHIRE CC,CHILDREN'S & EDUCATION,KINGFISHER,OTHER TRANSPORT ARRANGEMENTS,23/10/2023,9181608754,2.2,CHERWELL
OXFORDSHIRE CC,CHILDREN'S & EDUCATION,"	OCCG GRANT",CATERING PROVISIONS,23/10/2023,9181608634,3.58,COWLEY BUTCHERS & GROC
OXFORDSHIRE CC,CHILDREN'S & EDUCATION,PAUSE PROGRAMME,MATERIALS,23/10/2023,9181608644,10,THEWORKS.CO.UK
OXFORDSHIRE CC,CHILDREN'S & EDUCATION,EYNSHAM,MATERIALS,23/10/2023,9181609124,20.99,AMZNMKTPLACE
OXFORDSHIRE CC,ENVIRONMENT AND ECONOMY,MAINTENANCE STAFF,MATERIALS,23/10/2023,9181608902,13.95,AMZNMKTPLACE
OXFORDSHIRE CC,CHILDREN'S & EDUCATION,"	OCCG GRANT",OTHER EXPENSES,23/10/2023,9181608784,15,TESCO PFS 3418
OXFORDSHIRE CC,CHILDREN'S & EDUCATION,ATV ADOPTION WOODLEY,HIRE OF ACCOMMODATION AND FACILITIES,23/10/2023,9181608336,214.94,PREMIER INN
OXFORDSHIRE CC,CHILDREN'S & EDUCATION,WITNEY,MATERIALS,23/10/2023,9181608344,-5.79,AMZNMKTPLACE
OXFORDSHIRE CC,ENVIRONMENT AND ECONOMY,MAINTENANCE STAFF,MATERIALS,23/10/2023,9181608900,45.36,AMAZON.CO.UK H03HW1C84
OXFORDSHIRE CC,CHILDREN'S & EDUCATION,40 THE MOORS,CATERING,23/10/2023,9181608524,64.9,JUST EAT
OXFORDSHIRE CC,CHILDREN'S & EDUCATION,40 THE MOORS,CATERING PROVISIONS,23/10/2023,9181608530,21.02,TESCO STORES 2788
OXFORDSHIRE CC,CORPORATE CORE,,STATIONERY,23/10/2023,9181609174,227.9,LYRECO UK LTD
OXFORDSHIRE CC,SOCIAL AND COMMUNITY SERVICES,ADULTS AT RISK,HIRE OF ACCOMMODATION AND FACILITIES,23/10/2023,9181609186,511,ATHENA OXFORD LTD
OXFORDSHIRE CC,CHILDREN'S & EDUCATION,EYNSHAM,MATERIALS,23/10/2023,9181608734,6.49,HOLLAND & BARRETT
OXFORDSHIRE CC,CHILDREN'S & EDUCATION,KINGFISHER,CATERING,23/10/2023,9181608750,6.85,GREGGS PLC
OXFORDSHIRE CC,CHILDREN'S & EDUCATION,"	LEAVING CARE NORTH",VEHICLE FUEL,23/10/2023,9181609476,44.58,SHELL SHIRLEY TRIA
OXFORDSHIRE CC,CHILDREN'S & EDUCATION,SEN MISCELLANEOUS EXPENDITURE,PURCHASE OF IT EQUIPMENT,23/10/2023,9181609496,319,CURRYS ONLINE
OXFORDSHIRE CC,CHILDREN'S & EDUCATION,THAME E&A HOME,MATERIALS,23/10/2023,9181608776,16.82,AMZNMKTPLACE
OXFORDSHIRE CC,CHILDREN'S & EDUCATION,CHILDREN IN CARE NON-STAFFING - NORTH,PAYMENT TO GOVERNMENT DEPARTMENTS,23/10/2023,9181608792,34,DRIVING LICENCE WEB
OXFORDSHIRE CC,CHILDREN'S & EDUCATION,THAME E&A HOME,MATERIALS,23/10/2023,9181608814,6.9,AMZNMKTPLACE
OXFORDSHIRE CC,SOCIAL AND COMMUNITY SERVICES,CSS - BANBURY,MATERIALS,23/10/2023,9181609438,12.99,ARGOS BANBURY INSI
OXFORDSHIRE CC,CORPORATE CORE,,STATIONERY,23/10/2023,9181609176,139.57,LYRECO UK LTD
OXFORDSHIRE CC,SHARED SERVICES,CSC SUPP & SERVICES,PURCHASE OF IT EQUIPMENT,23/10/2023,9181608538,79.99,AMAZON.CO.UK H87O29824
OXFORDSHIRE CC,CORPORATE CORE,,STATIONERY,23/10/2023,9181609164,43.08,LYRECO UK LTD
OXFORDSHIRE CC,CORPORATE CORE,,STATIONERY,23/10/2023,9181609178,10.22,LYRECO UK LTD
OXFORDSHIRE CC,CHILDREN'S & EDUCATION,"	LOOKED AFTER NORTH",MATERIALS,23/10/2023,9181609192,12.99,MAX SPIELMANN LTD
OXFORDSHIRE CC,PUBLIC HEALTH,CHILDREN IN CARE NON-STAFFING - NORTH,ENTERTAINMENT EXPENSES,23/10/2023,9181608544,85.8,TRAINLINE.COM LTD
OXFORDSHIRE CC,CORPORATE CORE,,STATIONERY,23/10/2023,9181609168,14.65,LYRECO UK LTD
OXFORDSHIRE CC,SOCIAL AND COMMUNITY SERVICES,ADULTS AT RISK,HIRE OF ACCOMMODATION AND FACILITIES,23/10/2023,9181609184,511,ATHENA OXFORD LTD
OXFORDSHIRE CC,CHILDREN'S & EDUCATION,"	LOOKED AFTER NORTH",CATERING PROVISIONS,23/10/2023,9181609196,5,ASDA
OXFORDSHIRE CC,CHILDREN'S & EDUCATION,WITNEY,CATERING PROVISIONS,23/10/2023,9181608690,107.83,WM MORRISONS STORE PIC
OXFORDSHIRE CC,CHILDREN'S & EDUCATION,EYNSHAM,CATERING,23/10/2023,9181608726,4.27,MCDONALDS
OXFORDSHIRE CC,CHILDREN'S & EDUCATION,WITNEY,CATERING PROVISIONS,23/10/2023,9181608338,20.05,ASDA STORES 4920
OXFORDSHIRE CC,SOCIAL AND COMMUNITY SERVICES,CSS WITNEY,MATERIALS,23/10/2023,9181608318,-19.99,AMZNMKTPLACE
OXFORDSHIRE CC,CHILDREN'S & EDUCATION,EYNSHAM,MATERIALS,23/10/2023,9181609316,13.99,EBAY O 27-10673-64974
OXFORDSHIRE CC,CHILDREN'S & EDUCATION,"	OCCG GRANT",CATERING PROVISIONS,23/10/2023,9181609528,15.82,TESCO STORES 2064
OXFORDSHIRE CC,SOCIAL AND COMMUNITY SERVICES,"	CENTRAL LIBRARY",FURNITURE,23/10/2023,9181609066,39.58,HELLOPRINT UNITED KING
OXFORDSHIRE CC,CHILDREN'S & EDUCATION,40 THE MOORS,CATERING PROVISIONS,23/10/2023,9181609082,-1.1,ASDA GROCERIES ONLINE
OXFORDSHIRE CC,CHILDREN'S & EDUCATION,40 THE MOORS,CATERING PROVISIONS,23/10/2023,9181609080,3.1,ASDA GROCERIES ONLINE
OXFORDSHIRE CC,CHILDREN'S & EDUCATION,EYNSHAM,CATERING PROVISIONS,23/10/2023,9181609378,8.25,CO-OPERATIVE FOOD
OXFORDSHIRE CC,CHILDREN'S & EDUCATION,"	LOOKED AFTER NORTH",OTHER TRANSPORT ARRANGEMENTS,23/10/2023,9181609200,8.9,M6 TOLL
OXFORDSHIRE CC,CHILDREN'S & EDUCATION,THAME E&A HOME,CATERING PROVISIONS,23/10/2023,9181608476,212.63,TESCO STORES 2038
OXFORDSHIRE CC,CHILDREN'S & EDUCATION,EYNSHAM,CATERING PROVISIONS,23/10/2023,9181609084,17.5,MAYFIELDEGGS
OXFORDSHIRE CC,CHILDREN'S & EDUCATION,"	LEAVING CARE CITY 2",OTHER TRANSPORT ARRANGEMENTS,23/10/2023,9181608826,8,STGCOACH/CTYLINK
OXFORDSHIRE CC,CHILDREN'S & EDUCATION,40 THE MOORS,CATERING,23/10/2023,9181609312,40.6,SAINSBURYS S/MKTS
OXFORDSHIRE CC,CHILDREN'S & EDUCATION,EYNSHAM,CATERING PROVISIONS,23/10/2023,9181609136,84.68,TESCO STORES 2008
OXFORDSHIRE CC,CHILDREN'S & EDUCATION,CHILDREN IN CARE NON-STAFFING - SOUTH,HIRE OF ACCOMMODATION AND FACILITIES,23/10/2023,9181609384,122.49,PREMIER INN
OXFORDSHIRE CC,CHILDREN'S & EDUCATION,EYNSHAM,CATERING,23/10/2023,9181608722,31.84,MCDONALDS
OXFORDSHIRE CC,CORPORATE CORE,"MARKETING, COMMUNICATIONS & ENGAGEMENT","PUBLICITY, PROMOTIONS AND ADVERTISEMENT",23/10/2023,9181609024,12.74,SNAP INC SNAP SNAP ADS
OXFORDSHIRE CC,CHILDREN'S & EDUCATION,40 THE MOORS,CATERING,23/10/2023,9181609038,7.1,CO-OPERATIVE FOOD
OXFORDSHIRE CC,CHILDREN'S & EDUCATION,"	LOOKED AFTER NORTH",OTHER TRANSPORT ARRANGEMENTS,23/10/2023,9181609202,8.9,M6 TOLL
OXFORDSHIRE CC,CHILDREN'S & EDUCATION,DIDCOT MOVE-ON HOME,CATERING PROVISIONS,23/10/2023,9181609252,44.56,SAINSBURYS S/MKTS
OXFORDSHIRE CC,CORPORATE CORE,,STATIONERY,23/10/2023,9181609152,139.57,LYRECO UK LTD
OXFORDSHIRE CC,CHILDREN'S & EDUCATION,"	RESIDENTIAL STRATEGY",HIRE OF ACCOMMODATION AND FACILITIES,23/10/2023,9181609142,625,FARRINGDON GRANGE
OXFORDSHIRE CC,CORPORATE CORE,,STATIONERY,23/10/2023,9181609156,16.61,LYRECO UK LTD
OXFORDSHIRE CC,CHILDREN'S & EDUCATION,"	SENSS TRAINING","BOOKS, DVDS AND CDS",23/10/2023,9181608886,43.95,AMAZON.CO.UK H01YA9TY4
OXFORDSHIRE CC,ENVIRONMENT AND ECONOMY,MAINTENANCE STAFF,CATERING PROVISIONS,23/10/2023,9181608908,12,TESCO STORES 2064
OXFORDSHIRE CC,CHILDREN'S & EDUCATION,EYNSHAM,CATERING,23/10/2023,9181608730,9.3,THE SHAKE SHOP
OXFORDSHIRE CC,CHILDREN'S & EDUCATION,KINGFISHER,HOSPITALITY EXPENSES,23/10/2023,9181608746,0.2,DISCO BOWL BANBURY
OXFORDSHIRE CC,CHILDREN'S & EDUCATION,THAME E&A HOME,MATERIALS,23/10/2023,9181608768,999,MIELE.CO.UK
OXFORDSHIRE CC,CHILDREN'S & EDUCATION,"	LEAVING CARE NORTH",CATERING,23/10/2023,9181609472,16.15,CAFFE NERO GLOUCESTER
OXFORDSHIRE CC,CORPORATE CORE,BUSINESS INTELLECTUAL PROPERTY CENTRE,CATERING PROVISIONS,20/10/2023,9173445844,5.6,SAINSBURYS S/MKTS
OXFORDSHIRE CC,CHILDREN'S & EDUCATION,CARE LEAVERS STAFFING,CATERING,20/10/2023,9173446788,4.42,BURGER KING
OXFORDSHIRE CC,CORPORATE CORE,MULTICAV,PAYMENTS TO TRANSPORT OPERATORS,20/10/2023,9173446816,37.4,GWR OXFORD TO
OXFORDSHIRE CC,CHILDREN'S & EDUCATION,FAMILY SOLUTIONS PLUS NON-STAFF � SOUTH,EDUCATIONAL AND VOCATIONAL TRAINING ,20/10/2023,9173446770,35.3,WWW.FAMILYLINKS.ORG.UK
OXFORDSHIRE CC,ENVIRONMENT AND ECONOMY,MAINTENANCE STAFF,MATERIALS,20/10/2023,9173445924,25.16,AMZNMKTPLACE
OXFORDSHIRE CC,CHILDREN'S & EDUCATION,"	LOOKED AFTER CITY 2",VEHICLE FUEL,20/10/2023,9173446022,20,EG LEAMORE ASDA SERVIC
OXFORDSHIRE CC,ENVIRONMENT AND ECONOMY,MAINTENANCE STAFF,MATERIALS,20/10/2023,9173445928,21.95,AMZNMKTPLACE
OXFORDSHIRE CC,CORPORATE CORE,HISTORY SERVICE,EQUIPMENT,20/10/2023,9173445994,120.59,AMZNMKTPLACE
OXFORDSHIRE CC,CHILDREN'S & EDUCATION,THAME E&A HOME,MATERIALS,20/10/2023,9173445680,10.25,CLINTONS-155
OXFORDSHIRE CC,CHILDREN'S & EDUCATION,HOUSE PROJECT,CATERING,20/10/2023,9173446640,4.25,VMS ROADCHEF COSTA
OXFORDSHIRE CC,CHILDREN'S & EDUCATION,ATV ADOPTION OXFORD,CATERING PROVISIONS,20/10/2023,9173446660,6.2,CO-OPERATIVE FOOD
OXFORDSHIRE CC,CHILDREN'S & EDUCATION,CHILDREN IN CARE NON-STAFFING - NORTH,PAYMENT TO GOVERNMENT DEPARTMENTS,20/10/2023,9173445718,87.5,HM PASSPORT OFFICE
OXFORDSHIRE CC,CHILDREN'S & EDUCATION,"	OCCG GRANT",MATERIALS,20/10/2023,9173445740,4.99,CARD FACTORY
OXFORDSHIRE CC,CHILDREN'S & EDUCATION,STH EARLY HELP-ABNDN,NON-STAFF SUBSISTENCE AND EXPENSES,20/10/2023,9173446510,118.5,ASDA GEORGE COM LEEDS
OXFORDSHIRE CC,RESOURCES,ICT OPERATIONS & MAI,PURCHASE OF IT EQUIPMENT,20/10/2023,9173446522,649,AMAZON  203-3137284-31
OXFORDSHIRE CC,CHILDREN'S & EDUCATION,EYNSHAM,CATERING PROVISIONS,20/10/2023,9173445664,7.98,HOME BARGAINS
OXFORDSHIRE CC,CHILDREN'S & EDUCATION,THAME E&A HOME,MATERIALS,20/10/2023,9173445684,15.45,AMZNMKTPLACE
OXFORDSHIRE CC,CHILDREN'S & EDUCATION,HOUSE PROJECT,HIRE OF ACCOMMODATION AND FACILITIES,20/10/2023,9173446644,69.55,AC BY MARRIOTT MANCHES
OXFORDSHIRE CC,CHILDREN'S & EDUCATION,CHILDREN IN CARE NON-STAFFING - NORTH,PAYMENT TO GOVERNMENT DEPARTMENTS,20/10/2023,9173445722,58.5,HM PASSPORT OFFICE
OXFORDSHIRE CC,ENVIRONMENT AND ECONOMY,LIB ICT SUPPRT&MAINT,PURCHASE OF IT EQUIPMENT,20/10/2023,9173445746,24.99,AMZNMKTPLACE
OXFORDSHIRE CC,CHILDREN'S & EDUCATION,40 THE MOORS,FURNITURE,20/10/2023,9173446452,10,DUNELM SOFT FURNISHIN
OXFORDSHIRE CC,RESOURCES,ICT OPERATIONS & MAI,PURCHASE OF IT EQUIPMENT,20/10/2023,9173446518,649,AMAZON  203-3137284-31
OXFORDSHIRE CC,RESOURCES,ICT OPERATIONS & MAI,PURCHASE OF IT EQUIPMENT,20/10/2023,9173446528,649,AMAZON  203-3137284-31
OXFORDSHIRE CC,SOCIAL AND COMMUNITY SERVICES,CSS - BANBURY,MATERIALS,20/10/2023,9173446600,4.99,AMZNMKTPLACE
OXFORDSHIRE CC,SOCIAL AND COMMUNITY SERVICES,CSS WITNEY,CATERING PROVISIONS,20/10/2023,9173446616,22.8,CO-OP GROUP 070582
OXFORDSHIRE CC,CHILDREN'S & EDUCATION,HOUSE PROJECT,CATERING,20/10/2023,9173446634,9.48,VMS ROADCHEF WHSMITH
OXFORDSHIRE CC,CHILDREN'S & EDUCATION,UASC 16&17,CLOTHING AND UNIFORMS,20/10/2023,9173445566,-40,PRO-DIRECT SPORT LIMIT
OXFORDSHIRE CC,CHILDREN'S & EDUCATION,NTS UASC AGENCY,CATERING PROVISIONS,20/10/2023,9173446684,12,B&M 515 - ABINGDON
OXFORDSHIRE CC,CHILDREN'S & EDUCATION,EYNSHAM,CATERING PROVISIONS,20/10/2023,9173445672,24.83,HOME BARGAINS
OXFORDSHIRE CC,CHILDREN'S & EDUCATION,40 THE MOORS,FIXTURES & FITTINGS,20/10/2023,9173446456,34.25,THE RANGE
OXFORDSHIRE CC,CORPORATE CORE,"	LEGAL SERVICES",LEGAL COSTS,20/10/2023,9173446470,11,OXFORDSHIRE CC WEB1
OXFORDSHIRE CC,SOCIAL AND COMMUNITY SERVICES,CSS - BANBURY,MATERIALS,20/10/2023,9173446604,13.59,AMZNMKTPLACE
OXFORDSHIRE CC,SOCIAL AND COMMUNITY SERVICES,CSS - OXFORD,CATERING PROVISIONS,20/10/2023,9173445578,56.21,ALDI STORES 775-142
OXFORDSHIRE CC,CHILDREN'S & EDUCATION,HOUSE PROJECT,OTHER TRANSPORT ARRANGEMENTS,20/10/2023,9173446646,8.9,M6 TOLL
OXFORDSHIRE CC,SOCIAL AND COMMUNITY SERVICES,"	MUSEUMS COLLECTIONS",OTHER SERVICES,20/10/2023,9173446010,17.99,AMAZON.CO.UK H891L3Y84
OXFORDSHIRE CC,SOCIAL AND COMMUNITY SERVICES,"	MUSEUMS COLLECTIONS",CATERING PROVISIONS,20/10/2023,9173445944,4.62,MILK AND MORE (RECUR
OXFORDSHIRE CC,CHILDREN'S & EDUCATION,"	LEAVING CARE CITY 2",OTHER TRANSPORT ARRANGEMENTS,20/10/2023,9173445784,2,STGCOACH/CTYLINK
OXFORDSHIRE CC,CHILDREN'S & EDUCATION,PAUSE PROGRAMME,OTHER TRANSPORT ARRANGEMENTS,20/10/2023,9173445372,2,OXFORDBUS.CO.UK
OXFORDSHIRE CC,RESOURCES,ICT OPERATIONS & MAI,PURCHASE OF IT EQUIPMENT,20/10/2023,9173446538,"2,139.40",AMAZON.CO.UK H84EX4RX4
OXFORDSHIRE CC,SOCIAL AND COMMUNITY SERVICES,CSS - ABINGDON,CATERING PROVISIONS,20/10/2023,9173446564,5,WAITROSE 211
OXFORDSHIRE CC,CHILDREN'S & EDUCATION,FAMILY SOLUTIONS PLUS NON-STAFF - NORTH,NON-STAFF SUBSISTENCE AND EXPENSES,20/10/2023,9173446558,164.8,THE BLUE BOAR
OXFORDSHIRE CC,CHILDREN'S & EDUCATION,WITNEY,MATERIALS,20/10/2023,9173446370,2,THEWORKS
OXFORDSHIRE CC,CHILDREN'S & EDUCATION,"	LEAVING CARE NORTH",CATERING,20/10/2023,9173446358,6.65,COSTA COFFEE 43010890
OXFORDSHIRE CC,CHILDREN'S & EDUCATION,PAUSE PROGRAMME,OTHER TRANSPORT ARRANGEMENTS,20/10/2023,9173445366,2,OXFORDBUS.CO.UK
OXFORDSHIRE CC,CHILDREN'S & EDUCATION,UASC 16&17,DRUGS AND MEDICAL SUPPLIES,20/10/2023,9173445386,6.2,BOOTS THE CHEMIST
OXFORDSHIRE CC,CHILDREN'S & EDUCATION,FAMILY SOLUTIONS PLUS NON-STAFF - NORTH,CATERING PROVISIONS,20/10/2023,9173445460,11.15,TESCO STORES 4377
OXFORDSHIRE CC,CHILDREN'S & EDUCATION,DIDCOT MOVE-ON HOME,CATERING PROVISIONS,20/10/2023,9173445478,6.24,SAINSBURYS S/MKTS
OXFORDSHIRE CC,CORPORATE CORE,PUBLIC HEALTH GENERA,PURCHASE OF IT EQUIPMENT,20/10/2023,9173445524,37.66,AMZNMKTPLACE
OXFORDSHIRE CC,SOCIAL AND COMMUNITY SERVICES,LIB ICT SUPPRT&MAINT,MATERIALS,20/10/2023,9173446366,75.84,AMZNMKTPLACE
OXFORDSHIRE CC,CHILDREN'S & EDUCATION,PAUSE PROGRAMME,HARDWARE AND CROCKERY,20/10/2023,9173445374,10.5,HOMEBASE.CO.UK
OXFORDSHIRE CC,ENVIRONMENT AND ECONOMY,"	SAMUELSON HOUSE",CATERING PROVISIONS,20/10/2023,9173445400,42.84,MILK AND MORE (RECUR
OXFORDSHIRE CC,CORPORATE CORE,SCHOOLS FM CATERING AREA 1,CATERING PROVISIONS,20/10/2023,9173446386,11.5,TESCO STORES 4480
OXFORDSHIRE CC,SOCIAL AND COMMUNITY SERVICES,FLEET OPERATIONS,CATERING PROVISIONS,20/10/2023,9173445436,18.4,MILK AND MORE (RECUR
OXFORDSHIRE CC,CHILDREN'S & EDUCATION,PAUSE PROGRAMME,CATERING PROVISIONS,20/10/2023,9173445378,27.58,HOME BARGAINS
OXFORDSHIRE CC,CHILDREN'S & EDUCATION,"	RESIDENTIAL STRATEGY",EDUCATIONAL AND VOCATIONAL TRAINING ,20/10/2023,9173445450,6,PROTRAININGS
OXFORDSHIRE CC,CHILDREN'S & EDUCATION,CHILDREN IN CARE NON-STAFFING - NORTH,MATERIALS,20/10/2023,9173445726,13.5,WWW.ARGOS.CO.UK
OXFORDSHIRE CC,CORPORATE CORE,LIBRARY COLLECTIONS,"BOOKS, DVDS AND CDS",20/10/2023,9173445416,473.26,OVERDRIVE DIST
OXFORDSHIRE CC,CHILDREN'S & EDUCATION,DIDCOT MOVE-ON HOME,DOMESTIC SUPPLIES,20/10/2023,9173445472,4.5,SAINSBURYS S/MKTS
OXFORDSHIRE CC,CORPORATE CORE,"	LEGAL SERVICES",LEGAL COSTS,20/10/2023,9173446476,-11,OXFORDSHIRE CC (M)
OXFORDSHIRE CC,CORPORATE CORE,PUBLIC HEALTH GENERA,PURCHASE OF IT EQUIPMENT,20/10/2023,9173445518,10.87,AMZNMKTPLACE
OXFORDSHIRE CC,CHILDREN'S & EDUCATION,CHILDREN IN CARE NON-STAFFING - NORTH,PAYMENT TO GOVERNMENT DEPARTMENTS,20/10/2023,9173445708,58.5,HM PASSPORT OFFICE
OXFORDSHIRE CC,CHILDREN'S & EDUCATION,"	OCCG GRANT",MATERIALS,20/10/2023,9173445734,10,SPORTSDIRECT 218
OXFORDSHIRE CC,SOCIAL AND COMMUNITY SERVICES,CSS - BANBURY,MATERIALS,20/10/2023,9173446610,34.71,AMZNMKTPLACE
OXFORDSHIRE CC,CHILDREN'S & EDUCATION,HOUSE PROJECT,"SUPPLIES, STATIONERY AND MATERIALS",20/10/2023,9173446630,15.1,HOZAH  WEB MERCURE MAN
OXFORDSHIRE CC,ENVIRONMENT AND ECONOMY,BANBURY LIBRARY,"NEWSPAPERS, PERIODICALS AND PUBLICATIONS",20/10/2023,9173445656,1.6,NILAYS NEWS LTD
OXFORDSHIRE CC,CORPORATE CORE,,STATIONERY,20/10/2023,9173446292,8.76,LYRECO UK LTD
OXFORDSHIRE CC,CORPORATE CORE,THAME LIBRARY,"NEWSPAPERS, PERIODICALS AND PUBLICATIONS",20/10/2023,9173446246,5.6,SAINSBURYS S/MKTS
OXFORDSHIRE CC,CHILDREN'S & EDUCATION,"	LEAVING CARE NORTH",DRUGS AND MEDICAL SUPPLIES,20/10/2023,9173446328,21.98,SUPERDRUG STORES PLC
OXFORDSHIRE CC,CHILDREN'S & EDUCATION,FSP NON-STAFFING - CENTRAL,MATERIALS,20/10/2023,9173445034,30,ZETTLE_ OX REPAIRING S
OXFORDSHIRE CC,SOCIAL AND COMMUNITY SERVICES,CSS BICESTER,DAY ACTIVITIES,20/10/2023,9173445226,73.44,AMZNMKTPLACE
OXFORDSHIRE CC,ENVIRONMENT AND ECONOMY,CTRYSIDE OPS STAFF,EQUIPMENT,20/10/2023,9173446312,8.99,AMZNMKTPLACE
OXFORDSHIRE CC,CHILDREN'S & EDUCATION,FSP NON-STAFFING - CENTRAL,MATERIALS,20/10/2023,9173445038,10,ZETTLE_ OX REPAIRING S
OXFORDSHIRE CC,SOCIAL AND COMMUNITY SERVICES,HOLTON SITE,CATERING PROVISIONS,20/10/2023,9173445234,16.1,MILK AND MORE (RECUR
OXFORDSHIRE CC,SOCIAL AND COMMUNITY SERVICES,UASC 16&17,MATERIALS,20/10/2023,9173445132,275,CYCLE KING
OXFORDSHIRE CC,CHILDREN'S & EDUCATION,"	LEAVING CARE NORTH",EQUIPMENT,20/10/2023,9173446318,50,CEX OXFORD
OXFORDSHIRE CC,CORPORATE CORE,,STATIONERY,20/10/2023,9173446296,22.91,LYRECO UK LTD
OXFORDSHIRE CC,CHILDREN'S & EDUCATION,"	LEAVING CARE NORTH",CATERING,20/10/2023,9173446324,8.85,COSTA TEMPLARS
OXFORDSHIRE CC,SOCIAL AND COMMUNITY SERVICES,BOTLEY LIBRARY,"NEWSPAPERS, PERIODICALS AND PUBLICATIONS",20/10/2023,9173445112,10.2,MARTIN MCCOLL
OXFORDSHIRE CC,SOCIAL AND COMMUNITY SERVICES,CSS - BANBURY,MATERIALS,20/10/2023,9173446606,8.49,AMZNMKTPLACE
OXFORDSHIRE CC,CHILDREN'S & EDUCATION,HOUSE PROJECT,CATERING,20/10/2023,9173446626,7.98,MCDONALDS
OXFORDSHIRE CC,CHILDREN'S & EDUCATION,KINGFISHER,CATERING PROVISIONS,20/10/2023,9173445674,12.28,OXFORD KFC
OXFORDSHIRE CC,CHILDREN'S & EDUCATION,"	LEAVING CARE CITY 2",OTHER TRANSPORT ARRANGEMENTS,20/10/2023,9173445780,8,STGCOACH/CTYLINK
OXFORDSHIRE CC,CHILDREN'S & EDUCATION,SEN MISCELLANEOUS EXPENDITURE,PURCHASE OF IT EQUIPMENT,20/10/2023,9173446730,21.84,AMZNMKTPLACE
OXFORDSHIRE CC,CHILDREN'S & EDUCATION,"	BUSINESS DEVELOPMENT",MATERIALS,20/10/2023,9173446462,461.41,AMZNMKTPLACE
OXFORDSHIRE CC,CHILDREN'S & EDUCATION,FAMILY SOLUTIONS PLUS NON-STAFF - NORTH,EDUCATIONAL AND VOCATIONAL TRAINING ,20/10/2023,9173446738,3,THE KIDZ BARN
OXFORDSHIRE CC,CHILDREN'S & EDUCATION,FSP NON-STAFFING - CENTRAL,FURNITURE,20/10/2023,9173446428,66.79,SWIFTBLINDS
OXFORDSHIRE CC,RESOURCES,ICT OPERATIONS & MAI,PURCHASE OF IT EQUIPMENT,20/10/2023,9173446534,"3,245.00",AMAZON  203-3137284-31
OXFORDSHIRE CC,CORPORATE CORE,BUSINESS INTELLECTUAL PROPERTY CENTRE,CATERING PROVISIONS,20/10/2023,9173445852,69.09,SAINSBURYS.CO.UK
OXFORDSHIRE CC,SOCIAL AND COMMUNITY SERVICES,CSS WANTAGE,ENTERTAINMENT EXPENSES,20/10/2023,9173446062,14.72,HOLLYWOOD BOWL
OXFORDSHIRE CC,CHILDREN'S & EDUCATION,"	RESIDENTIAL STRATEGY",EDUCATIONAL AND VOCATIONAL TRAINING ,20/10/2023,9173445444,42,PROTRAININGS
OXFORDSHIRE CC,SOCIAL AND COMMUNITY SERVICES,CSS WANTAGE,ENTERTAINMENT EXPENSES,20/10/2023,9173446050,9.9,WWW.BETTER.ORG.UK
OXFORDSHIRE CC,CHILDREN'S & EDUCATION,CHILDREN IN CARE NON-STAFFING - CENTRL 2,OTHER TRANSPORT ARRANGEMENTS,20/10/2023,9173445172,188,WWW.ANYVAN.COM
OXFORDSHIRE CC,SOCIAL AND COMMUNITY SERVICES,CSS WANTAGE,ENTERTAINMENT EXPENSES,20/10/2023,9173446058,10.3,HOLLYWOOD BOWL
OXFORDSHIRE CC,CORPORATE CORE,"MARKETING, COMMUNICATIONS & ENGAGEMENT",PROFESSIONAL SUBSCRIPTIONS,20/10/2023,9173446132,24.98,LINKEDIN PRE 953394896
OXFORDSHIRE CC,SOCIAL AND COMMUNITY SERVICES,UASC 16&17,MATERIALS,20/10/2023,9173445122,299.99,CYCLE KING
OXFORDSHIRE CC,SOCIAL AND COMMUNITY SERVICES,CSS WANTAGE,ENTERTAINMENT EXPENSES,20/10/2023,9173446066,14.72,HOLLYWOOD BOWL
OXFORDSHIRE CC,CORPORATE CORE,"MARKETING, COMMUNICATIONS & ENGAGEMENT",CATERING PROVISIONS,20/10/2023,9173446138,18.4,MARKS&SPENCER PLC
OXFORDSHIRE CC,PUBLIC HEALTH,CHILDREN IN CARE NON-STAFFING - NORTH,ENTERTAINMENT EXPENSES,20/10/2023,9173445346,42.4,BICESTER VIL SSTP
OXFORDSHIRE CC,SOCIAL AND COMMUNITY SERVICES,CSS WITNEY,CATERING PROVISIONS,20/10/2023,9173446046,35.7,MILK AND MORE (RECUR
OXFORDSHIRE CC,CHILDREN'S & EDUCATION,HOUSE PROJECT,OTHER PREMISES RELATED COSTS,20/10/2023,9173445146,341,WWW.OXFORD.GOV.UK
OXFORDSHIRE CC,SOCIAL AND COMMUNITY SERVICES,CSS WANTAGE,CLOTHING AND UNIFORMS,20/10/2023,9173445006,29.99,AMZNMKTPLACE
OXFORDSHIRE CC,SOCIAL AND COMMUNITY SERVICES,"	PUBLIC HEALTH GENERA",HIRE OF ACCOMMODATION AND FACILITIES,20/10/2023,9173446214,295.77,TRAVELODGE
OXFORDSHIRE CC,CHILDREN'S & EDUCATION,CNTL EARLY HELP-BRTN,MATERIALS,20/10/2023,9173446226,14.98,AMZNMKTPLACE
OXFORDSHIRE CC,CHILDREN'S & EDUCATION,EYNSHAM,DRUGS AND MEDICAL SUPPLIES,20/10/2023,9173446284,21.25,WWW.ARGOS.CO.UK
OXFORDSHIRE CC,CHILDREN'S & EDUCATION,NRPF & HOMELESSNESS,PAYMENTS TO VOLUNTARY BODIES,20/10/2023,9173446192,730.02,ALLPAY  SANCTUARY HOUS
OXFORDSHIRE CC,CHILDREN'S & EDUCATION,"	LEAVING CARE SOUTH",OTHER TRANSPORT ARRANGEMENTS,20/10/2023,9173446218,132,WWW.ANYVAN.COM
OXFORDSHIRE CC,CORPORATE CORE,CENTRAL BUYING TEAM,PROFESSIONAL SUBSCRIPTIONS,20/10/2023,9173445248,900,WWW.CIPS.ORG
OXFORDSHIRE CC,ENVIRONMENT AND ECONOMY,HARD FM,PREMISES REPAIRS,20/10/2023,9173445070,85.41,WICKES OXFORD
OXFORDSHIRE CC,SOCIAL AND COMMUNITY SERVICES,CSS - OXFORD,CATERING PROVISIONS,19/10/2023,9167073220,63.7,ALDI STORES 775-142
OXFORDSHIRE CC,CHILDREN'S & EDUCATION,DIDCOT MOVE-ON HOME,HARDWARE AND CROCKERY,19/10/2023,9167073232,6,HOMEBASE LTD
OXFORDSHIRE CC,CHILDREN'S & EDUCATION,HOUSE PROJECT,STAFF SUBSISTENCE,19/10/2023,9167075366,5.54,VMS ROADCHEF WHSMITH
OXFORDSHIRE CC,CHILDREN'S & EDUCATION,HOUSE PROJECT,HIRE OF ACCOMMODATION AND FACILITIES,19/10/2023,9167075386,140,AC BY MARRIOTT MANCHES
OXFORDSHIRE CC,CHILDREN'S & EDUCATION,HOUSE PROJECT,CATERING PROVISIONS,19/10/2023,9167075360,6.64,SPAR NORTON CANES MSA
OXFORDSHIRE CC,CHILDREN'S & EDUCATION,THAME E&A HOME,OTHER TRANSPORT ARRANGEMENTS,19/10/2023,9167075422,13,WESTGATE OXFORD CAR PA
OXFORDSHIRE CC,RESOURCES,ICT OPERATIONS & MAI,PURCHASE OF IT EQUIPMENT,19/10/2023,9167075164,"1,914.20",AMAZON.CO.UK H82OK79Q4
OXFORDSHIRE CC,RESOURCES,ICT OPERATIONS & MAI,PURCHASE OF IT EQUIPMENT,19/10/2023,9167075172,355.32,AMZNMKTPLACE
OXFORDSHIRE CC,CHILDREN'S & EDUCATION,EYNSHAM,CATERING,19/10/2023,9167075202,9.99,MCDONALDS
OXFORDSHIRE CC,CHILDREN'S & EDUCATION,40 THE MOORS,CATERING PROVISIONS,19/10/2023,9167073274,24.02,TESCO STORES 2788
OXFORDSHIRE CC,CHILDREN'S & EDUCATION,HOUSE PROJECT,HIRE OF ACCOMMODATION AND FACILITIES,19/10/2023,9167075394,140,AC BY MARRIOTT MANCHES
OXFORDSHIRE CC,CHILDREN'S & EDUCATION,HOUSE PROJECT,HIRE OF ACCOMMODATION AND FACILITIES,19/10/2023,9167075370,140,AC BY MARRIOTT MANCHES
OXFORDSHIRE CC,CHILDREN'S & EDUCATION,HOUSE PROJECT,OTHER TRANSPORT ARRANGEMENTS,19/10/2023,9167075400,8.2,SIMPLE INTELLIGENT PAR
OXFORDSHIRE CC,RESOURCES,ICT OPERATIONS & MAI,PURCHASE OF IT EQUIPMENT,19/10/2023,9167075178,152.28,AMZNMKTPLACE
OXFORDSHIRE CC,CHILDREN'S & EDUCATION,HOUSE PROJECT,HIRE OF ACCOMMODATION AND FACILITIES,19/10/2023,9167075380,140,AC BY MARRIOTT MANCHES
OXFORDSHIRE CC,CHILDREN'S & EDUCATION,HOUSE PROJECT,OTHER TRANSPORT ARRANGEMENTS,19/10/2023,9167075406,8.9,M6 TOLL
OXFORDSHIRE CC,SOCIAL AND COMMUNITY SERVICES,"	MTFC",ENTERTAINMENT EXPENSES,19/10/2023,9167074978,9.95,RED KANGAROO
OXFORDSHIRE CC,CHILDREN'S & EDUCATION,WITNEY,CATERING PROVISIONS,19/10/2023,9167074966,7.9,SAINSBURYS S/MKTS
OXFORDSHIRE CC,CHILDREN'S & EDUCATION,WITNEY,MATERIALS,19/10/2023,9167074938,4.99,WH SMITH WITNEY
OXFORDSHIRE CC,CHILDREN'S & EDUCATION,WITNEY,CATERING PROVISIONS,19/10/2023,9167074954,10,SAINSBURY'S S/MKT
OXFORDSHIRE CC,SOCIAL AND COMMUNITY SERVICES,"	MTFC",VEHICLE FUEL,19/10/2023,9167074984,8.94,SHELL MAPLE RISE
OXFORDSHIRE CC,CHILDREN'S & EDUCATION,UASC 16&17,PROFESSIONAL SUBSCRIPTIONS,19/10/2023,9167073422,11.89,ONTOPUP.COM
OXFORDSHIRE CC,CHILDREN'S & EDUCATION,DIDCOT MOVE-ON HOME,CATERING PROVISIONS,19/10/2023,9167073480,11.38,SAINSBURYS S/MKTS
OXFORDSHIRE CC,CHILDREN'S & EDUCATION,WITNEY,CATERING PROVISIONS,19/10/2023,9167074958,34.85,SAINSBURYS S/MKTS
OXFORDSHIRE CC,CHILDREN'S & EDUCATION,"	OCCG GRANT",CATERING,19/10/2023,9167074996,19.57,DOMINOS BANBURY 28071
OXFORDSHIRE CC,CHILDREN'S & EDUCATION,DIDCOT MOVE-ON HOME,MATERIALS,19/10/2023,9167074946,3,POUNDLAND LTD - 1912
OXFORDSHIRE CC,CHILDREN'S & EDUCATION,THAME E&A HOME,OTHER TRANSPORT ARRANGEMENTS,19/10/2023,9167073662,13,WESTGATE OXFORD CAR PA
OXFORDSHIRE CC,SOCIAL AND COMMUNITY SERVICES,SCHOOLS FM CATERING AREA 1,CATERING PROVISIONS,19/10/2023,9167073630,9.9,WM MORRISONS STORE
OXFORDSHIRE CC,CHILDREN'S & EDUCATION,THAME E&A HOME,OTHER TRANSPORT ARRANGEMENTS,19/10/2023,9167073578,13,WESTGATE OXFORD CAR PA
OXFORDSHIRE CC,CHILDREN'S & EDUCATION,FSP NON-STAFFING - CENTRAL,HIRE OF ACCOMMODATION AND FACILITIES,19/10/2023,9167075056,155.68,MALDRON HOTEL MERRION
OXFORDSHIRE CC,CHILDREN'S & EDUCATION,THAME E&A HOME,OTHER TRANSPORT ARRANGEMENTS,19/10/2023,9167075074,9.8,WESTGATE OXFORD CAR PA
OXFORDSHIRE CC,SOCIAL AND COMMUNITY SERVICES,"	HISTORY SERVICE",FURNITURE,19/10/2023,9167075122,7.02,AMAZON.CO.UK H80QG17E4
OXFORDSHIRE CC,CHILDREN'S & EDUCATION,FSP NON-STAFFING - CENTRAL,HIRE OF ACCOMMODATION AND FACILITIES,19/10/2023,9167075064,155.68,MALDRON HOTEL MERRION
OXFORDSHIRE CC,CHILDREN'S & EDUCATION,FSP NON-STAFFING - CENTRAL,OTHER TRANSPORT ARRANGEMENTS,19/10/2023,9167075050,436.49,DIRECTF DFP165941276
OXFORDSHIRE CC,CHILDREN'S & EDUCATION,THAME E&A HOME,CATERING PROVISIONS,19/10/2023,9167073516,72.6,SAINSBURY'S S/MKT
OXFORDSHIRE CC,CHILDREN'S & EDUCATION,THAME E&A HOME,CATERING PROVISIONS,19/10/2023,9167073522,1.75,SAINSBURYS S/MKTS
OXFORDSHIRE CC,CHILDREN'S & EDUCATION,UASC 16&17,DRUGS AND MEDICAL SUPPLIES,19/10/2023,9167073510,18.98,SUPERDRUG STORES PLC
OXFORDSHIRE CC,SOCIAL AND COMMUNITY SERVICES,CSS - BANBURY,MATERIALS,19/10/2023,9167075290,11.99,AMZNMKTPLACE
OXFORDSHIRE CC,CHILDREN'S & EDUCATION,40 THE MOORS,CATERING PROVISIONS,19/10/2023,9167073280,4.3,TESCO STORES 2788
OXFORDSHIRE CC,CHILDREN'S & EDUCATION,THAME E&A HOME,OTHER TRANSPORT ARRANGEMENTS,19/10/2023,9167075220,13,WESTGATE OXFORD CAR PA
OXFORDSHIRE CC,ENVIRONMENT AND ECONOMY,MUSEUMS COLLECTIONS,MATERIALS,19/10/2023,9167075552,102.3,AMZNMKTPLACE
OXFORDSHIRE CC,CUSTOMER AND CULTURE,LIBRARY COLLECTIONS,"BOOKS, DVDS AND CDS",19/10/2023,9167075446,420,PRESTO MUSIC
OXFORDSHIRE CC,CHILDREN'S & EDUCATION,"	LEAVING CARE NORTH",VEHICLE FUEL,19/10/2023,9167075526,56.7,TESCO PAY AT PUMP 3820
OXFORDSHIRE CC,CHILDREN'S & EDUCATION,KINGFISHER,CATERING PROVISIONS,19/10/2023,9167073718,1.99,WM MORRISONS STORE
OXFORDSHIRE CC,CHILDREN'S & EDUCATION,THAME E&A HOME,MATERIALS,19/10/2023,9167073758,4.09,AMZNMKTPLACE
OXFORDSHIRE CC,SOCIAL AND COMMUNITY SERVICES,COWLEY LIBRARY,CATERING,19/10/2023,9167075462,29.94,AMZNMKTPLACE
OXFORDSHIRE CC,CHILDREN'S & EDUCATION,PAUSE PROGRAMME,MATERIALS,19/10/2023,9167073698,23.19,THE RANGE
OXFORDSHIRE CC,CHILDREN'S & EDUCATION,KINGFISHER,CATERING,19/10/2023,9167073742,8.5,KEBAB KID
OXFORDSHIRE CC,SOCIAL AND COMMUNITY SERVICES,CSS - BANBURY,MATERIALS,19/10/2023,9167075304,21.16,AMZNMKTPLACE
OXFORDSHIRE CC,SOCIAL AND COMMUNITY SERVICES,CSS - BANBURY,MATERIALS,19/10/2023,9167075326,2.8,AMZNMKTPLACE
OXFORDSHIRE CC,CHILDREN'S & EDUCATION,PAUSE PROGRAMME,CATERING,19/10/2023,9167073692,8.75,JENNYS CAFE
OXFORDSHIRE CC,CHILDREN'S & EDUCATION,KINGFISHER,CATERING,19/10/2023,9167073722,5.9,COSTA COFFEE 43011153
OXFORDSHIRE CC,CHILDREN'S & EDUCATION,"	LEAVING CARE CITY 2",PAYMENTS TO TRANSPORT OPERATORS,19/10/2023,9167073774,99,BKG HOTEL AT BOOKING.C
OXFORDSHIRE CC,SOCIAL AND COMMUNITY SERVICES,CSS - BANBURY,MATERIALS,19/10/2023,9167075294,9.42,AMZNMKTPLACE
OXFORDSHIRE CC,SOCIAL AND COMMUNITY SERVICES,CSS - BANBURY,MATERIALS,19/10/2023,9167075314,43.04,AMZNMKTPLACE
OXFORDSHIRE CC,CHILDREN'S & EDUCATION,HOUSE PROJECT,CATERING,19/10/2023,9167075350,2.9,NORTON CANES LEON
OXFORDSHIRE CC,CHILDREN'S & EDUCATION,KINGFISHER,SUBSCRIPTIONS,19/10/2023,9167073710,42,BOX FIT PT
OXFORDSHIRE CC,CHILDREN'S & EDUCATION,THAME E&A HOME,MATERIALS,19/10/2023,9167073750,8.68,AMZNMKTPLACE
OXFORDSHIRE CC,SOCIAL AND COMMUNITY SERVICES,CSS - BANBURY,MATERIALS,19/10/2023,9167075306,16.99,AMZNMKTPLACE
OXFORDSHIRE CC,SOCIAL AND COMMUNITY SERVICES,CSS - BANBURY,MATERIALS,19/10/2023,9167075332,6.99,AMZNMKTPLACE
OXFORDSHIRE CC,SOCIAL AND COMMUNITY SERVICES,CSS - BANBURY,MATERIALS,19/10/2023,9167075298,65.92,AMZNMKTPLACE
OXFORDSHIRE CC,SOCIAL AND COMMUNITY SERVICES,CSS - BANBURY,MATERIALS,19/10/2023,9167075320,19.98,AMZNMKTPLACE
OXFORDSHIRE CC,CHILDREN'S & EDUCATION,HOUSE PROJECT,CATERING PROVISIONS,19/10/2023,9167075354,9.34,B&M 250 - WANTAGE
OXFORDSHIRE CC,CHILDREN'S & EDUCATION,FAMILY SOLUTIONS PLUS NON-STAFF � SOUTH,PAYMENTS TO VOLUNTARY BODIES,19/10/2023,9167075600,35.3,FAMILY LINKS
OXFORDSHIRE CC,CUSTOMER AND CULTURE,REACTIVE MAINTENANCE,PREMISES REPAIRS,19/10/2023,9167073852,71.7,WWW.WILDCARE.CO.UK
OXFORDSHIRE CC,ENVIRONMENT AND ECONOMY,"	COUNTY PRINT FINSHRS",POSTAGE AND DELIVERY,19/10/2023,9167073830,239.69,ROYAL MAIL GROUP
OXFORDSHIRE CC,CHILDREN'S & EDUCATION,"	LEAVING CARE CITY 2",OTHER TRANSPORT ARRANGEMENTS,19/10/2023,9167073782,-16.95,S&K CAPITAL
OXFORDSHIRE CC,CORPORATE CORE,MUSIC UNALLOCABLE,VEHICLE FUEL,19/10/2023,9167075476,47.55,ASDA PETROL/UPT
OXFORDSHIRE CC,CHILDREN'S & EDUCATION,"	LEAVING CARE NORTH",CATERING,19/10/2023,9167075534,9.4,SUMUP   MISSING BEAN L
OXFORDSHIRE CC,CHILDREN'S & EDUCATION,CHILDREN IN CARE NON-STAFFING - SOUTH,NON-STAFF SUBSISTENCE AND EXPENSES,19/10/2023,9167072778,200,ASDA STORES LTD
OXFORDSHIRE CC,CHILDREN'S & EDUCATION,CHILDREN IN CARE NON-STAFFING - SOUTH,PAYMENTS TO TRANSPORT OPERATORS,19/10/2023,9167072756,18.94,TRAINLINE
OXFORDSHIRE CC,CHILDREN'S & EDUCATION,WITNEY,MATERIALS,19/10/2023,9167072804,14.47,AMZNMKTPLACE
OXFORDSHIRE CC,SOCIAL AND COMMUNITY SERVICES,CSS WITNEY,CATERING PROVISIONS,19/10/2023,9167073942,17.5,MARKS&SPENCER PLC SACA
OXFORDSHIRE CC,SOCIAL AND COMMUNITY SERVICES,CSS - BANBURY,MATERIALS,19/10/2023,9167075338,-10.57,AMZNMKTPLACE
OXFORDSHIRE CC,SOCIAL AND COMMUNITY SERVICES,"	LIBRARY COLLECTIONS","BOOKS, DVDS AND CDS",19/10/2023,9167075450,329.7,WWW.SAMUELFRENCH-
OXFORDSHIRE CC,CORPORATE CORE,MOTOR FLEET,MOTOR IF FEES,19/10/2023,9167074680,133.5,SIDNEY H HOOPER & COMP
OXFORDSHIRE CC,CHILDREN'S & EDUCATION,FSP NON-STAFFING - CENTRAL,PAYMENTS TO TRANSPORT OPERATORS,19/10/2023,9167074632,78.3,WWW.GWR.COM
OXFORDSHIRE CC,CHILDREN'S & EDUCATION,CHILDREN IN CARE NON-STAFFING - SOUTH,OTHER TRANSPORT ARRANGEMENTS,19/10/2023,9167072770,16,NEALES TAXIS LTD
OXFORDSHIRE CC,CHILDREN'S & EDUCATION,WITNEY,MATERIALS,19/10/2023,9167072796,17.37,AMZNMKTPLACE
OXFORDSHIRE CC,SOCIAL AND COMMUNITY SERVICES,CSS WANTAGE,CATERING PROVISIONS,19/10/2023,9167074366,117.34,ASDA GROCERIES ONLINE
OXFORDSHIRE CC,SOCIAL AND COMMUNITY SERVICES,CSS WANTAGE,CATERING PROVISIONS,19/10/2023,9167074372,-8.5,ASDA GROCERIES ONLINE
OXFORDSHIRE CC,ENVIRONMENT AND ECONOMY,MAINTENANCE STAFF,MATERIALS,19/10/2023,9167074102,19.1,AMAZON.CO.UK H86ZQ3UI4
OXFORDSHIRE CC,CORPORATE CORE,HISTORY SERVICE,EQUIPMENT,19/10/2023,9167074214,8.6,WWW.ENTACO.COM
OXFORDSHIRE CC,CORPORATE CORE,HISTORY SERVICE,EQUIPMENT,19/10/2023,9167074222,16.93,AMZNMKTPLACE
OXFORDSHIRE CC,ENVIRONMENT AND ECONOMY,MUSEUM CAFE,CATERING,19/10/2023,9167074260,108.44,PHILIP DENNIS FOODSER
OXFORDSHIRE CC,ENVIRONMENT AND ECONOMY,MUSEUM CAFE,CATERING,19/10/2023,9167074260,157.68,PHILIP DENNIS FOODSER
OXFORDSHIRE CC,ENVIRONMENT AND ECONOMY,"	OXFORDSHIRE MUSEUM",MATERIALS,19/10/2023,9167074266,14.44,AMZNMKTPLACE
OXFORDSHIRE CC,SOCIAL AND COMMUNITY SERVICES,CSS - OXFORD,CATERING PROVISIONS,19/10/2023,9167074080,436.94,TESCO STORES 2994
OXFORDSHIRE CC,ENVIRONMENT AND ECONOMY,MAINTENANCE STAFF,MATERIALS,19/10/2023,9167074124,8.95,AMZNMKTPLACE
OXFORDSHIRE CC,CHILDREN'S & EDUCATION,NTS UASC AGENCY,MATERIALS,19/10/2023,9167074238,11.99,AMZNMKTPLACE
OXFORDSHIRE CC,ENVIRONMENT AND ECONOMY,MAINTENANCE STAFF,MATERIALS,19/10/2023,9167074112,8.95,AMZNMKTPLACE
OXFORDSHIRE CC,CHILDREN'S & EDUCATION,NTS UASC AGENCY,MATERIALS,19/10/2023,9167074230,149.97,AMZNMKTPLACE
OXFORDSHIRE CC,ENVIRONMENT AND ECONOMY,MAINTENANCE STAFF,IT SOFTWARE,19/10/2023,9167074090,828,SP HUDSONS-UK
OXFORDSHIRE CC,ENVIRONMENT AND ECONOMY,"	KNIGHTS COURT",OTHER TRANSPORT ARRANGEMENTS,19/10/2023,9167073868,2.2,UNION STREET CAR PARK
OXFORDSHIRE CC,CORPORATE CORE,REGISTRAR,MATERIALS,19/10/2023,9167073840,296.35,AMZNMKTPLACE
OXFORDSHIRE CC,CHILDREN'S & EDUCATION,FAMILY SOLUTIONS PLUS NON-STAFF � SOUTH,PAYMENTS TO VOLUNTARY BODIES,19/10/2023,9167075606,35.3,FAMILY LINKS
OXFORDSHIRE CC,CHILDREN'S & EDUCATION,THAME E&A HOME,OTHER TRANSPORT ARRANGEMENTS,19/10/2023,9167073878,13,WESTGATE OXFORD CAR PA
OXFORDSHIRE CC,CHILDREN'S & EDUCATION,"	DIRECTOR'S OFFICE",POSTAGE AND DELIVERY,19/10/2023,9167073792,4.49,ROYAL MAIL GROUP LTD
OXFORDSHIRE CC,CORPORATE CORE,,STATIONERY,19/10/2023,9167074782,36.89,LYRECO UK LTD
OXFORDSHIRE CC,CORPORATE CORE,,STATIONERY,19/10/2023,9167074756,380.45,LYRECO UK LTD
OXFORDSHIRE CC,CORPORATE CORE,,STATIONERY,19/10/2023,9167074748,12.6,LYRECO UK LTD
OXFORDSHIRE CC,CHILDREN'S & EDUCATION,FAMILY SOLUTIONS PLUS NON-STAFF - NORTH,PAYMENT TO GOVERNMENT DEPARTMENTS,19/10/2023,9167074792,42.25,GEN REGISTER OFFICE
OXFORDSHIRE CC,CHILDREN'S & EDUCATION,"	RESIDENTIAL STRATEGY",OTHER EXPENSES,19/10/2023,9167074826,16.4,AMZNMKTPLACE
OXFORDSHIRE CC,CORPORATE CORE,,STATIONERY,19/10/2023,9167074772,15.85,LYRECO UK LTD
OXFORDSHIRE CC,CORPORATE CORE,ICT OPERATIONS & MAI,MATERIALS,19/10/2023,9167074888,236.5,AMZNMKTPLACE
OXFORDSHIRE CC,CORPORATE CORE,ICT OPERATIONS & MAI,MATERIALS,19/10/2023,9167074924,173.58,AMZNMKTPLACE
OXFORDSHIRE CC,CORPORATE CORE,ICT OPERATIONS & MAI,MATERIALS,19/10/2023,9167074904,309.69,AMZNMKTPLACE
OXFORDSHIRE CC,CORPORATE CORE,ICT OPERATIONS & MAI,MATERIALS,19/10/2023,9167074898,110.46,AMZNMKTPLACE
OXFORDSHIRE CC,CHILDREN'S & EDUCATION,"	LOOKED AFTER NORTH",CATERING,19/10/2023,9167074836,8.38,MCDONALDS
OXFORDSHIRE CC,SOCIAL AND COMMUNITY SERVICES,LIB ICT SUPPRT&MAINT,MATERIALS,19/10/2023,9167074878,53.99,AMZNMKTPLACE
OXFORDSHIRE CC,CORPORATE CORE,ICT OPERATIONS & MAI,MATERIALS,19/10/2023,9167074912,110.46,AMZNMKTPLACE
OXFORDSHIRE CC,CHILDREN'S & EDUCATION,THAME E&A HOME,OTHER TRANSPORT ARRANGEMENTS,19/10/2023,9167072972,13,WESTGATE OXFORD CAR PA
OXFORDSHIRE CC,CHILDREN'S & EDUCATION,CHILDREN IN CARE NON-STAFFING - CENTRL 1,PAYMENT TO GOVERNMENT DEPARTMENTS,19/10/2023,9167073014,11,HTTPS://WWW.SWANSEA.GO
OXFORDSHIRE CC,CHILDREN'S & EDUCATION,THAME E&A HOME,OTHER SERVICES,19/10/2023,9167072942,13,WESTGATE OXFORD CAR PA
OXFORDSHIRE CC,CHILDREN'S & EDUCATION,CHILDREN IN CARE NON-STAFFING - CENTRL 2,PAYMENT TO GOVERNMENT DEPARTMENTS,19/10/2023,9167072998,22,OXFORDSHIRE CC WEB1
OXFORDSHIRE CC,CHILDREN'S & EDUCATION,CHILDREN IN CARE NON-STAFFING - CENTRL 1,PAYMENT TO GOVERNMENT DEPARTMENTS,19/10/2023,9167073008,11,OXFORDSHIRE CC WEB1
OXFORDSHIRE CC,ENVIRONMENT AND ECONOMY,HARD FM,PREMISES REPAIRS,19/10/2023,9167072898,71.82,SQ  FALCON SIGNS
OXFORDSHIRE CC,CHILDREN'S & EDUCATION,FSP NON-STAFFING - CENTRAL,MATERIALS,19/10/2023,9167074624,13.38,AMZNMKTPLACE
OXFORDSHIRE CC,CHILDREN'S & EDUCATION,CHILDREN IN CARE NON-STAFFING - SOUTH,PAYMENTS TO TRANSPORT OPERATORS,19/10/2023,9167072762,18.94,TRAINLINE
OXFORDSHIRE CC,ENVIRONMENT AND ECONOMY,HARD FM,PREMISES REPAIRS,19/10/2023,9167072910,11.06,WILLIAMS & CO
OXFORDSHIRE CC,ENVIRONMENT AND ECONOMY,HARD FM,PREMISES REPAIRS,19/10/2023,9167072886,71.98,SCREWFIX DIR LTD
OXFORDSHIRE CC,SOCIAL AND COMMUNITY SERVICES,WIDER DETERMINANTS,OTHER EXPENSES,19/10/2023,9167074644,35,HIGH STREET VOUCHERS
OXFORDSHIRE CC,ENTERPRISEVC,,CAR LEASING - PRIVATE RENTALS,18/10/2023,9161489814,84.85,ENTERPRISE RENT-A-CAR
OXFORDSHIRE CC,ENTERPRISEVC,,CAR LEASING - PRIVATE RENTALS,18/10/2023,9161489822,87.61,ENTERPRISE RENT-A-CAR
OXFORDSHIRE CC,ENTERPRISEVC,,CAR LEASING - PRIVATE RENTALS,18/10/2023,9161489832,38.06,ENTERPRISE RENT-A-CAR
OXFORDSHIRE CC,ENTERPRISEVC,,CAR LEASING - PRIVATE RENTALS,18/10/2023,9161489840,210.67,ENTERPRISE RENT-A-CAR
OXFORDSHIRE CC,CHILDREN'S & EDUCATION,HOUSE PROJECT,CATERING PROVISIONS,18/10/2023,9161489848,11.6,SAINSBURYS S/MKTS
OXFORDSHIRE CC,ENTERPRISEVC,,CAR LEASING - PRIVATE RENTALS,18/10/2023,9161489842,103.06,ENTERPRISE RENT-A-CAR
OXFORDSHIRE CC,ENTERPRISEVC,,CAR LEASING - PRIVATE RENTALS,18/10/2023,9161489830,132.31,ENTERPRISE RENT-A-CAR
OXFORDSHIRE CC,ENTERPRISEVC,,CAR LEASING - PRIVATE RENTALS,18/10/2023,9161489838,77.5,ENTERPRISE RENT-A-CAR
OXFORDSHIRE CC,CHILDREN'S & EDUCATION,HOUSE PROJECT,OTHER TRANSPORT ARRANGEMENTS,18/10/2023,9161489846,7.8,WESTGATE OXFORD CAR PA
OXFORDSHIRE CC,CORPORATE CORE,"	CORPORATE FINANCE",PAYMENTS TO TRANSPORT OPERATORS,18/10/2023,9161489566,177.8,WWW.GWR.COM
OXFORDSHIRE CC,ENTERPRISEVC,,CAR LEASING - PRIVATE RENTALS,18/10/2023,9161489824,128.06,ENTERPRISE RENT-A-CAR
OXFORDSHIRE CC,ENTERPRISEVC,,CAR LEASING - PRIVATE RENTALS,18/10/2023,9161489816,203.59,ENTERPRISE RENT-A-CAR
OXFORDSHIRE CC,CORPORATE CORE,,STATIONERY,18/10/2023,9161489812,27.36,LYRECO UK LTD
OXFORDSHIRE CC,ENTERPRISEVC,,CAR LEASING - PRIVATE RENTALS,18/10/2023,9161489820,188.08,ENTERPRISE RENT-A-CAR
OXFORDSHIRE CC,ENTERPRISEVC,,CAR LEASING - PRIVATE RENTALS,18/10/2023,9161489828,38.75,ENTERPRISE RENT-A-CAR
OXFORDSHIRE CC,ENTERPRISEVC,,CAR LEASING - PRIVATE RENTALS,18/10/2023,9161489834,89,ENTERPRISE RENT-A-CAR
OXFORDSHIRE CC,ENTERPRISEVC,,CAR LEASING - PRIVATE RENTALS,18/10/2023,9161489836,77.98,ENTERPRISE RENT-A-CAR
OXFORDSHIRE CC,ENTERPRISEVC,,CAR LEASING - PRIVATE RENTALS,18/10/2023,9161489844,45.1,ENTERPRISE RENT-A-CAR
OXFORDSHIRE CC,ENTERPRISEVC,,CAR LEASING - PRIVATE RENTALS,18/10/2023,9161489818,81.1,ENTERPRISE RENT-A-CAR
OXFORDSHIRE CC,CORPORATE CORE,,STATIONERY,18/10/2023,9161489810,22,LYRECO UK LTD
OXFORDSHIRE CC,ENTERPRISEVC,,CAR LEASING - PRIVATE RENTALS,18/10/2023,9161489826,38.06,ENTERPRISE RENT-A-CAR
OXFORDSHIRE CC,CHILDREN'S & EDUCATION,"	LEAVING CARE NORTH",MATERIALS,18/10/2023,9161489856,-18,BEKO PLC
OXFORDSHIRE CC,SOCIAL AND COMMUNITY SERVICES,LIB ICT SUPPRT&MAINT,PURCHASE OF IT EQUIPMENT,18/10/2023,9161489864,463.58,AMZNMKTPLACE
OXFORDSHIRE CC,ENVIRONMENT AND ECONOMY,HARD FM,PREMISES REPAIRS,18/10/2023,9161489850,78.6,WILLIAMS & CO
OXFORDSHIRE CC,CHILDREN'S & EDUCATION,"	LEAVING CARE NORTH",CATERING,18/10/2023,9161489854,12.92,COSTA COFFEE 43011153
OXFORDSHIRE CC,SOCIAL AND COMMUNITY SERVICES,LIBRARY PROJECTS,CATERING PROVISIONS,18/10/2023,9161489862,17.5,CORNFIELD BAKERY
OXFORDSHIRE CC,CHILDREN'S & EDUCATION,PAUSE PROGRAMME,OTHER TRANSPORT ARRANGEMENTS,18/10/2023,9161489584,4,REDBRIDGE PARK AND RID
OXFORDSHIRE CC,CHILDREN'S & EDUCATION,"	LEAVING CARE NORTH",MATERIALS,18/10/2023,9161489600,119.98,AMAZON.CO.UK H86062KO4
OXFORDSHIRE CC,CHILDREN'S & EDUCATION,THAME E&A HOME,CATERING,18/10/2023,9161489608,2.2,THAME BP SF CONNECT
OXFORDSHIRE CC,CORPORATE CORE,INCOME TEAM,PAYMENT TO GOVERNMENT DEPARTMENTS,18/10/2023,9161489616,"1,188.65",WWW.MONEYCLAIM.GOV
OXFORDSHIRE CC,CHILDREN'S & EDUCATION,"	DIRECTOR'S OFFICE",POSTAGE AND DELIVERY,18/10/2023,9161489602,-4.49,ROYAL MAIL GROUP LTD
OXFORDSHIRE CC,CORPORATE CORE,INCOME TEAM,PAYMENT TO GOVERNMENT DEPARTMENTS,18/10/2023,9161489618,115,WWW.MONEYCLAIM.GOV
OXFORDSHIRE CC,CHILDREN'S & EDUCATION,FAMILY SOLUTIONS PLUS NON-STAFF � SOUTH,SUBSCRIPTIONS,18/10/2023,9161489612,156,JERICHO CA
OXFORDSHIRE CC,SOCIAL AND COMMUNITY SERVICES,SCHOOLS FM CATERING AREA 2,CATERING PROVISIONS,18/10/2023,9161489606,7.98,TESCO STORES 2994
OXFORDSHIRE CC,CORPORATE CORE,INCOME TEAM,PAYMENT TO GOVERNMENT DEPARTMENTS,18/10/2023,9161489614,115,WWW.MONEYCLAIM.GOV
OXFORDSHIRE CC,CHILDREN'S & EDUCATION,"	LEAVING CARE NORTH",CATERING PROVISIONS,18/10/2023,9161489852,30.62,TESCO STORES 2064
OXFORDSHIRE CC,SOCIAL AND COMMUNITY SERVICES,LIB ICT SUPPRT&MAINT,MATERIALS,18/10/2023,9161489860,36.38,AMZNMKTPLACE
OXFORDSHIRE CC,CORPORATE CORE,ICT OPERATIONS & MAI,MATERIALS,18/10/2023,9161489868,48.09,AMZNMKTPLACE
OXFORDSHIRE CC,CORPORATE CORE,ICT OPERATIONS & MAI,MATERIALS,18/10/2023,9161489866,20.55,AMZNMKTPLACE
OXFORDSHIRE CC,CHILDREN'S & EDUCATION,40 THE MOORS,MATERIALS,18/10/2023,9161489890,14.39,AMZNMKTPLACE
OXFORDSHIRE CC,CHILDREN'S & EDUCATION,40 THE MOORS,CATERING PROVISIONS,18/10/2023,9161489892,33.97,T K MAXX
OXFORDSHIRE CC,CHILDREN'S & EDUCATION,40 THE MOORS,MATERIALS,18/10/2023,9161489904,15.99,AMZNMKTPLACE
OXFORDSHIRE CC,CHILDREN'S & EDUCATION,"	LEAVING CARE CITY 2",OTHER TRANSPORT ARRANGEMENTS,18/10/2023,9161489636,8,STGCOACH/CTYLINK
OXFORDSHIRE CC,SOCIAL AND COMMUNITY SERVICES,CSS WITNEY,CATERING PROVISIONS,18/10/2023,9161489630,16.64,MARKS&SPENCER PLC
OXFORDSHIRE CC,CHILDREN'S & EDUCATION,"	LEAVING CARE CITY 2",PAYMENTS TO TRANSPORT OPERATORS,18/10/2023,9161489632,7.8,BANBURY STATION T/O
OXFORDSHIRE CC,CHILDREN'S & EDUCATION,"	LEAVING CARE CITY 2",PAYMENTS TO TRANSPORT OPERATORS,18/10/2023,9161489634,17.3,BICESTER NORTH STATION
OXFORDSHIRE CC,CHILDREN'S & EDUCATION,TRANSPORT COSTS,TRANSPORT TO SCHOOL,18/10/2023,9161489382,247.5,SQ  CIARASCARS ALLOA
OXFORDSHIRE CC,CHILDREN'S & EDUCATION,CHILDREN IN CARE NON-STAFFING - SOUTH,NON-STAFF SUBSISTENCE AND EXPENSES,18/10/2023,9161489390,140,ASDA STORES LTD
OXFORDSHIRE CC,PUBLIC HEALTH,CHILDREN IN CARE NON-STAFFING - SOUTH,PAYMENT TO GOVERNMENT DEPARTMENTS,18/10/2023,9161489388,58.5,HM PASSPORT OFFICE
OXFORDSHIRE CC,CHILDREN'S & EDUCATION,CSS WALLINGFORD,CATERING PROVISIONS,18/10/2023,9161489376,20.85,WAITROSE 675
OXFORDSHIRE CC,CHILDREN'S & EDUCATION,TRANSPORT COSTS,TRANSPORT TO SCHOOL,18/10/2023,9161489384,247.5,SQ  CIARASCARS ALLOA
OXFORDSHIRE CC,CHILDREN'S & EDUCATION,EYNSHAM,CATERING,18/10/2023,9161489392,3.7,CO-OPERATIVE FOOD
OXFORDSHIRE CC,SOCIAL AND COMMUNITY SERVICES,CSS - ABINGDON,CATERING PROVISIONS,18/10/2023,9161489396,25.56,TESCO STORES 2008
OXFORDSHIRE CC,SOCIAL AND COMMUNITY SERVICES,"	MTFC",ENTERTAINMENT EXPENSES,18/10/2023,9161489876,25.9,WWW.REDKANGAROO.CO.UK
OXFORDSHIRE CC,CHILDREN'S & EDUCATION,"DIDCOT CC, PARK ROAD",CATERING PROVISIONS,18/10/2023,9161489884,4.2,SAINSBURYS S/MKTS
OXFORDSHIRE CC,CORPORATE CORE,SCHOOLS FM CATERING AREA 1,CATERING PROVISIONS,18/10/2023,9161489880,55.95,LIDL GB  BICESTER
OXFORDSHIRE CC,CORPORATE CORE,ICT OPERATIONS & MAI,MATERIALS,18/10/2023,9161489870,189.81,AMZNMKTPLACE
OXFORDSHIRE CC,SOCIAL AND COMMUNITY SERVICES,"	MTFC",HOSPITALITY EXPENSES,18/10/2023,9161489878,50.1,TORINO LOUNGE
OXFORDSHIRE CC,CHILDREN'S & EDUCATION,WITNEY,OTHER TRANSPORT ARRANGEMENTS,18/10/2023,9161489874,1,CP PLUS - OXFORD HEALT
OXFORDSHIRE CC,CHILDREN'S & EDUCATION,"	LEAVING CARE NORTH",OTHER TRANSPORT ARRANGEMENTS,18/10/2023,9161489694,4.2,VALE OF WH PARKING FEE
OXFORDSHIRE CC,CHILDREN'S & EDUCATION,40 THE MOORS,CATERING,18/10/2023,9161489894,4.25,SAINSBURYS S/MKTS
OXFORDSHIRE CC,CHILDREN'S & EDUCATION,CHILDREN IN CARE NON-STAFFING - SOUTH,PAYMENTS TO TRANSPORT OPERATORS,18/10/2023,9161489386,13.03,TRAINLINE
OXFORDSHIRE CC,CORPORATE CORE,FRONTIER CAV EU PROJECT,OTHER TRANSPORT ARRANGEMENTS,18/10/2023,9161489994,5.6,TFL TRAVEL CH
OXFORDSHIRE CC,CORPORATE CORE,,STATIONERY,18/10/2023,9161489794,14.06,LYRECO UK LTD
OXFORDSHIRE CC,ENVIRONMENT AND ECONOMY,DIDCOT LIBRARY,"NEWSPAPERS, PERIODICALS AND PUBLICATIONS",18/10/2023,9161489574,95.6,PPOINT_ AMIN NEWSAGENT
OXFORDSHIRE CC,SOCIAL AND COMMUNITY SERVICES,CSS - BANBURY,MATERIALS,18/10/2023,9161489946,32.99,DEBENHAMS.COM
OXFORDSHIRE CC,ENVIRONMENT AND ECONOMY,CAPABILITY & AMBITION FUND,OTHER TRANSPORT ARRANGEMENTS,18/10/2023,9161489440,2,ARRIVA THE SHIRES LIMI
OXFORDSHIRE CC,CHILDREN'S & EDUCATION,"	LEAVING CARE CITY 1",TELEPHONE - EQUIPMENT,18/10/2023,9161489448,11.99,AMZNMKTPLACE
OXFORDSHIRE CC,SOCIAL AND COMMUNITY SERVICES,CSS - BANBURY,ENTERTAINMENT EXPENSES,18/10/2023,9161489972,15.6,SPICEBALL LEISURE CENT
OXFORDSHIRE CC,SOCIAL AND COMMUNITY SERVICES,CSS - BANBURY,MATERIALS,18/10/2023,9161489948,47,SECRET GARDEN (FLOWERS
OXFORDSHIRE CC,CHILDREN'S & EDUCATION,40 THE MOORS,CATERING PROVISIONS,18/10/2023,9161489490,6.59,TESCO STORES 2788
OXFORDSHIRE CC,ENVIRONMENT AND ECONOMY,CAPABILITY & AMBITION FUND,PAYMENTS TO TRANSPORT OPERATORS,18/10/2023,9161489442,11,BANBURY SSTP
OXFORDSHIRE CC,SOCIAL AND COMMUNITY SERVICES,CSS - BANBURY,MATERIALS,18/10/2023,9161489950,127.42,AMZNMKTPLACE
OXFORDSHIRE CC,SOCIAL AND COMMUNITY SERVICES,CSS - BANBURY,MATERIALS,18/10/2023,9161489944,31.54,AMZNMKTPLACE
OXFORDSHIRE CC,CHILDREN'S & EDUCATION,EYNSHAM,CATERING PROVISIONS,18/10/2023,9161489920,22.34,HOME BARGAINS
OXFORDSHIRE CC,ENVIRONMENT AND ECONOMY,WASTE REDUCTION GEN,"PUBLICITY, PROMOTIONS AND ADVERTISEMENT",18/10/2023,9161489468,24.32,FACEBK 3YT3BUX8M2
OXFORDSHIRE CC,ENVIRONMENT AND ECONOMY,MAINTENANCE STAFF,CATERING PROVISIONS,18/10/2023,9161489670,16.6,TESCO STORES 2064
OXFORDSHIRE CC,CHILDREN'S & EDUCATION,HOUSE PROJECT,CATERING PROVISIONS,18/10/2023,9161489422,4.95,SAINSBURYS S/MKTS
OXFORDSHIRE CC,CHILDREN'S & EDUCATION,CHILDREN IN CARE NON-STAFFING - CENTRL 2,OTHER TRANSPORT ARRANGEMENTS,18/10/2023,9161489430,49.5,OXFORD BUS TICKETS
OXFORDSHIRE CC,ENVIRONMENT AND ECONOMY,HARD FM,PREMISES REPAIRS,18/10/2023,9161489416,10.99,ROBERT DYAS THAME
OXFORDSHIRE CC,CHILDREN'S & EDUCATION,CHILDREN IN CARE NON-STAFFING - CENTRL 1,PAYMENT TO GOVERNMENT DEPARTMENTS,18/10/2023,9161489432,22,OXFORDSHIRE CC WEB1
OXFORDSHIRE CC,ENVIRONMENT AND ECONOMY,HARD FM,PREMISES REPAIRS,18/10/2023,9161489418,34.32,B AND Q
OXFORDSHIRE CC,ENVIRONMENT AND ECONOMY,FLEET COSTS,VEHICLE - HIRE CHARGES,18/10/2023,9161489426,24.76,AMZNMKTPLACE
OXFORDSHIRE CC,SOCIAL AND COMMUNITY SERVICES,SCHOOLS FM CATERING AREA 4,CATERING PROVISIONS,18/10/2023,9161489428,19,CO-OPERATIVE FOOD
OXFORDSHIRE CC,CHILDREN'S & EDUCATION,UASC 16&17,PAYMENTS TO TRANSPORT OPERATORS,18/10/2023,9161489412,166.39,TRAINLINE
OXFORDSHIRE CC,ENVIRONMENT AND ECONOMY,HARD FM,PREMISES REPAIRS,18/10/2023,9161489414,35.5,WICKES BICESTER
OXFORDSHIRE CC,PUBLIC HEALTH,CHILDREN IN CARE NON-STAFFING - NORTH,ENTERTAINMENT EXPENSES,18/10/2023,9161489500,51.4,ESCAPE FOR REAL
OXFORDSHIRE CC,CORPORATE CORE,THAME LIBRARY,"NEWSPAPERS, PERIODICALS AND PUBLICATIONS",18/10/2023,9161489758,5.6,SAINSBURYS S/MKTS
OXFORDSHIRE CC,SOCIAL AND COMMUNITY SERVICES,BICESTER LIBRARY,EQUIPMENT,18/10/2023,9161489748,37.99,AMZNMKTPLACE
OXFORDSHIRE CC,CHILDREN'S & EDUCATION,UASC POST 18,FURNITURE,18/10/2023,9161489524,211.64,CARPETRIGHT PLC
OXFORDSHIRE CC,CHILDREN'S & EDUCATION,"	LOOKED AFTER NORTH",OTHER TRANSPORT ARRANGEMENTS,18/10/2023,9161489526,1.3,WARWICK DC PARKING
OXFORDSHIRE CC,CORPORATE CORE,,STATIONERY,18/10/2023,9161489800,488.81,LYRECO UK LTD
OXFORDSHIRE CC,CORPORATE CORE,,STATIONERY,18/10/2023,9161489808,119.82,LYRECO UK LTD
OXFORDSHIRE CC,CORPORATE CORE,,STATIONERY,18/10/2023,9161489802,43.2,LYRECO UK LTD
OXFORDSHIRE CC,CORPORATE CORE,,STATIONERY,18/10/2023,9161489804,122.84,LYRECO UK LTD
OXFORDSHIRE CC,CORPORATE CORE,,STATIONERY,18/10/2023,9161489806,120.24,LYRECO UK LTD
OXFORDSHIRE CC,CHILDREN'S & EDUCATION,EYNSHAM,CATERING PROVISIONS,18/10/2023,9161489922,1.45,CO-OPERATIVE FOOD
OXFORDSHIRE CC,CHILDREN'S & EDUCATION,FAMILY SOLUTIONS PLUS NON-STAFF - NORTH,PAYMENTS TO TRANSPORT OPERATORS,18/10/2023,9161489924,58.7,WWW.GWR.COM
OXFORDSHIRE CC,SOCIAL AND COMMUNITY SERVICES,CSS WANTAGE,ENTERTAINMENT EXPENSES,18/10/2023,9161489696,14.72,HOLLYWOOD BOWL
OXFORDSHIRE CC,CHILDREN'S & EDUCATION,FAMILY SOLUTIONS PLUS NON-STAFF - NORTH,NON-STAFF SUBSISTENCE AND EXPENSES,18/10/2023,9161489918,125,THE BLUE BOAR
OXFORDSHIRE CC,CHILDREN'S & EDUCATION,FIELDWORK UASC,OTHER TRANSPORT ARRANGEMENTS,18/10/2023,9161489926,20,STGCOACH/CTYLINK
OXFORDSHIRE CC,SOCIAL AND COMMUNITY SERVICES,COMMUNITY PARTNERSHIP TEAM,CATERING PROVISIONS,18/10/2023,9161489466,11.85,MARKS&SPENCER PLC SF
OXFORDSHIRE CC,SOCIAL AND COMMUNITY SERVICES,CSS WANTAGE,ENTERTAINMENT EXPENSES,18/10/2023,9161489698,14.72,HOLLYWOOD BOWL
OXFORDSHIRE CC,CHILDREN'S & EDUCATION,SEND CASEWORK TEAM,POSTAGE AND DELIVERY,18/10/2023,9161489984,0.16,ROYAL MAIL GROUP LTD
OXFORDSHIRE CC,RESOURCES,LEGAL SERVICES,STAFF USE OF PUBLIC TRANSPORT,18/10/2023,9161489682,47.7,WWW.GWR.COM
OXFORDSHIRE CC,ENVIRONMENT AND ECONOMY,CAPABILITY & AMBITION FUND,OTHER TRANSPORT ARRANGEMENTS,18/10/2023,9161489438,2,ARRIVA THE SHIRES LIMI
OXFORDSHIRE CC,CHILDREN'S & EDUCATION,FAMILY SOLUTIONS PLUS NON-STAFF - NORTH,EDUCATIONAL AND VOCATIONAL TRAINING ,18/10/2023,9161489986,3,THE KIDZ BARN
OXFORDSHIRE CC,CHILDREN'S & EDUCATION,NTS UASC AGENCY,MATERIALS,18/10/2023,9161489684,105.16,AMAZON.CO.UK H82QW2K54
OXFORDSHIRE CC,CORPORATE CORE,,STATIONERY,18/10/2023,9161489784,11.71,LYRECO UK LTD
OXFORDSHIRE CC,SOCIAL AND COMMUNITY SERVICES,CSS - BANBURY,MATERIALS,18/10/2023,9161489954,7.98,AMZNMKTPLACE
OXFORDSHIRE CC,CHILDREN'S & EDUCATION,"	ADOPTION",OTHER MISC INC,18/10/2023,9161489962,169,SENSORY INTEGRATION ED
OXFORDSHIRE CC,CHILDREN'S & EDUCATION,CSS - ABINGDON,MATERIALS,18/10/2023,9161489996,26.7,ALDI STORES
OXFORDSHIRE CC,SOCIAL AND COMMUNITY SERVICES,CSS - BANBURY,MATERIALS,18/10/2023,9161489952,8.69,AMZNMKTPLACE
OXFORDSHIRE CC,CHILDREN'S & EDUCATION,FAMILY SOLUTIONS PLUS NON-STAFF � SOUTH,PAYMENT TO GOVERNMENT DEPARTMENTS,18/10/2023,9161489960,58.5,HM PASSPORT OFFICE
OXFORDSHIRE CC,CHILDREN'S & EDUCATION,FPT SOUTH/VALE,PAYMENTS TO TRANSPORT OPERATORS,18/10/2023,9161490004,179.64,TRAINLINE
OXFORDSHIRE CC,CHILDREN'S & EDUCATION,FSP NON-STAFFING - CENTRAL,PAYMENT TO GOVERNMENT DEPARTMENTS,18/10/2023,9161489740,70,OXFORDSHIRE CC WEB1
OXFORDSHIRE CC,CORPORATE CORE,"MARKETING, COMMUNICATIONS & ENGAGEMENT",PROFESSIONAL SUBSCRIPTIONS,18/10/2023,9161489724,8.49,GOOGLE  GOOGLE PLAY AP
OXFORDSHIRE CC,CHILDREN'S & EDUCATION,FSP NON-STAFFING - CENTRAL,PAYMENT TO GOVERNMENT DEPARTMENTS,18/10/2023,9161489742,53.5,HM PASSPORT OFFICE
OXFORDSHIRE CC,CHILDREN'S & EDUCATION,EYNSHAM,CATERING,18/10/2023,9161489780,3.15,TESCO PFS 2488
OXFORDSHIRE CC,CHILDREN'S & EDUCATION,EYNSHAM,PURCHASE OF IT EQUIPMENT,18/10/2023,9161489774,19.99,AMZNMKTPLACE
OXFORDSHIRE CC,CHILDREN'S & EDUCATION,EYNSHAM,CATERING PROVISIONS,18/10/2023,9161489782,7.25,CO-OPERATIVE FOOD
OXFORDSHIRE CC,CORPORATE CORE,,STATIONERY,18/10/2023,9161489786,333.65,LYRECO UK LTD
OXFORDSHIRE CC,CHILDREN'S & EDUCATION,CSS - ABINGDON,PAYMENTS TO TRANSPORT OPERATORS,18/10/2023,9161489998,11.7,GWR DIDCOT PKWY TO
OXFORDSHIRE CC,SOCIAL AND COMMUNITY SERVICES,CSS - BANBURY,MATERIALS,18/10/2023,9161489956,96.46,AMZNMKTPLACE
OXFORDSHIRE CC,SOCIAL AND COMMUNITY SERVICES,CSS - BANBURY,CATERING PROVISIONS,18/10/2023,9161489958,0.92,SAINSBURYS S/MKTS
OXFORDSHIRE CC,CHILDREN'S & EDUCATION,CSS - ABINGDON,OTHER TRANSPORT ARRANGEMENTS,18/10/2023,9161490000,6.45,ZETTLE_ AFTAB HUSSAIN
OXFORDSHIRE CC,CUSTOMER AND CULTURE,REACTIVE MAINTENANCE,PAYMENTS TO TRANSPORT OPERATORS,18/10/2023,9161489966,37.4,GWR OXFORD TO
OXFORDSHIRE CC,CHILDREN'S & EDUCATION,EYNSHAM,CATERING PROVISIONS,18/10/2023,9161489778,180.45,TESCO STORES 2008
OXFORDSHIRE CC,CHILDREN'S & EDUCATION,EYNSHAM,MANAGEMENT CONSULTANT FEES,18/10/2023,9161489776,159,TVLICENSING.CO.UK
OXFORDSHIRE CC,CHILDREN'S & EDUCATION,CHILDREN IN CARE NON-STAFFING - NORTH,PAYMENTS TO TRANSPORT OPERATORS,18/10/2023,9161489502,70.11,WELLINGBOROUGH
OXFORDSHIRE CC,CHILDREN'S & EDUCATION,EYNSHAM,CATERING PROVISIONS,18/10/2023,9161489744,8.75,MAYFIELD EGGS
OXFORDSHIRE CC,CORPORATE CORE,,STATIONERY,18/10/2023,9161489790,52.08,LYRECO UK LTD
OXFORDSHIRE CC,CHILDREN'S & EDUCATION,UASC POST 18,FIXTURES & FITTINGS,18/10/2023,9161489518,229,CURRYS BANBURY
OXFORDSHIRE CC,CHILDREN'S & EDUCATION,UASC POST 18,MATERIALS,18/10/2023,9161489520,309,CURRYS BANBURY
OXFORDSHIRE CC,CHILDREN'S & EDUCATION,"	LOOKED AFTER NORTH",OTHER TRANSPORT ARRANGEMENTS,18/10/2023,9161489528,1.3,WARWICK DC PARKING
OXFORDSHIRE CC,CHILDREN'S & EDUCATION,UASC POST 18,CLIENT LODGINGS AND ACCOMMODATION,18/10/2023,9161489522,499,BROMFORD HOUSING ASSOC
OXFORDSHIRE CC,CHILDREN'S & EDUCATION,"	LOOKED AFTER NORTH",CATERING PROVISIONS,18/10/2023,9161489530,11.98,TESCO STORES 2813
OXFORDSHIRE CC,CORPORATE CORE,,STATIONERY,18/10/2023,9161489788,12.12,LYRECO UK LTD
OXFORDSHIRE CC,CORPORATE CORE,,STATIONERY,18/10/2023,9161489798,23.53,LYRECO UK LTD
OXFORDSHIRE CC,CORPORATE CORE,,STATIONERY,18/10/2023,9161489792,34.98,LYRECO UK LTD
OXFORDSHIRE CC,CORPORATE CORE,,STATIONERY,18/10/2023,9161489796,14.64,LYRECO UK LTD
OXFORDSHIRE CC,CORPORATE CORE,,STATIONERY,17/10/2023,9156173970,23.9,LYRECO UK LTD
OXFORDSHIRE CC,CHILDREN'S & EDUCATION,DIDCOT MOVE-ON HOME,CATERING PROVISIONS,17/10/2023,9156174082,13.19,SAINSBURYS S/MKTS
OXFORDSHIRE CC,ENVIRONMENT AND ECONOMY,PMO,POSTAGE AND DELIVERY,17/10/2023,9156174076,16.45,ROYAL MAIL GROUP LTD
OXFORDSHIRE CC,CORPORATE CORE,"MARKETING, COMMUNICATIONS & ENGAGEMENT","PUBLICITY, PROMOTIONS AND ADVERTISEMENT",17/10/2023,9156173840,500,FACEBK  XP92MUP9Z2
OXFORDSHIRE CC,CORPORATE CORE,,STATIONERY,17/10/2023,9156173984,369.14,LYRECO UK LTD
OXFORDSHIRE CC,CHILDREN'S & EDUCATION,HOUSE PROJECT,CATERING PROVISIONS,17/10/2023,9156174000,30,TESCO STORES 2008
OXFORDSHIRE CC,CHILDREN'S & EDUCATION,CHILDREN IN CARE NON-STAFFING - SOUTH,NON-STAFF SUBSISTENCE AND EXPENSES,17/10/2023,9156173196,70,ASDA STORES LTD
OXFORDSHIRE CC,CHILDREN'S & EDUCATION,CSS WANTAGE,CATERING PROVISIONS,17/10/2023,9156173212,133.2,WANTAGE MOTOR GROUP
OXFORDSHIRE CC,CORPORATE CORE,,STATIONERY,17/10/2023,9156173988,64.63,LYRECO UK LTD
OXFORDSHIRE CC,CHILDREN'S & EDUCATION,"	LEAVING CARE NORTH",MATERIALS,17/10/2023,9156174004,100,ONE4ALL
OXFORDSHIRE CC,CHILDREN'S & EDUCATION,"	LEAVING CARE SOUTH",OTHER TRANSPORT ARRANGEMENTS,17/10/2023,9156173414,92.3,OXFORDBUS.CO.UK
OXFORDSHIRE CC,SOCIAL AND COMMUNITY SERVICES,CSS - ABINGDON,CATERING PROVISIONS,17/10/2023,9156174172,57.55,NISBETS LTD
OXFORDSHIRE CC,CHILDREN'S & EDUCATION,THAME E&A HOME,TELEPHONE - EQUIPMENT,17/10/2023,9156173336,10,VODAFONE LTD
OXFORDSHIRE CC,ENVIRONMENT AND ECONOMY,"	HWAYS NETWORK MGT",TRAINING RELATED EXPENDITURE,17/10/2023,9156173294,462,C & C TRAINING LTD
OXFORDSHIRE CC,SOCIAL AND COMMUNITY SERVICES,CSS BICESTER,CATERING PROVISIONS,17/10/2023,9156173242,71.88,TESCO STORES 2162
OXFORDSHIRE CC,ENVIRONMENT AND ECONOMY,HARD FM,PREMISES REPAIRS,17/10/2023,9156173220,27.56,OXFORD FENCING SUPPLIE
OXFORDSHIRE CC,CHILDREN'S & EDUCATION,THAME E&A HOME,CATERING PROVISIONS,17/10/2023,9156173340,237.66,TESCO STORES 2038
OXFORDSHIRE CC,CHILDREN'S & EDUCATION,"	LEAVING CARE CITY 1",OTHER TRANSPORT ARRANGEMENTS,17/10/2023,9156173298,9,THORPE PARK RESORT
OXFORDSHIRE CC,CHILDREN'S & EDUCATION,THAME E&A HOME,CATERING PROVISIONS,17/10/2023,9156173250,6,CO-OPERATIVE FOOD
OXFORDSHIRE CC,CHILDREN'S & EDUCATION,CHILDREN IN CARE NON-STAFFING - SOUTH,OTHER EXPENSES,17/10/2023,9156173192,85.5,NATIONAL AQUARIUM.CO.U
OXFORDSHIRE CC,ENVIRONMENT AND ECONOMY,HARD FM,PREMISES REPAIRS,17/10/2023,9156173222,66.7,WICKES BANBURY
OXFORDSHIRE CC,CHILDREN'S & EDUCATION,40 THE MOORS,CATERING PROVISIONS,17/10/2023,9156173836,7.48,TESCO STORES 2788
OXFORDSHIRE CC,CHILDREN'S & EDUCATION,THAME E&A HOME,MATERIALS,17/10/2023,9156173342,12.5,AMZNMKTPLACE
OXFORDSHIRE CC,SOCIAL AND COMMUNITY SERVICES,"	TRANSPORT GENERAL",VEHICLE EQUIPMENT AND EXPENSES - OTHER,17/10/2023,9156173290,130.15,ENTERPRISE RENT A CAR
OXFORDSHIRE CC,CHILDREN'S & EDUCATION,"	DISABILITIES TEAM-C",PAYMENTS TO TRANSPORT OPERATORS,17/10/2023,9156173306,57.2,CHILTERN RAILWAYS
OXFORDSHIRE CC,CHILDREN'S & EDUCATION,40 THE MOORS,CATERING,17/10/2023,9156173844,157.02,SAINSBURYS.CO.UK
OXFORDSHIRE CC,CHILDREN'S & EDUCATION,"	LOOKED AFTER NORTH",VEHICLE FUEL,17/10/2023,9156174022,31.49,W M MORRISON PETROL
OXFORDSHIRE CC,SOCIAL AND COMMUNITY SERVICES,LIB ICT SUPPRT&MAINT,PURCHASE OF IT EQUIPMENT,17/10/2023,9156174046,388.73,PRUSA RESEARCH
OXFORDSHIRE CC,SOCIAL AND COMMUNITY SERVICES,"	MTFC",CATERING PROVISIONS,17/10/2023,9156174066,12.6,SAINSBURYS S MKTS
OXFORDSHIRE CC,CHILDREN'S & EDUCATION,DIDCOT MOVE-ON HOME,EQUIPMENT,17/10/2023,9156174080,7,SAINSBURYS S/MKTS
OXFORDSHIRE CC,CHILDREN'S & EDUCATION,THAME E&A HOME,MATERIALS,17/10/2023,9156174092,12.49,ROBERT DYAS THAME
OXFORDSHIRE CC,CHILDREN'S & EDUCATION,40 THE MOORS,CATERING PROVISIONS,17/10/2023,9156173832,1.95,TESCO STORES 2788
OXFORDSHIRE CC,CHILDREN'S & EDUCATION,UASC POST 18,OTHER TRANSPORT ARRANGEMENTS,17/10/2023,9156173868,17,OXFORDBUS.CO.UK
OXFORDSHIRE CC,SOCIAL AND COMMUNITY SERVICES,CSS - BANBURY,CATERING PROVISIONS,17/10/2023,9156174160,96.93,SAINSBURYS.CO.UK
OXFORDSHIRE CC,CHILDREN'S & EDUCATION,"	RESIDENTIAL STRATEGY",VEHICLE FUEL,17/10/2023,9156174164,20.69,SHELL CHASE 508
OXFORDSHIRE CC,SOCIAL AND COMMUNITY SERVICES,CSS - ABINGDON,PROFESSIONAL SUBSCRIPTIONS,17/10/2023,9156174180,88.75,PPL PRS LTD
OXFORDSHIRE CC,CHILDREN'S & EDUCATION,EYNSHAM,CATERING PROVISIONS,17/10/2023,9156174144,13.65,WAITROSE 142
OXFORDSHIRE CC,SOCIAL AND COMMUNITY SERVICES,CSS - ABINGDON,CATERING EQUIPMENT,17/10/2023,9156174168,45,WWW.ARGOS.CO.UK
OXFORDSHIRE CC,SOCIAL AND COMMUNITY SERVICES,WALLINGFORD LIBRARY,CATERING PROVISIONS,17/10/2023,9156174026,2.45,WAITROSE 675
OXFORDSHIRE CC,ENVIRONMENT AND ECONOMY,PMO,POSTAGE AND DELIVERY,17/10/2023,9156174072,16.45,ROYAL MAIL GROUP LTD
OXFORDSHIRE CC,CHILDREN'S & EDUCATION,EYNSHAM,DRUGS AND MEDICAL SUPPLIES,17/10/2023,9156174148,19.63,SUPERDRUG STORES PLC
OXFORDSHIRE CC,CHILDREN'S & EDUCATION,PAUSE PROGRAMME,HARDWARE AND CROCKERY,17/10/2023,9156173456,-5.5,HOMEBASE.CO.UK
OXFORDSHIRE CC,CHILDREN'S & EDUCATION,40 THE MOORS,OTHER TRANSPORT ARRANGEMENTS,17/10/2023,9156173828,20,STGCOACH/CTYLINK
OXFORDSHIRE CC,CORPORATE CORE,,STATIONERY,17/10/2023,9156173992,17.93,LYRECO UK LTD
OXFORDSHIRE CC,CORPORATE CORE,,STATIONERY,17/10/2023,9156173976,12.44,LYRECO UK LTD
OXFORDSHIRE CC,SOCIAL AND COMMUNITY SERVICES,"	MTFC",ENTERTAINMENT EXPENSES,17/10/2023,9156174058,8,BANNATYNE HC BANBURY
OXFORDSHIRE CC,SOCIAL AND COMMUNITY SERVICES,CSS - ABINGDON,DAY ACTIVITIES,17/10/2023,9156174176,84,TRUST FOR SUSTAINA
OXFORDSHIRE CC,CHILDREN'S & EDUCATION,"	LOOKED AFTER NORTH",PAYMENTS TO TRANSPORT OPERATORS,17/10/2023,9156174040,18.23,TRAINLINE
OXFORDSHIRE CC,SOCIAL AND COMMUNITY SERVICES,"	MTFC",ENTERTAINMENT EXPENSES,17/10/2023,9156174062,3.6,BANNATYNE HC BANBURY
OXFORDSHIRE CC,CORPORATE CORE,CATERING MANAGEMENT SOFT FM,OTHER TRANSPORT ARRANGEMENTS,17/10/2023,9156174154,2.3,VALE OF WH PARKING FEE
OXFORDSHIRE CC,CORPORATE CORE,,STATIONERY,17/10/2023,9156173980,2.77,LYRECO UK LTD
OXFORDSHIRE CC,ENTERPRISEVC,,CAR LEASING - PRIVATE RENTALS,17/10/2023,9156173996,"1,915.13",ENTERPRISE RENT-A-CAR
OXFORDSHIRE CC,CORPORATE CORE,,STATIONERY,17/10/2023,9156173968,86.16,LYRECO UK LTD
OXFORDSHIRE CC,CHILDREN'S & EDUCATION,"	LEAVING CARE CITY 1",CATERING,17/10/2023,9156173302,44.66,BURGER KING
OXFORDSHIRE CC,CHILDREN'S & EDUCATION,MANAGEMENT RECHARGES,PAYMENTS TO VOLUNTARY BODIES,17/10/2023,9156173522,89,CVAA UK LTD
OXFORDSHIRE CC,ADULTS,FIELDWORK UASC,OTHER TRANSPORT ARRANGEMENTS,17/10/2023,9156173538,14,OXFORDBUS.CO.UK
OXFORDSHIRE CC,CORPORATE CORE,,STATIONERY,17/10/2023,9156173972,14.06,LYRECO UK LTD
OXFORDSHIRE CC,CHILDREN'S & EDUCATION,"	LEAVING CARE CITY 2",CATERING,17/10/2023,9156173638,20,SMASH COW
OXFORDSHIRE CC,CHILDREN'S & EDUCATION,MANAGEMENT RECHARGES,HIRE OF ACCOMMODATION AND FACILITIES,17/10/2023,9156173524,44.2,WWW.WESTBERKS.GOV.UK
OXFORDSHIRE CC,CHILDREN'S & EDUCATION,"	OCCG GRANT",DOMESTIC SUPPLIES,17/10/2023,9156173528,1.79,TESCO STORES 2994
OXFORDSHIRE CC,CUSTOMER AND CULTURE,HARD FM,HARDWARE AND CROCKERY,17/10/2023,9156174232,92.02,WOLSELEY UK
OXFORDSHIRE CC,CHILDREN'S & EDUCATION,"	RESIDENTIAL STRATEGY",CATERING,17/10/2023,9156173518,34.48,DOMINOS PIZZA
OXFORDSHIRE CC,CHILDREN'S & EDUCATION,EYNSHAM,CATERING PROVISIONS,17/10/2023,9156173888,8.75,MAYFIELDEGGS
OXFORDSHIRE CC,CORPORATE CORE,THAME LIBRARY,"NEWSPAPERS, PERIODICALS AND PUBLICATIONS",17/10/2023,9156173920,5.6,SAINSBURYS S/MKTS
OXFORDSHIRE CC,CHILDREN'S & EDUCATION,PAUSE PROGRAMME,CATERING PROVISIONS,17/10/2023,9156173572,10.5,TESCO STORES 6167
OXFORDSHIRE CC,CHILDREN'S & EDUCATION,"	LEAVING CARE CITY 2",OTHER TRANSPORT ARRANGEMENTS,17/10/2023,9156173634,2,STGCOACH/CTYLINK
OXFORDSHIRE CC,ENVIRONMENT AND ECONOMY,"	COUNTY HALL",MATERIALS,17/10/2023,9156173676,39.95,AMZNMKTPLACE
OXFORDSHIRE CC,CHILDREN'S & EDUCATION,THAME E&A HOME,ADHOC SITE ANDGROUNDS MAINTENANCE COSTS,17/10/2023,9156173762,18,TESCO STORES 2994
OXFORDSHIRE CC,CHILDREN'S & EDUCATION,CNTL EARLY HELP-BRTN,CATERING PROVISIONS,17/10/2023,9156173904,3.5,CO OPERATIVE FOOD
OXFORDSHIRE CC,SHARED SERVICES,CSC SUPP & SERVICES,PURCHASE OF IT EQUIPMENT,17/10/2023,9156173418,79.99,AMAZON.CO.UK H82MX16J4
OXFORDSHIRE CC,CHILDREN'S & EDUCATION,HOUSE PROJECT,OTHER TRANSPORT ARRANGEMENTS,17/10/2023,9156174218,4.8,WESTGATE OXFORD CAR PA
OXFORDSHIRE CC,CHILDREN'S & EDUCATION,"	LEAVING CARE NORTH",CATERING,17/10/2023,9156174260,13.78,BURGER KING
OXFORDSHIRE CC,SOCIAL AND COMMUNITY SERVICES,SCHOOLS FM CATERING AREA 1,CATERING PROVISIONS,17/10/2023,9156173558,15.3,CO OPERATIVE FOOD
OXFORDSHIRE CC,ENVIRONMENT AND ECONOMY,"	COUNTRYSIDE PREMISES",GENERAL REFUSE COLLECTION AND DISPOSAL,17/10/2023,9156173578,426,M & M SKIP HIRE
OXFORDSHIRE CC,SOCIAL AND COMMUNITY SERVICES,CSS WITNEY,MATERIALS,17/10/2023,9156173766,2.96,AMZNMKTPLACE
OXFORDSHIRE CC,SOCIAL AND COMMUNITY SERVICES,CSS - BANBURY,CATERING PROVISIONS,17/10/2023,9156174212,1.75,WM MORRISONS STORE
OXFORDSHIRE CC,CHILDREN'S & EDUCATION,PAUSE PROGRAMME,OTHER TRANSPORT ARRANGEMENTS,17/10/2023,9156173566,4,OXFORD BUS COMPANY
OXFORDSHIRE CC,CHILDREN'S & EDUCATION,"	LEAVING CARE CITY 2",CATERING,17/10/2023,9156173596,50.75,BURGER KING
OXFORDSHIRE CC,CHILDREN'S & EDUCATION,"	LEAVING CARE CITY 2",OTHER TRANSPORT ARRANGEMENTS,17/10/2023,9156173630,1.7,STGCOACH/CTYLINK
OXFORDSHIRE CC,CHILDREN'S & EDUCATION,FAMILY SOLUTIONS PLUS NON-STAFF - NORTH,PAYMENTS TO TRANSPORT OPERATORS,17/10/2023,9156174292,33.62,TRAINLINE
OXFORDSHIRE CC,CHILDREN'S & EDUCATION,CARE LEAVERS STAFFING,CLOTHING AND UNIFORMS,17/10/2023,9156174334,50,VOUCHER EXPRESS
OXFORDSHIRE CC,CHILDREN'S & EDUCATION,"	OCCG GRANT",CATERING,17/10/2023,9156173462,25.12,MIDDLE EAST SUPERMARKE
OXFORDSHIRE CC,CHILDREN'S & EDUCATION,VULNERABLE LEARNERS,EDUCATIONAL AND VOCATIONAL TRAINING ,17/10/2023,9156173480,20,WWW.ANNAFREUD.ORG
OXFORDSHIRE CC,CHILDREN'S & EDUCATION,WITNEY,CATERING PROVISIONS,17/10/2023,9156173792,1.39,SAINSBURYS S/MKTS
OXFORDSHIRE CC,CORPORATE CORE,BRIDGES GENERAL,PAYMENT TO GOVERNMENT DEPARTMENTS,17/10/2023,9156174338,633.02,VALE OF WHITE HORSE DC
OXFORDSHIRE CC,SOCIAL AND COMMUNITY SERVICES,CSS - BANBURY,MATERIALS,17/10/2023,9156174214,6,POUNDLAND LTD - 2308
OXFORDSHIRE CC,CHILDREN'S & EDUCATION,SEND CASEWORK TEAM,POSTAGE AND DELIVERY,17/10/2023,9156174276,6.49,ROYAL MAIL GROUP LTD
OXFORDSHIRE CC,CHILDREN'S & EDUCATION,"	LEAVING CARE CITY 2",CATERING PROVISIONS,17/10/2023,9156173600,3.8,WELCOME BREAK-OXFORD
OXFORDSHIRE CC,CHILDREN'S & EDUCATION,BANBURY CC,CATERING PROVISIONS,17/10/2023,9156174206,6.2,WAITROSE 874
OXFORDSHIRE CC,CHILDREN'S & EDUCATION,HOUSE PROJECT,CATERING PROVISIONS,17/10/2023,9156174224,12,POUNDLAND LTD - 1586
OXFORDSHIRE CC,ENVIRONMENT AND ECONOMY,MUSEUMS COLLECTIONS,PREMISES REPAIRS,17/10/2023,9156174264,243,NETWORK WASTE
OXFORDSHIRE CC,CHILDREN'S & EDUCATION,"	SEN/ICT EQUIPMENT",PURCHASE OF IT EQUIPMENT,17/10/2023,9156174280,21.88,AMZNMKTPLACE
OXFORDSHIRE CC,CHILDREN'S & EDUCATION,CHILDREN IN CARE NON-STAFFING - NORTH,CATERING PROVISIONS,17/10/2023,9156173604,9.69,WM MORRISONS STORE
OXFORDSHIRE CC,CHILDREN'S & EDUCATION,FAMILY SOLUTIONS PLUS NON-STAFF � SOUTH,PAYMENT TO GOVERNMENT DEPARTMENTS,17/10/2023,9156174228,-131,HM PASSPORT OFFICE
OXFORDSHIRE CC,ENVIRONMENT AND ECONOMY,MUSEUMS COLLECTIONS,MATERIALS,17/10/2023,9156174268,243,NETWORK WASTE
OXFORDSHIRE CC,CHILDREN'S & EDUCATION,"	SEN/ICT EQUIPMENT",IT SOFTWARE,17/10/2023,9156174284,343.2,HELPKIDZLEARN
OXFORDSHIRE CC,CHILDREN'S & EDUCATION,"	LEAVING CARE CITY 2",ENTERTAINMENT EXPENSES,17/10/2023,9156173594,9,THORPE PARK RESORT
OXFORDSHIRE CC,CHILDREN'S & EDUCATION,"	LOOKED AFTER NORTH",CATERING PROVISIONS,17/10/2023,9156173476,10,TESCO GIFT CARD
OXFORDSHIRE CC,CHILDREN'S & EDUCATION,FSP NON-STAFFING - CENTRAL,HARDWARE AND CROCKERY,17/10/2023,9156174254,-38.4,HOMEBASE.CO.UK
OXFORDSHIRE CC,CHILDREN'S & EDUCATION,"	OCCG GRANT",CATERING,17/10/2023,9156173468,34.69,LIDL GB
OXFORDSHIRE CC,CHILDREN'S & EDUCATION,"	HEARING IMPAIRMENT","SUPPLIES, STATIONERY AND MATERIALS",17/10/2023,9156174288,198.12,GL-ASSESMENT.CO.UK
OXFORDSHIRE CC,CHILDREN'S & EDUCATION,"	LOOKED AFTER NORTH",VEHICLE FUEL,17/10/2023,9156173470,65.4,SHELL SWAN CLOSE ROAD
OXFORDSHIRE CC,SOCIAL AND COMMUNITY SERVICES,FLEET OPERATIONS,MATERIALS,17/10/2023,9156173490,144.26,BRAUNABILITY UK LTD
OXFORDSHIRE CC,CHILDREN'S & EDUCATION,"	LEAVING CARE NORTH",ENTERTAINMENT EXPENSES,16/10/2023,9147537722,453.6,THORPE PARK
OXFORDSHIRE CC,CHILDREN'S & EDUCATION,ADMINISTRATION,STATIONERY,16/10/2023,9147537586,44.55,CKB LTD
OXFORDSHIRE CC,CHILDREN'S & EDUCATION,40 THE MOORS,OTHER EXPENSES,16/10/2023,9147537602,3.96,OXFAM F9000
OXFORDSHIRE CC,CHILDREN'S & EDUCATION,40 THE MOORS,RESIDENTIAL ACTIVITIES,16/10/2023,9147537596,25,TESCO STORES 2788
OXFORDSHIRE CC,ENVIRONMENT AND ECONOMY,"	TVERC",CATERING,16/10/2023,9147537648,288.6,ORACLE 510 (BAXTERSTOR
OXFORDSHIRE CC,CHILDREN'S & EDUCATION,"	RESIDENTIAL STRATEGY",CATERING PROVISIONS,16/10/2023,9147537658,9,PINEAPPLE EVENTS FOOD
OXFORDSHIRE CC,CHILDREN'S & EDUCATION,"	OCCG GRANT",OTHER EXPENSES,16/10/2023,9147537318,2.49,THE LEYS PHARMACY
OXFORDSHIRE CC,CHILDREN'S & EDUCATION,"	RESIDENTIAL STRATEGY",VEHICLE EQUIPMENT AND EXPENSES - OTHER,16/10/2023,9147537326,16,WWW.MYTAXIAPP.CO.U
OXFORDSHIRE CC,CHILDREN'S & EDUCATION,"	RESIDENTIAL STRATEGY",CATERING PROVISIONS,16/10/2023,9147537320,3,ASDA PETROL 4202
OXFORDSHIRE CC,CHILDREN'S & EDUCATION,THAME E&A HOME,TELEPHONE - CALLS,16/10/2023,9147537328,11.89,ONTOPUP.COM
OXFORDSHIRE CC,CHILDREN'S & EDUCATION,"	RESIDENTIAL STRATEGY",OTHER EMPLOYEE EXPENSES,16/10/2023,9147537322,27.9,WWW.GWR.COM
OXFORDSHIRE CC,ADULTS,LEAVING CARE CITY 2,PROFESSIONAL SUBSCRIPTIONS,16/10/2023,9147537330,40.88,ALDI STORES
OXFORDSHIRE CC,CHILDREN'S & EDUCATION,"	RESIDENTIAL STRATEGY",CATERING PROVISIONS,16/10/2023,9147537324,7.05,TESCO STORES 5893
OXFORDSHIRE CC,ADULTS,LEAVING CARE CITY 2,PROFESSIONAL SUBSCRIPTIONS,16/10/2023,9147537332,11.89,ONTOPUP.COM
OXFORDSHIRE CC,CHILDREN'S & EDUCATION,"	OCCG GRANT",DOMESTIC SUPPLIES,16/10/2023,9147537278,8.75,TESCO STORES 2994
OXFORDSHIRE CC,CHILDREN'S & EDUCATION,UASC 16&17,RESIDENTIAL ACTIVITIES,16/10/2023,9147537288,27.5,ASDA STORE 4442
OXFORDSHIRE CC,CHILDREN'S & EDUCATION,"	RESIDENTIAL STRATEGY",CATERING,16/10/2023,9147537258,10.7,YO SUSHI
OXFORDSHIRE CC,CHILDREN'S & EDUCATION,"	RESIDENTIAL STRATEGY",CLOTHING AND UNIFORMS,16/10/2023,9147537266,72.7,PRIMARK - 660
OXFORDSHIRE CC,CHILDREN'S & EDUCATION,"	RESIDENTIAL STRATEGY",CLOTHING AND UNIFORMS,16/10/2023,9147537274,120,J D SPORTS   109
OXFORDSHIRE CC,CHILDREN'S & EDUCATION,"	RESIDENTIAL STRATEGY",MEMBERS TRAVEL AND SUSTENANCE,16/10/2023,9147537268,3,WORCESTER CITY COUNCIL
OXFORDSHIRE CC,CHILDREN'S & EDUCATION,MANAGEMENT RECHARGES,PAYMENT TO GOVERNMENT DEPARTMENTS,16/10/2023,9147537276,14,GEN REGISTER OFFICE
OXFORDSHIRE CC,CHILDREN'S & EDUCATION,THAME E&A HOME,MEMBERS TRAVEL AND SUSTENANCE,16/10/2023,9147537260,5,WORCESTER CITY COUNCIL
OXFORDSHIRE CC,CHILDREN'S & EDUCATION,"	RESIDENTIAL STRATEGY",TELEPHONE - EQUIPMENT,16/10/2023,9147537262,30,PHONE GURU
OXFORDSHIRE CC,CHILDREN'S & EDUCATION,"	RESIDENTIAL STRATEGY",TELEPHONE - EQUIPMENT,16/10/2023,9147537270,45,SUMUP   PLATINUM INVES
OXFORDSHIRE CC,CHILDREN'S & EDUCATION,"	RESIDENTIAL STRATEGY",CATERING,16/10/2023,9147537264,57.71,SAINSBURYS SUPERMA
OXFORDSHIRE CC,CHILDREN'S & EDUCATION,"	RESIDENTIAL STRATEGY",CATERING,16/10/2023,9147537272,14.91,JESSICAS SWEETS WORCES
OXFORDSHIRE CC,CHILDREN'S & EDUCATION,FAMILY SOLUTIONS PLUS NON-STAFF � SOUTH,HIRE OF ACCOMMODATION AND FACILITIES,16/10/2023,9147537568,192.74,TRAVELODGE
OXFORDSHIRE CC,CORPORATE CORE,SCHOOLS FM CATERING AREA 1,CATERING PROVISIONS,16/10/2023,9147537564,17.5,TESCO STORES 4480
OXFORDSHIRE CC,CORPORATE CORE,SCHOOLS FM CATERING AREA 1,MATERIALS,16/10/2023,9147537566,19.14,AMAZON.CO.UK H80L13PK4
OXFORDSHIRE CC,CORPORATE CORE,"MARKETING, COMMUNICATIONS & ENGAGEMENT","PUBLICITY, PROMOTIONS AND ADVERTISEMENT",16/10/2023,9147537574,49.36,SNAP INC SNAP SNAP ADS
OXFORDSHIRE CC,CHILDREN'S & EDUCATION,DIDCOT MOVE-ON HOME,FURNITURE,16/10/2023,9147537570,21.4,SAINSBURYS S/MKTS
OXFORDSHIRE CC,CHILDREN'S & EDUCATION,DIDCOT MOVE-ON HOME,FURNITURE,16/10/2023,9147537572,38.9,SAINSBURYS S/MKTS
OXFORDSHIRE CC,ENVIRONMENT AND ECONOMY,"	TVERC",CATERING,16/10/2023,9147537650,490,ORACLE 510 (BAXTERSTOR
OXFORDSHIRE CC,CHILDREN'S & EDUCATION,"	OCCG GRANT",OTHER TRANSPORT ARRANGEMENTS,16/10/2023,9147537366,120,CLR MUHAMMAD ASHFAQ
OXFORDSHIRE CC,CHILDREN'S & EDUCATION,40 THE MOORS,CATERING,16/10/2023,9147537610,2.4,GREGGS
OXFORDSHIRE CC,CHILDREN'S & EDUCATION,40 THE MOORS,OTHER EXPENSES,16/10/2023,9147537604,4.9,TESCO STORES 2994
OXFORDSHIRE CC,CHILDREN'S & EDUCATION,EYNSHAM,MATERIALS,16/10/2023,9147537612,24.5,HOBBYCRAFT
OXFORDSHIRE CC,CHILDREN'S & EDUCATION,40 THE MOORS,CATERING,16/10/2023,9147537608,9.1,COSTA COFFEE 43011357
OXFORDSHIRE CC,CHILDREN'S & EDUCATION,EYNSHAM,ENTERTAINMENT EXPENSES,16/10/2023,9147537614,8.5,TICKETCO
OXFORDSHIRE CC,CHILDREN'S & EDUCATION,40 THE MOORS,OTHER EXPENSES,16/10/2023,9147537606,9,COSTA COFFEE 43011357
OXFORDSHIRE CC,CHILDREN'S & EDUCATION,CSS WALLINGFORD,MATERIALS,16/10/2023,9147537020,8,WAITROSE 675
OXFORDSHIRE CC,CHILDREN'S & EDUCATION,CSS WALLINGFORD,MATERIALS,16/10/2023,9147537022,23.8,AMZNMKTPLACE
OXFORDSHIRE CC,CHILDREN'S & EDUCATION,CSS WALLINGFORD,CATERING,16/10/2023,9147537018,25.65,WAITROSE 675
OXFORDSHIRE CC,CHILDREN'S & EDUCATION,CSS WALLINGFORD,MATERIALS,16/10/2023,9147537016,28.17,AMZNMKTPLACE
OXFORDSHIRE CC,CHILDREN'S & EDUCATION,CSS WALLINGFORD,HEALTH AND SAFETY EQUIPMENT,16/10/2023,9147537024,16.11,AMZNMKTPLACE
OXFORDSHIRE CC,CHILDREN'S & EDUCATION,CHILDREN IN CARE NON-STAFFING - SOUTH,CATERING PROVISIONS,16/10/2023,9147537642,67,TESCO GIFT CARD
OXFORDSHIRE CC,CHILDREN'S & EDUCATION,FAMILY SOLUTIONS PLUS NON-STAFF - NORTH,PAYMENTS TO TRANSPORT OPERATORS,16/10/2023,9147537696,10.08,TRAINLINE
OXFORDSHIRE CC,CHILDREN'S & EDUCATION,QUALITY ASSURANCE SOUTH TEAM,PAYMENTS TO TRANSPORT OPERATORS,16/10/2023,9147537704,73.61,HOTELSCOM7205029596439
OXFORDSHIRE CC,CHILDREN'S & EDUCATION,THAME E&A HOME,MEDICAL AND COUNSELLING FEES,16/10/2023,9147537254,9.85,"BOOTS,THAME"
OXFORDSHIRE CC,CHILDREN'S & EDUCATION,DIDCOT MOVE-ON HOME,MATERIALS,16/10/2023,9147537240,1.69,SAINSBURYS S/MKTS
OXFORDSHIRE CC,ENVIRONMENT AND ECONOMY,"	NATURAL ENVIRONMENT",CLOTHING AND UNIFORMS,16/10/2023,9147537630,139.98,THE MARINE WAREHOUSE L
OXFORDSHIRE CC,CHILDREN'S & EDUCATION,NTH EARLY HELP-BNRBY,MATERIALS,16/10/2023,9147537698,159.99,AMZNMKTPLACE
OXFORDSHIRE CC,CHILDREN'S & EDUCATION,THAME E&A HOME,VEHICLE FUEL,16/10/2023,9147537256,7,THAME BP SF CONNECT
OXFORDSHIRE CC,CHILDREN'S & EDUCATION,DIDCOT MOVE-ON HOME,CATERING PROVISIONS,16/10/2023,9147537242,8.2,SAINSBURYS S/MKTS
OXFORDSHIRE CC,CHILDREN'S & EDUCATION,"	RESIDENTIAL STRATEGY",MEDICAL AND COUNSELLING FEES,16/10/2023,9147537252,4.49,SUPERDRUG STORES PLC
OXFORDSHIRE CC,CHILDREN'S & EDUCATION,"	LOOKED AFTER NORTH",PAYMENTS TO TRANSPORT OPERATORS,16/10/2023,9147537640,58.79,TRAINLINE
OXFORDSHIRE CC,ENVIRONMENT AND ECONOMY,"	NATURAL ENVIRONMENT",MATERIALS,16/10/2023,9147537628,12.98,AMZNMKTPLACE
OXFORDSHIRE CC,CHILDREN'S & EDUCATION,FIELDWORK UASC,OTHER TRANSPORT ARRANGEMENTS,16/10/2023,9147537686,4.5,OXFORD BUS COMPANY
OXFORDSHIRE CC,SOCIAL AND COMMUNITY SERVICES,CSS - BANBURY,MATERIALS,16/10/2023,9147537702,10.57,AMZNMKTPLACE
OXFORDSHIRE CC,CHILDREN'S & EDUCATION,"	RESIDENTIAL STRATEGY",CATERING PROVISIONS,16/10/2023,9147537660,90,THORPE PARK RESORT
OXFORDSHIRE CC,ENVIRONMENT AND ECONOMY,"	TVERC",CATERING,16/10/2023,9147537652,41,ORACLE 510 (BAXTERSTOR
OXFORDSHIRE CC,CHILDREN'S & EDUCATION,FAMILY SOLUTIONS PLUS NON-STAFF - NORTH,PAYMENTS TO TRANSPORT OPERATORS,16/10/2023,9147537644,11,OXFORDSHIRE CC WEB1
OXFORDSHIRE CC,CHILDREN'S & EDUCATION,"	RESIDENTIAL STRATEGY",CATERING PROVISIONS,16/10/2023,9147537654,19,CHOCOLATE AND WAFFLES
OXFORDSHIRE CC,CHILDREN'S & EDUCATION,"	RESIDENTIAL STRATEGY",CATERING PROVISIONS,16/10/2023,9147537662,11.39,CHERWELL V. N/E BK
OXFORDSHIRE CC,CUSTOMER AND CULTURE,HARD FM,HARDWARE AND CROCKERY,16/10/2023,9147537714,49.18,BSS
OXFORDSHIRE CC,CHILDREN'S & EDUCATION,QUALITY ASSURANCE SOUTH TEAM,PAYMENTS TO TRANSPORT OPERATORS,16/10/2023,9147537706,116.05,TRAINLINE
OXFORDSHIRE CC,CHILDREN'S & EDUCATION,HOUSE PROJECT,OTHER TRANSPORT ARRANGEMENTS,16/10/2023,9147537708,35.48,AMZNMKTPLACE
OXFORDSHIRE CC,CORPORATE CORE,ICT OPERATIONS & MAI,IT SERVICES,16/10/2023,9147537716,21.09,"GITHUB, INC."
OXFORDSHIRE CC,CORPORATE CORE,SOTERIA,INSURANCE COSTS,16/10/2023,9147537724,-21.84,ALLIANZ GLOBAL ASSISTA
OXFORDSHIRE CC,CHILDREN'S & EDUCATION,EYNSHAM,CATERING PROVISIONS,16/10/2023,9147537584,3.9,SPAR EYNSHAM
OXFORDSHIRE CC,CHILDREN'S & EDUCATION,40 THE MOORS,FURNITURE,16/10/2023,9147537600,178.18,AMZNMKTPLACE
OXFORDSHIRE CC,CHILDREN'S & EDUCATION,"	RESIDENTIAL STRATEGY",CATERING PROVISIONS,16/10/2023,9147537656,15,CHOCOLATE AND WAFFLES
OXFORDSHIRE CC,CHILDREN'S & EDUCATION,"	RESIDENTIAL STRATEGY",CATERING PROVISIONS,16/10/2023,9147537664,11.85,CHERWELL VALLEY GREGGS
OXFORDSHIRE CC,CHILDREN'S & EDUCATION,FAMILY SOLUTIONS PLUS NON-STAFF - NORTH,PAYMENTS TO TRANSPORT OPERATORS,16/10/2023,9147537646,50,TESCO GIFT CARD
OXFORDSHIRE CC,CHILDREN'S & EDUCATION,HOUSE PROJECT,"SUPPLIES, STATIONERY AND MATERIALS",16/10/2023,9147537710,32.32,AMZNMKTPLACE
OXFORDSHIRE CC,CHILDREN'S & EDUCATION,"	LOOKED AFTER SOUTH",CATERING,16/10/2023,9147537712,33,NANDOS DIDCOT
OXFORDSHIRE CC,CHILDREN'S & EDUCATION,"	LEAVING CARE CITY 2",CATERING,16/10/2023,9147537310,7.5,WWW.GOV.UK/PAY-DARTFOR
OXFORDSHIRE CC,CORPORATE CORE,"MARKETING, COMMUNICATIONS & ENGAGEMENT","PUBLICITY, PROMOTIONS AND ADVERTISEMENT",16/10/2023,9147537464,500,GOOGLE ADS4896546035
OXFORDSHIRE CC,CHILDREN'S & EDUCATION,40 THE MOORS,CATERING,16/10/2023,9147537466,2.95,CO-OPERATIVE FOOD
OXFORDSHIRE CC,CHILDREN'S & EDUCATION,THAME E&A HOME,CATERING PROVISIONS,16/10/2023,9147537302,11.2,THAME BP SF CONNECT
OXFORDSHIRE CC,ENVIRONMENT AND ECONOMY,BANBURY LIBRARY,POSTAGE AND DELIVERY,16/10/2023,9147537304,1.25,POST OFFICE SELF SERVE
OXFORDSHIRE CC,CHILDREN'S & EDUCATION,EYNSHAM,CATERING PROVISIONS,16/10/2023,9147537306,39,CO-OPERATIVE FOOD
OXFORDSHIRE CC,CORPORATE CORE,CATERING MANAGEMENT SOFT FM,CATERING PROVISIONS,16/10/2023,9147537030,34.18,ALDI 85 772
OXFORDSHIRE CC,CHILDREN'S & EDUCATION,MARKETING,OTHER SERVICES,16/10/2023,9147537028,40,TFL BUSINESS BOPS WEB
OXFORDSHIRE CC,CHILDREN'S & EDUCATION,KINGFISHER,HIRE OF ACCOMMODATION AND FACILITIES,16/10/2023,9147537044,324,DEE VALLEY ST 97PBQ2ZB
OXFORDSHIRE CC,CHILDREN'S & EDUCATION,KINGFISHER,HIRE OF ACCOMMODATION AND FACILITIES,16/10/2023,9147537046,-323.96,PREMIER INN
OXFORDSHIRE CC,SOCIAL AND COMMUNITY SERVICES,CSS BICESTER,MATERIALS,16/10/2023,9147537048,13.62,AMZNMKTPLACE
OXFORDSHIRE CC,CHILDREN'S & EDUCATION,THAME E&A HOME,OTHER TRANSPORT ARRANGEMENTS,16/10/2023,9147537032,2,EDEN CENTRE
OXFORDSHIRE CC,CHILDREN'S & EDUCATION,NTS UASC AGENCY,MATERIALS,16/10/2023,9147537386,83.59,AMZNMKTPLACE
OXFORDSHIRE CC,CHILDREN'S & EDUCATION,NTS UASC AGENCY,MATERIALS,16/10/2023,9147537388,83.59,AMZNMKTPLACE
OXFORDSHIRE CC,CHILDREN'S & EDUCATION,"	RESIDENTIAL STRATEGY",CATERING PROVISIONS,16/10/2023,9147537666,3,NYA HB LEISURE LIMITED
OXFORDSHIRE CC,CHILDREN'S & EDUCATION,"	RESIDENTIAL STRATEGY",CATERING PROVISIONS,16/10/2023,9147537676,18.25,TESCO PFS 3431
OXFORDSHIRE CC,CHILDREN'S & EDUCATION,"	RESIDENTIAL STRATEGY",VEHICLE FUEL,16/10/2023,9147537684,40.01,WORCESTER SERVICE STN
OXFORDSHIRE CC,CHILDREN'S & EDUCATION,"	RESIDENTIAL STRATEGY",CATERING PROVISIONS,16/10/2023,9147537668,3,NYA HB LEISURE LIMITED
OXFORDSHIRE CC,CHILDREN'S & EDUCATION,"	RESIDENTIAL STRATEGY",CATERING PROVISIONS,16/10/2023,9147537674,15,TOP GIFT OUTLET NO. 15
OXFORDSHIRE CC,CHILDREN'S & EDUCATION,"	RESIDENTIAL STRATEGY",CLOTHING AND UNIFORMS,16/10/2023,9147537682,14.99,H & M
OXFORDSHIRE CC,SOCIAL AND COMMUNITY SERVICES,"	MUSEUMS COLLECTIONS",MATERIALS,16/10/2023,9147537390,11.44,AMAZON.CO.UK H879U1PE4
OXFORDSHIRE CC,CHILDREN'S & EDUCATION,EYNSHAM,CATERING,16/10/2023,9147537620,2,ZETTLE_ JUNKYARD GOLF
OXFORDSHIRE CC,CHILDREN'S & EDUCATION,EYNSHAM,OTHER TRANSPORT ARRANGEMENTS,16/10/2023,9147537616,3.8,WESTGATE OXFORD CAR PA
OXFORDSHIRE CC,CHILDREN'S & EDUCATION,EYNSHAM,MATERIALS,16/10/2023,9147537618,7.7,CASTLE NEWS
OXFORDSHIRE CC,ENVIRONMENT AND ECONOMY,"	NAT TRAILS GENERAL",HEALTH AND SAFETY EQUIPMENT,16/10/2023,9147537342,14.48,AMAZON.CO.UK H87BJ3EH4
OXFORDSHIRE CC,CHILDREN'S & EDUCATION,EDT,OTHER TRANSPORT ARRANGEMENTS,16/10/2023,9147537368,120,CLR MUHAMMAD ASHFAQ
OXFORDSHIRE CC,CORPORATE CORE,OPERATIONS,MATERIALS,16/10/2023,9147537378,25.05,AMZNMKTPLACE
OXFORDSHIRE CC,CHILDREN'S & EDUCATION,"	LEAVING CARE CITY 2",OTHER TRANSPORT ARRANGEMENTS,16/10/2023,9147537360,2,STGCOACH/CTYLINK
OXFORDSHIRE CC,SOCIAL AND COMMUNITY SERVICES,"	TRANSPORT GENERAL",VEHICLE EQUIPMENT AND EXPENSES - OTHER,16/10/2023,9147537096,99.8,WWW.SCREWFIX.COM
OXFORDSHIRE CC,CHILDREN'S & EDUCATION,"	RESIDENTIAL STRATEGY",CATERING PROVISIONS,16/10/2023,9147537670,19.68,KFC - THORPE PARK
OXFORDSHIRE CC,CHILDREN'S & EDUCATION,"	RESIDENTIAL STRATEGY",CATERING PROVISIONS,16/10/2023,9147537678,34.28,TESCO PFS 3431
OXFORDSHIRE CC,CHILDREN'S & EDUCATION,"	RESIDENTIAL STRATEGY",CATERING PROVISIONS,16/10/2023,9147537672,19.99,TOP GIFT OUTLET NO. 15
OXFORDSHIRE CC,CHILDREN'S & EDUCATION,"	RESIDENTIAL STRATEGY",CATERING PROVISIONS,16/10/2023,9147537680,6.99,WHITTINGTON ROAD SSTN
OXFORDSHIRE CC,CHILDREN'S & EDUCATION,"	OCCG GRANT","BOOKS, DVDS AND CDS",16/10/2023,9147537760,19.12,DOMINOS BANBURY 28071
OXFORDSHIRE CC,CORPORATE CORE,FRONTIER CAV EU PROJECT,PAYMENTS TO TRANSPORT OPERATORS,16/10/2023,9147537754,81.31,TRAINLINE
OXFORDSHIRE CC,CORPORATE CORE,THAME LIBRARY,"NEWSPAPERS, PERIODICALS AND PUBLICATIONS",16/10/2023,9147537506,5.6,SAINSBURYS S/MKTS
OXFORDSHIRE CC,CORPORATE CORE,THAME LIBRARY,"NEWSPAPERS, PERIODICALS AND PUBLICATIONS",16/10/2023,9147537508,7.3,SAINSBURYS S/MKTS
OXFORDSHIRE CC,SOCIAL AND COMMUNITY SERVICES,THE OAKS EMERGENCY & ASSSESSMENT CENTRE,PROFESSIONAL SUBSCRIPTIONS,16/10/2023,9147537076,23.78,ONTOPUP.COM
OXFORDSHIRE CC,SOCIAL AND COMMUNITY SERVICES,CSS WITNEY,MATERIALS,16/10/2023,9147537416,5.87,AMZNMKTPLACE
OXFORDSHIRE CC,SOCIAL AND COMMUNITY SERVICES,CSS WANTAGE,ENTERTAINMENT EXPENSES,16/10/2023,9147537418,9.9,WWW.BETTER.ORG.UK
OXFORDSHIRE CC,CHILDREN'S & EDUCATION,"	DISABILITIES TEAM-N",PAYMENTS TO TRANSPORT OPERATORS,16/10/2023,9147537078,-25.3,TRAINLINE
OXFORDSHIRE CC,CHILDREN'S & EDUCATION,CHILDREN IN CARE NON-STAFFING - CENTRL 1,PAYMENT TO GOVERNMENT DEPARTMENTS,16/10/2023,9147537080,-39.49,EASYJET
OXFORDSHIRE CC,SOCIAL AND COMMUNITY SERVICES,CSS WITNEY,MATERIALS,16/10/2023,9147537412,5.98,AMAZON.CO.UK H88N220G4
OXFORDSHIRE CC,SOCIAL AND COMMUNITY SERVICES,CSS BICESTER,HEALTH AND SAFETY EQUIPMENT,16/10/2023,9147537726,19.99,AMZNMKTPLACE
OXFORDSHIRE CC,SOCIAL AND COMMUNITY SERVICES,CSS WITNEY,MATERIALS,16/10/2023,9147537414,7.78,AMZNMKTPLACE
OXFORDSHIRE CC,CHILDREN'S & EDUCATION,CHILDREN IN CARE NON-STAFFING - CENTRL 1,PAYMENT TO GOVERNMENT DEPARTMENTS,16/10/2023,9147537082,-79.99,EASYJET
OXFORDSHIRE CC,CHILDREN'S & EDUCATION,CHILDREN IN CARE NON-STAFFING - NORTH,CATERING PROVISIONS,16/10/2023,9147537406,10.41,MCDONALDS
OXFORDSHIRE CC,CHILDREN'S & EDUCATION,"	LEAVING CARE CITY 1",DRUGS AND MEDICAL SUPPLIES,16/10/2023,9147537072,70,PEACHCROFT DENTAL PRAC
OXFORDSHIRE CC,ENVIRONMENT AND ECONOMY,MAINTENANCE STAFF,EQUIPMENT,16/10/2023,9147537074,50.97,HALFORDS E.COMM
OXFORDSHIRE CC,CHILDREN'S & EDUCATION,"	LEAVING CARE CITY 2",CATERING,16/10/2023,9147537312,12.47,MCDONALDS
OXFORDSHIRE CC,SOCIAL AND COMMUNITY SERVICES,SCHOOLS FM CATERING AREA 2,CATERING PROVISIONS,16/10/2023,9147537314,41.8,BOOKER LTD - 38584104
OXFORDSHIRE CC,SOCIAL AND COMMUNITY SERVICES,WEST OXFORDSHIRE TEAM,HIRE OF ACCOMMODATION AND FACILITIES,16/10/2023,9147537308,46.9,TRAVELODGE
OXFORDSHIRE CC,SOCIAL AND COMMUNITY SERVICES,SCHOOLS FM CATERING AREA 2,MATERIALS,16/10/2023,9147537316,13.84,AMZNMKTPLACE
OXFORDSHIRE CC,CHILDREN'S & EDUCATION,WITNEY,CATERING PROVISIONS,16/10/2023,9147537446,36,B & Q 1176
OXFORDSHIRE CC,CHILDREN'S & EDUCATION,WITNEY,CATERING PROVISIONS,16/10/2023,9147537444,68.19,ASDA STORES 4920
OXFORDSHIRE CC,CHILDREN'S & EDUCATION,40 THE MOORS,HEALTH AND SAFETY EQUIPMENT,16/10/2023,9147537454,49.73,SCREWFIX DIR LTD
OXFORDSHIRE CC,CHILDREN'S & EDUCATION,40 THE MOORS,CATERING,16/10/2023,9147537456,94.26,GURKHA VIL  GURKHA VIL
OXFORDSHIRE CC,CHILDREN'S & EDUCATION,40 THE MOORS,CATERING PROVISIONS,16/10/2023,9147537458,21.65,TESCO STORES 2788
OXFORDSHIRE CC,CHILDREN'S & EDUCATION,40 THE MOORS,FURNITURE,16/10/2023,9147537460,178.18,AMZNMKTPLACE
OXFORDSHIRE CC,CHILDREN'S & EDUCATION,THAME E&A HOME,CATERING PROVISIONS,16/10/2023,9147537136,3.6,MARKS&SPENCER PLC SACA
OXFORDSHIRE CC,ENVIRONMENT AND ECONOMY,WASTE REDUCTION GEN,PAYMENTS TO TRANSPORT OPERATORS,16/10/2023,9147537144,33.72,TRAINLINE
OXFORDSHIRE CC,CHILDREN'S & EDUCATION,THAME E&A HOME,CATERING,16/10/2023,9147537138,105.29,TESCO STORES 2038
OXFORDSHIRE CC,SOCIAL AND COMMUNITY SERVICES,CSS - OXFORD,MATERIALS,16/10/2023,9147537146,8.26,ALDI STORES 775-142
OXFORDSHIRE CC,CHILDREN'S & EDUCATION,THAME E&A HOME,CATERING,16/10/2023,9147537140,3.25,BUDGENS PEACHCROFT
OXFORDSHIRE CC,SOCIAL AND COMMUNITY SERVICES,CSS - OXFORD,CATERING PROVISIONS,16/10/2023,9147537148,71.38,ALDI STORES 775-142
OXFORDSHIRE CC,SOCIAL AND COMMUNITY SERVICES,CSS WANTAGE,ENTERTAINMENT EXPENSES,16/10/2023,9147537420,23.8,WWW.BETTER.ORG.UK
OXFORDSHIRE CC,CHILDREN'S & EDUCATION,THAME E&A HOME,VEHICLE FUEL,16/10/2023,9147537142,10.07,EMPIRE PETROLEUM
OXFORDSHIRE CC,SOCIAL AND COMMUNITY SERVICES,PANEL COSTS,"BOOKS, DVDS AND CDS",16/10/2023,9147537152,26.45,CORAMBAAF
OXFORDSHIRE CC,CHILDREN'S & EDUCATION,EYNSHAM,CATERING PROVISIONS,16/10/2023,9147537160,9.35,CO-OPERATIVE FOOD
OXFORDSHIRE CC,CHILDREN'S & EDUCATION,EYNSHAM,CATERING,16/10/2023,9147537158,8.5,THE SHAKE SHOP
OXFORDSHIRE CC,CHILDREN'S & EDUCATION,PAUSE PROGRAMME,POSTAGE AND DELIVERY,16/10/2023,9147537192,3.45,POST OFFICE COUNTER
OXFORDSHIRE CC,CHILDREN'S & EDUCATION,"	SEN/ICT EQUIPMENT",OTHER TRANSPORT ARRANGEMENTS,16/10/2023,9147537188,37.44,GOTO TECHNOLOGIES UK L
OXFORDSHIRE CC,ENVIRONMENT AND ECONOMY,HARD FM,PREMISES REPAIRS,16/10/2023,9147537064,7.6,B & Q 1156
OXFORDSHIRE CC,ADULTS,COUNTY PRINT FINSHRS,MATERIALS,16/10/2023,9147537068,91.5,AMZNMKTPLACE
OXFORDSHIRE CC,CHILDREN'S & EDUCATION,THAME E&A HOME,CATERING,16/10/2023,9147537052,15.9,MUFFIN BREAK
OXFORDSHIRE CC,CHILDREN'S & EDUCATION,THAME E&A HOME,MATERIALS,16/10/2023,9147537054,34.08,TOYS UK
OXFORDSHIRE CC,ENVIRONMENT AND ECONOMY,HARD FM,PREMISES REPAIRS,16/10/2023,9147537062,18.73,DULUX DECORATOR CENTRE
OXFORDSHIRE CC,SOCIAL AND COMMUNITY SERVICES,CSS BICESTER,CATERING PROVISIONS,16/10/2023,9147537070,14.99,ALDI 49 775
OXFORDSHIRE CC,CHILDREN'S & EDUCATION,THAME E&A HOME,MATERIALS,16/10/2023,9147537050,65,PANDORA
OXFORDSHIRE CC,CHILDREN'S & EDUCATION,DIDCOT MOVE-ON HOME,CATERING PROVISIONS,16/10/2023,9147537150,12.12,SAINSBURYS SMKT
OXFORDSHIRE CC,CHILDREN'S & EDUCATION,"	LEAVING CARE NORTH",CLOTHING AND UNIFORMS,16/10/2023,9147537550,43.99,JD SPORTS FASHION PLC
OXFORDSHIRE CC,CHILDREN'S & EDUCATION,"	OCCG GRANT",CATERING PROVISIONS,16/10/2023,9147537200,9.95,CO-OPERATIVE FOOD
OXFORDSHIRE CC,CHILDREN'S & EDUCATION,PAUSE PROGRAMME,CATERING PROVISIONS,16/10/2023,9147537194,1.45,DELTEYS
OXFORDSHIRE CC,CHILDREN'S & EDUCATION,UASC 16&17,OTHER EXPENSES,16/10/2023,9147537202,4.5,STGCOACH/CTYLINK
OXFORDSHIRE CC,CHILDREN'S & EDUCATION,PAUSE PROGRAMME,HARDWARE AND CROCKERY,16/10/2023,9147537196,5.5,HOMEBASE.CO.UK
OXFORDSHIRE CC,CORPORATE CORE,,STATIONERY,16/10/2023,9147537536,245.81,LYRECO UK LTD
OXFORDSHIRE CC,CORPORATE CORE,,STATIONERY,16/10/2023,9147537538,489.71,LYRECO UK LTD
OXFORDSHIRE CC,CORPORATE CORE,,STATIONERY,16/10/2023,9147537540,59.4,LYRECO UK LTD
OXFORDSHIRE CC,CHILDREN'S & EDUCATION,EYNSHAM,CATERING,16/10/2023,9147537524,30.56,TESCO STORES 2008
OXFORDSHIRE CC,CORPORATE CORE,,STATIONERY,16/10/2023,9147537532,61.78,LYRECO UK LTD
OXFORDSHIRE CC,CHILDREN'S & EDUCATION,EYNSHAM,MATERIALS,16/10/2023,9147537526,10.99,NETFLIX.COM
OXFORDSHIRE CC,CORPORATE CORE,,STATIONERY,16/10/2023,9147537528,349.08,LYRECO UK LTD
OXFORDSHIRE CC,CHILDREN'S & EDUCATION,UASC 16&17,CLOTHING AND UNIFORMS,16/10/2023,9147537522,8,BARNARDO'S 55621
OXFORDSHIRE CC,CORPORATE CORE,,STATIONERY,16/10/2023,9147537530,189.23,LYRECO UK LTD
OXFORDSHIRE CC,CORPORATE CORE,,STATIONERY,16/10/2023,9147537534,144.22,LYRECO UK LTD
OXFORDSHIRE CC,SOCIAL AND COMMUNITY SERVICES,BICESTER LIBRARY,CATERING EQUIPMENT,16/10/2023,9147537498,10.99,AMZNMKTPLACE
OXFORDSHIRE CC,CHILDREN'S & EDUCATION,"	LEAVING CARE NORTH",CLOTHING AND UNIFORMS,16/10/2023,9147537552,39.99,JD SPORTS FASHION PLC
OXFORDSHIRE CC,SOCIAL AND COMMUNITY SERVICES,LIBRARY PROJECTS,FURNITURE,16/10/2023,9147537560,24.5,VITAL PARTS LTD
OXFORDSHIRE CC,ENVIRONMENT AND ECONOMY,CTRYSIDE OPS STAFF,EQUIPMENT,16/10/2023,9147537544,7.56,AMAZON  202-0077025-37
OXFORDSHIRE CC,CHILDREN'S & EDUCATION,WITNEY,CATERING PROVISIONS,16/10/2023,9147537562,26.87,LIDL GB WITNEY
OXFORDSHIRE CC,CHILDREN'S & EDUCATION,FIELDWORK UASC,MATERIALS,16/10/2023,9147537232,8,CURRYS CARE SERVICE
OXFORDSHIRE CC,ENVIRONMENT AND ECONOMY,CTRYSIDE OPS STAFF,EQUIPMENT,16/10/2023,9147537546,34.76,AMAZON.CO.UK H84TS85N4
OXFORDSHIRE CC,CHILDREN'S & EDUCATION,KIDLINGTON LIBRARY,MATERIALS,16/10/2023,9147537486,24.99,AMAZON.CO.UK H829R4HC4
OXFORDSHIRE CC,CHILDREN'S & EDUCATION,THAME E&A HOME,MEMBERS TRAVEL AND SUSTENANCE,16/10/2023,9147537494,24.14,TRAINLINE
OXFORDSHIRE CC,ENVIRONMENT AND ECONOMY,CTRYSIDE OPS STAFF,EQUIPMENT,16/10/2023,9147537548,109.98,AMZNMKTPLACE
OXFORDSHIRE CC,SOCIAL AND COMMUNITY SERVICES,"	SHARED LIVES",CATERING PROVISIONS,16/10/2023,9147537488,3.6,TESCO STORES 6519
OXFORDSHIRE CC,CHILDREN'S & EDUCATION,THAME E&A HOME,MATERIALS,16/10/2023,9147537496,18.3,SUMUP   TAXI DRIVER
OXFORDSHIRE CC,CHILDREN'S & EDUCATION,HOUSE PROJECT,OTHER TRANSPORT ARRANGEMENTS,16/10/2023,9147537542,0.99,CARD FACTORY
OXFORDSHIRE CC,CHILDREN'S & EDUCATION,"	LEAVING CARE CITY 2",OTHER TRANSPORT ARRANGEMENTS,13/10/2023,11247231475,4.5,STGCOACH/CTYLINK
OXFORDSHIRE CC,SOCIAL AND COMMUNITY SERVICES,"	MTFC",CATERING,13/10/2023,11247231653,5.25,GREGGS PLC
OXFORDSHIRE CC,SOCIAL AND COMMUNITY SERVICES,COMMUNITY PARTNERSHIP TEAM,CATERING PROVISIONS,13/10/2023,11247231325,282.57,TESCO STORES 2008
OXFORDSHIRE CC,SOCIAL AND COMMUNITY SERVICES,CSS - OXFORD,CATERING PROVISIONS,13/10/2023,11247231425,38.98,ALDI STORES 775-142
OXFORDSHIRE CC,SOCIAL AND COMMUNITY SERVICES,CSS WITNEY,CATERING PROVISIONS,13/10/2023,11247231725,16.45,MARKS&SPENCER PLC
OXFORDSHIRE CC,CHILDREN'S & EDUCATION,PAUSE PROGRAMME,CATERING,13/10/2023,11247231435,11.98,"KFC OXFORD, TEMPLARS S"
OXFORDSHIRE CC,CHILDREN'S & EDUCATION,HOUSE PROJECT,OTHER TRANSPORT ARRANGEMENTS,13/10/2023,11247231727,13,WESTGATE OXFORD CAR PA
OXFORDSHIRE CC,CHILDREN'S & EDUCATION,FAMILY SOLUTIONS PLUS NON-STAFF � SOUTH,PAYMENT TO GOVERNMENT DEPARTMENTS,13/10/2023,11247231729,9,OXFORDBUS.CO.UK
OXFORDSHIRE CC,SOCIAL AND COMMUNITY SERVICES,CSS - BANBURY,MATERIALS,13/10/2023,11247231723,5.5,TIGER
OXFORDSHIRE CC,CORPORATE CORE,PUBLIC HEALTH GENERA,PAYMENTS TO TRANSPORT OPERATORS,13/10/2023,11247231421,133.07,TRAINLINE
OXFORDSHIRE CC,CORPORATE CORE,SCHOOLS FM CATERING AREA 4,CATERING PROVISIONS,13/10/2023,11247231429,37.54,ALDI STORES
OXFORDSHIRE CC,CHILDREN'S & EDUCATION,PAUSE PROGRAMME,CATERING PROVISIONS,13/10/2023,11247231437,2.4,NASHS BAKERY
OXFORDSHIRE CC,CHILDREN'S & EDUCATION,"	LEAVING CARE NORTH",MATERIALS,13/10/2023,11247231445,83.94,WWW.ARGOS.CO.UK
OXFORDSHIRE CC,CHILDREN'S & EDUCATION,"	RESIDENTIAL STRATEGY",CATERING PROVISIONS,13/10/2023,11247231453,8.3,BP OXFORD SERVICE AREA
OXFORDSHIRE CC,CORPORATE CORE,REGISTRAR,PAYMENT TO GOVERNMENT DEPARTMENTS,13/10/2023,11247231447,60,WWW.ICO.ORG.UK
OXFORDSHIRE CC,CHILDREN'S & EDUCATION,"	RESIDENTIAL STRATEGY",CATERING PROVISIONS,13/10/2023,11247231455,50.3,PIZZA EXPRESS
OXFORDSHIRE CC,CHILDREN'S & EDUCATION,"	OCCG GRANT",CATERING,13/10/2023,11247231449,8.35,COSTA COFFEE 43011357
OXFORDSHIRE CC,CHILDREN'S & EDUCATION,"	RESIDENTIAL STRATEGY",CATERING PROVISIONS,13/10/2023,11247231457,78.8,TESCO STORES 3430
OXFORDSHIRE CC,ENVIRONMENT AND ECONOMY,"	ROW MAINT",EQUIPMENT,13/10/2023,11247231451,52.62,AWBS
OXFORDSHIRE CC,CHILDREN'S & EDUCATION,"	RESIDENTIAL STRATEGY",COMMUNITY RECREATION,13/10/2023,11247231459,125,THORPE PARK
OXFORDSHIRE CC,SOCIAL AND COMMUNITY SERVICES,CSS - OXFORD,CATERING EQUIPMENT,13/10/2023,11247231509,27.25,AMAZON.CO.UK H84SY1A74
OXFORDSHIRE CC,CHILDREN'S & EDUCATION,FSP NON-STAFFING - CENTRAL,HARDWARE AND CROCKERY,13/10/2023,11247231743,38.4,HOMEBASE.CO.UK
OXFORDSHIRE CC,CORPORATE CORE,"MARKETING, COMMUNICATIONS & ENGAGEMENT","PUBLICITY, PROMOTIONS AND ADVERTISEMENT",13/10/2023,11247231571,5,TIKTOK ADS
OXFORDSHIRE CC,CORPORATE CORE,SOTERIA,OTHER TRANSPORT ARRANGEMENTS,13/10/2023,11247231751,2,OXFORD BUS COMPANY
OXFORDSHIRE CC,CHILDREN'S & EDUCATION,SUPPORTED INTERNSHIPS FOR YP WITH SEND,PAYMENTS TO OTHER ESTABLISHMENTS,13/10/2023,11247231759,7.59,AMZNMKTPLACE
OXFORDSHIRE CC,CHILDREN'S & EDUCATION,SUPPORTED INTERNSHIPS FOR YP WITH SEND,PAYMENTS TO OTHER ESTABLISHMENTS,13/10/2023,11247231759,61.8,AMZNMKTPLACE
OXFORDSHIRE CC,CORPORATE CORE,"MARKETING, COMMUNICATIONS & ENGAGEMENT","PUBLICITY, PROMOTIONS AND ADVERTISEMENT",13/10/2023,11247231573,-5,TIKTOK ADS
OXFORDSHIRE CC,CHILDREN'S & EDUCATION,CHILDREN IN CARE NON-STAFFING - CENTRL 1,PAYMENT TO GOVERNMENT DEPARTMENTS,13/10/2023,11247231287,30.97,TRAINLINE
OXFORDSHIRE CC,SOCIAL AND COMMUNITY SERVICES,CSS WITNEY,MATERIALS,13/10/2023,11247231253,19.99,AMZNMKTPLACE
OXFORDSHIRE CC,SOCIAL AND COMMUNITY SERVICES,SCHOOLS FM CATERING AREA 4,CATERING PROVISIONS,13/10/2023,11247231285,47.95,APPLETON COMMUNITY SHO
OXFORDSHIRE CC,CORPORATE CORE,THAME LIBRARY,"NEWSPAPERS, PERIODICALS AND PUBLICATIONS",13/10/2023,11247231617,5.6,SAINSBURYS S/MKTS
OXFORDSHIRE CC,CHILDREN'S & EDUCATION,NTS UASC AGENCY,MATERIALS,13/10/2023,11247231303,18,AMZNMKTPLACE
OXFORDSHIRE CC,CORPORATE CORE,,STATIONERY,13/10/2023,11247231627,51.77,LYRECO UK LTD
OXFORDSHIRE CC,CORPORATE CORE,,STATIONERY,13/10/2023,11247231629,24.17,LYRECO UK LTD
OXFORDSHIRE CC,CHILDREN'S & EDUCATION,MARKETING,OTHER SERVICES,13/10/2023,11247231259,41.26,TRAINLINE
OXFORDSHIRE CC,CORPORATE CORE,,STATIONERY,13/10/2023,11247231637,153.6,LYRECO UK LTD
OXFORDSHIRE CC,SOCIAL AND COMMUNITY SERVICES,CSS BICESTER,MATERIALS,13/10/2023,11247231281,19,THEWORKS.CO.UK
OXFORDSHIRE CC,CHILDREN'S & EDUCATION,CHILDREN IN CARE NON-STAFFING - CENTRL 1,PAYMENT TO GOVERNMENT DEPARTMENTS,13/10/2023,11247231289,-11,OXFORDSHIRE CC MOTO1
OXFORDSHIRE CC,CORPORATE CORE,SOTERIA,MATERIALS,13/10/2023,11247231745,25,MAIL BOXES ETC
OXFORDSHIRE CC,CORPORATE CORE,SOTERIA,OTHER TRANSPORT ARRANGEMENTS,13/10/2023,11247231753,8.1,TFL TRAVEL CH
OXFORDSHIRE CC,CHILDREN'S & EDUCATION,SUPPORTED INTERNSHIPS FOR YP WITH SEND,PAYMENTS TO OTHER ESTABLISHMENTS,13/10/2023,11247231761,3.69,AMZNMKTPLACE
OXFORDSHIRE CC,CHILDREN'S & EDUCATION,SUPPORTED INTERNSHIPS FOR YP WITH SEND,PAYMENTS TO OTHER ESTABLISHMENTS,13/10/2023,11247231763,16.99,AMZNMKTPLACE
OXFORDSHIRE CC,CHILDREN'S & EDUCATION,FSP NON-STAFFING - CENTRAL,CATERING PROVISIONS,13/10/2023,11247231329,4.3,TESCO STORES 2008
OXFORDSHIRE CC,CHILDREN'S & EDUCATION,"	RESIDENTIAL STRATEGY",CATERING PROVISIONS,13/10/2023,11247231461,19,WWW.MYTAXIAPP.CO.U
OXFORDSHIRE CC,SOCIAL AND COMMUNITY SERVICES,"	MTFC",CATERING,13/10/2023,11247231651,8,BOBA BROS
OXFORDSHIRE CC,CORPORATE CORE,,STATIONERY,13/10/2023,11247231639,15,LYRECO UK LTD
OXFORDSHIRE CC,CHILDREN'S & EDUCATION,"	LOOKED AFTER NORTH",VEHICLE FUEL,13/10/2023,11247231647,48.95,W M MORRISON PETROL
OXFORDSHIRE CC,ENVIRONMENT AND ECONOMY,"	NAT TRAILS GENERAL",HEALTH AND SAFETY EQUIPMENT,13/10/2023,11247231463,117.99,DEFIB WORLD
OXFORDSHIRE CC,ADULTS,CSS BICESTER,MATERIALS,13/10/2023,11247231327,15.5,THEWORKS.CO.UK
OXFORDSHIRE CC,CHILDREN'S & EDUCATION,HOUSE PROJECT,OTHER TRANSPORT ARRANGEMENTS,13/10/2023,11247231641,7.8,WESTGATE OXFORD CAR PA
OXFORDSHIRE CC,SOCIAL AND COMMUNITY SERVICES,CSS WANTAGE,ENTERTAINMENT EXPENSES,13/10/2023,11247231543,14.72,HOLLYWOOD BOWL
OXFORDSHIRE CC,CORPORATE CORE,LIBRARY COLLECTIONS,"BOOKS, DVDS AND CDS",13/10/2023,11247231387,534.74,OVERDRIVE DIST
OXFORDSHIRE CC,SOCIAL AND COMMUNITY SERVICES,FLEET OPERATIONS,CATERING PROVISIONS,13/10/2023,11247231395,18.4,MILK AND MORE (RECUR
OXFORDSHIRE CC,CHILDREN'S & EDUCATION,"	RIVERSIDE CENTRE",CATERING PROVISIONS,13/10/2023,11247231397,18,AMAZON.CO.UK H86188AZ4
OXFORDSHIRE CC,RESOURCES,INFORMATION MGT,SUBSCRIPTIONS,13/10/2023,11247231527,"2,900.00",WWW.ICO.ORG.UK
OXFORDSHIRE CC,CHILDREN'S & EDUCATION,MARKETING,OTHER SERVICES,13/10/2023,11247231261,565.8,EUROPA INTERNATION
OXFORDSHIRE CC,CUSTOMER AND CULTURE,HARD FM,HARDWARE AND CROCKERY,13/10/2023,11247231277,18.76,TOOLSTATION LTD
OXFORDSHIRE CC,CHILDREN'S & EDUCATION,EYNSHAM,CATERING PROVISIONS,13/10/2023,11247231677,7.5,TESCO PFS 2488
OXFORDSHIRE CC,CHILDREN'S & EDUCATION,FIELDWORK UASC,SUBSCRIPTIONS,13/10/2023,11247231713,35.99,PUREGYM LIMITED
OXFORDSHIRE CC,CHILDREN'S & EDUCATION,PAUSE PROGRAMME,OTHER TRANSPORT ARRANGEMENTS,13/10/2023,11247231367,2,OXFORDBUS.CO.UK
OXFORDSHIRE CC,CHILDREN'S & EDUCATION,PAUSE PROGRAMME,CATERING PROVISIONS,13/10/2023,11247231375,3.38,HOME BARGAINS
OXFORDSHIRE CC,SOCIAL AND COMMUNITY SERVICES,"	MUSEUMS COLLECTIONS",CATERING PROVISIONS,13/10/2023,11247231521,4.62,MILK AND MORE (RECUR
OXFORDSHIRE CC,RESOURCES,LEGAL SERVICES,EDUCATIONAL AND VOCATIONAL TRAINING ,13/10/2023,11247231529,"8,088.00",SRA
OXFORDSHIRE CC,CHILDREN'S & EDUCATION,ATV ADOPTION WOODLEY,SUBSCRIPTIONS,13/10/2023,11247231263,1.1,FEE2PAYONLINE
OXFORDSHIRE CC,SOCIAL AND COMMUNITY SERVICES,CSS WITNEY,CATERING PROVISIONS,13/10/2023,11247231541,35.7,MILK AND MORE (RECUR
OXFORDSHIRE CC,CHILDREN'S & EDUCATION,FSP NON-STAFFING - CENTRAL,MATERIALS,13/10/2023,11247231671,349,CURRYS ONLINE
OXFORDSHIRE CC,CHILDREN'S & EDUCATION,EYNSHAM,CATERING PROVISIONS,13/10/2023,11247231681,8.65,SAINSBURYS S/MKTS
OXFORDSHIRE CC,CORPORATE CORE,SOTERIA,PAYMENT TO GOVERNMENT DEPARTMENTS,13/10/2023,11247231747,30,TELEPERFORMANCEUK
OXFORDSHIRE CC,CHILDREN'S & EDUCATION,"	SEN/ICT EQUIPMENT",PURCHASE OF IT EQUIPMENT,13/10/2023,11247231755,15.98,AMZNMKTPLACE
OXFORDSHIRE CC,CHILDREN'S & EDUCATION,40 THE MOORS,CATERING PROVISIONS,13/10/2023,11247231569,210.33,SAINSBURYS.CO.UK
OXFORDSHIRE CC,SOCIAL AND COMMUNITY SERVICES,HOLTON SITE,CATERING PROVISIONS,13/10/2023,11247231299,16.1,MILK AND MORE (RECUR
OXFORDSHIRE CC,CHILDREN'S & EDUCATION,SUPPORTED INTERNSHIPS FOR YP WITH SEND,PAYMENTS TO OTHER ESTABLISHMENTS,13/10/2023,11247231767,7.99,AMZNMKTPLACE
OXFORDSHIRE CC,CHILDREN'S & EDUCATION,CSS WALLINGFORD,MATERIALS,13/10/2023,11247231255,6.49,AMZNMKTPLACE
OXFORDSHIRE CC,CORPORATE CORE,,STATIONERY,13/10/2023,11247231635,37.54,LYRECO UK LTD
OXFORDSHIRE CC,CORPORATE CORE,SOTERIA,PAYMENT TO GOVERNMENT DEPARTMENTS,13/10/2023,11247231749,68.8,TLSCONTACT (UK) LTD
OXFORDSHIRE CC,CHILDREN'S & EDUCATION,40 THE MOORS,CATERING PROVISIONS,13/10/2023,11247231567,10,TESCO GIFT CARD
OXFORDSHIRE CC,CORPORATE CORE,,STATIONERY,13/10/2023,11247231623,170.23,LYRECO UK LTD
OXFORDSHIRE CC,CORPORATE CORE,,STATIONERY,13/10/2023,11247231631,1.68,LYRECO UK LTD
OXFORDSHIRE CC,CORPORATE CORE,,STATIONERY,13/10/2023,11247231625,166.82,LYRECO UK LTD
OXFORDSHIRE CC,CORPORATE CORE,,STATIONERY,13/10/2023,11247231633,35.76,LYRECO UK LTD
OXFORDSHIRE CC,CHILDREN'S & EDUCATION,SUPPORTED INTERNSHIPS FOR YP WITH SEND,PAYMENTS TO OTHER ESTABLISHMENTS,13/10/2023,11247231757,3.49,AMZNMKTPLACE
OXFORDSHIRE CC,CHILDREN'S & EDUCATION,40 THE MOORS,OTHER EXPENSES,13/10/2023,11247231349,15,TESCO STORES 2788
OXFORDSHIRE CC,SHARED SERVICES,CSC SUPP & SERVICES,PURCHASE OF IT EQUIPMENT,13/10/2023,11247231357,79.9,AMAZON.CO.UK H82U49TO4
OXFORDSHIRE CC,CHILDREN'S & EDUCATION,PAUSE PROGRAMME,OTHER TRANSPORT ARRANGEMENTS,13/10/2023,11247231373,2,OXFORDBUS.CO.UK
OXFORDSHIRE CC,SOCIAL AND COMMUNITY SERVICES,CSS WANTAGE,ENTERTAINMENT EXPENSES,13/10/2023,11247231545,11.04,HOLLYWOOD BOWL
OXFORDSHIRE CC,CHILDREN'S & EDUCATION,40 THE MOORS,CATERING PROVISIONS,13/10/2023,11247231351,2.5,TESCO STORES 2788
OXFORDSHIRE CC,SHARED SERVICES,CSC SUPP & SERVICES,PURCHASE OF IT EQUIPMENT,13/10/2023,11247231359,79.9,AMAZON.CO.UK H827F6TA4
OXFORDSHIRE CC,CORPORATE CORE,"MARKETING, COMMUNICATIONS & ENGAGEMENT",IT SOFTWARE,13/10/2023,11247231665,665.39,MAILCHIMP
OXFORDSHIRE CC,SOCIAL AND COMMUNITY SERVICES,CSS - OXFORD,DAY ACTIVITIES,13/10/2023,11247231271,5.95,WWW.BETTER.ORG.UK
OXFORDSHIRE CC,ENVIRONMENT AND ECONOMY,HARD FM,PREMISES REPAIRS,13/10/2023,11247231279,8.44,EDMUNDSON ELECTRIC
OXFORDSHIRE CC,CORPORATE CORE,INCOME TEAM,PAYMENT TO GOVERNMENT DEPARTMENTS,13/10/2023,11247231345,11,NORTH NORTHAMPTONSHIRE
OXFORDSHIRE CC,CHILDREN'S & EDUCATION,FAMILY SOLUTIONS PLUS NON-STAFF � SOUTH,HIRE OF ACCOMMODATION AND FACILITIES,13/10/2023,11247231659,55.06,TRAVELODGE
OXFORDSHIRE CC,CHILDREN'S & EDUCATION,PAUSE PROGRAMME,OTHER TRANSPORT ARRANGEMENTS,13/10/2023,11247231369,2,OXFORDBUS.CO.UK
OXFORDSHIRE CC,CHILDREN'S & EDUCATION,PAUSE PROGRAMME,CATERING PROVISIONS,13/10/2023,11247231377,27.03,ALDI 77 775
OXFORDSHIRE CC,ENVIRONMENT AND ECONOMY,"	SAMUELSON HOUSE",CATERING PROVISIONS,13/10/2023,11247231385,42.84,MILK AND MORE (RECUR
OXFORDSHIRE CC,RESOURCES,INFORMATION MGT,STAFF USE OF PUBLIC TRANSPORT,13/10/2023,11247231523,85.3,WWW.GWR.COM
OXFORDSHIRE CC,CHILDREN'S & EDUCATION,"	RESIDENTIAL STRATEGY",CATERING PROVISIONS,13/10/2023,11247231531,8.7,TESCO STORES 4377
OXFORDSHIRE CC,CHILDREN'S & EDUCATION,PAUSE PROGRAMME,OTHER TRANSPORT ARRANGEMENTS,13/10/2023,11247231371,2,OXFORDBUS.CO.UK
OXFORDSHIRE CC,CHILDREN'S & EDUCATION,PAUSE PROGRAMME,CATERING PROVISIONS,13/10/2023,11247231379,2.95,SAINSBURYS S/MKTS
OXFORDSHIRE CC,RESOURCES,ICT OPERATIONS & MAI,PURCHASE OF IT EQUIPMENT,13/10/2023,11247231709,76.16,AMAZON.CO.UK H88YC5AJ4
OXFORDSHIRE CC,CHILDREN'S & EDUCATION,FSP NON-STAFFING - CENTRAL,NON-STAFF SUBSISTENCE AND EXPENSES,13/10/2023,11247231711,67.3,TRAVELODGE
OXFORDSHIRE CC,RESOURCES,CENTRAL BUYING TEAM,STAFF USE OF PUBLIC TRANSPORT,13/10/2023,11247231525,94.8,WWW.GWR.COM
OXFORDSHIRE CC,SOCIAL AND COMMUNITY SERVICES,"	CENTRAL LIBRARY",MATERIALS,13/10/2023,11247231533,686.4,SUMUP   T J GRESSWELL
OXFORDSHIRE CC,CORPORATE CORE,"	CHAIRMANS ALLOWANCE",MATERIALS,13/10/2023,11247231675,299.85,THE POPPY SHOP
OXFORDSHIRE CC,CHILDREN'S & EDUCATION,EYNSHAM,MATERIALS,13/10/2023,11247231679,59.99,WITNEY INSIDE SAINSBUR
OXFORDSHIRE CC,CORPORATE CORE,CATERING MANAGEMENT SOFT FM,PAYMENTS TO TRANSPORT OPERATORS,13/10/2023,11247231265,98.31,GAR HOTELRES
OXFORDSHIRE CC,CUSTOMER AND CULTURE,HARD FM,HARDWARE AND CROCKERY,13/10/2023,11247231273,215.94,SYDENHAMS LTD
OXFORDSHIRE CC,CHILDREN'S & EDUCATION,40 THE MOORS,CATERING PROVISIONS,13/10/2023,11247231347,25,TESCO STORES 2788
OXFORDSHIRE CC,CHILDREN'S & EDUCATION,"	C&I BASE LORD WILL'M","SUPPLIES, STATIONERY AND MATERIALS",13/10/2023,11247231355,3.15,SAINSBURYS S/MKTS
OXFORDSHIRE CC,CHILDREN'S & EDUCATION,FAMILY SOLUTIONS PLUS NON-STAFF � SOUTH,FURNITURE,13/10/2023,11247231661,65,WWW.ARGOS.CO.UK
OXFORDSHIRE CC,CUSTOMER AND CULTURE,HARD FM,HARDWARE AND CROCKERY,13/10/2023,11247231275,12.81,B & Q 1156
OXFORDSHIRE CC,SOCIAL AND COMMUNITY SERVICES,"	SHARED LIVES",PAYMENT TO GOVERNMENT DEPARTMENTS,12/10/2023,11241491805,50.91,CHERWELL DC
OXFORDSHIRE CC,CHILDREN'S & EDUCATION,WITNEY,CATERING PROVISIONS,12/10/2023,11241491585,27.78,SAINSBURYS S/MKTS
OXFORDSHIRE CC,CHILDREN'S & EDUCATION,FSP NON-STAFFING - CENTRAL,PAYMENT TO GOVERNMENT DEPARTMENTS,12/10/2023,11241491801,22,OXFORDSHIRE CC WEB1
OXFORDSHIRE CC,ENVIRONMENT AND ECONOMY,HARD FM,PREMISES REPAIRS,12/10/2023,11241491025,42.57,SYDENHAMS LTD
OXFORDSHIRE CC,CHILDREN'S & EDUCATION,HOUSE PROJECT,OTHER TRANSPORT ARRANGEMENTS,12/10/2023,11241491073,2.7,HEADINGTON CAR PARK
OXFORDSHIRE CC,ENVIRONMENT AND ECONOMY,HARD FM,PREMISES REPAIRS,12/10/2023,11241491027,302.38,JEWSON LTD
OXFORDSHIRE CC,CHILDREN'S & EDUCATION,CHILDREN IN CARE NON-STAFFING - NORTH,PAYMENTS TO TRANSPORT OPERATORS,12/10/2023,11241491049,58.17,TRAINLINE
OXFORDSHIRE CC,ENVIRONMENT AND ECONOMY,HARD FM,PREMISES REPAIRS,12/10/2023,11241491033,39.56,B & Q 1156
OXFORDSHIRE CC,CHILDREN'S & EDUCATION,THAME E&A HOME,CATERING,12/10/2023,11241491087,2.2,SIP CARS PARKS (1) LIM
OXFORDSHIRE CC,ENVIRONMENT AND ECONOMY,HARD FM,PREMISES REPAIRS,12/10/2023,11241491035,85.8,B & Q 1062
OXFORDSHIRE CC,ENVIRONMENT AND ECONOMY,"	COUNTY PRINT FINSHRS",MATERIALS,12/10/2023,11241491061,15.73,AMZNMKTPLACE
OXFORDSHIRE CC,SOCIAL AND COMMUNITY SERVICES,CSS WANTAGE,CATERING PROVISIONS,12/10/2023,11241491729,184.36,ASDA GROCERIES ONLINE
OXFORDSHIRE CC,CHILDREN'S & EDUCATION,WITNEY,CATERING PROVISIONS,12/10/2023,11241491751,16.7,WHITE HART
OXFORDSHIRE CC,CHILDREN'S & EDUCATION,"	RESIDENTIAL STRATEGY",MATERIALS,12/10/2023,11241491111,263.89,AMZNMKTPLACE
OXFORDSHIRE CC,SOCIAL AND COMMUNITY SERVICES,CSS BICESTER,MATERIALS,12/10/2023,11241491067,10.5,POUNDLAND LTD - 1505
OXFORDSHIRE CC,SOCIAL AND COMMUNITY SERVICES,CSS WANTAGE,MATERIALS,12/10/2023,11241491735,14.92,AMZNMKTPLACE
OXFORDSHIRE CC,CHILDREN'S & EDUCATION,WITNEY,CATERING PROVISIONS,12/10/2023,11241491753,1.25,WHITE HART
OXFORDSHIRE CC,CHILDREN'S & EDUCATION,THAME E&A HOME,CATERING,12/10/2023,11241491081,37.25,THE BREAKFAST CLUB OXF
OXFORDSHIRE CC,CHILDREN'S & EDUCATION,40 THE MOORS,CATERING,12/10/2023,11241491771,22.99,DOMINO S PIZZA
OXFORDSHIRE CC,"CHILDRENS, YOUNG PEOPLE AND FAMILIES","	LEAVING CARE CITY 2",PAYMENTS TO TRANSPORT OPERATORS,12/10/2023,11241491559,60,BICESTER NORTH STATION
OXFORDSHIRE CC,CHILDREN'S & EDUCATION,HOUSE PROJECT,OTHER TRANSPORT ARRANGEMENTS,12/10/2023,11241491069,2.2,HEADINGTON CAR PARK
OXFORDSHIRE CC,SOCIAL AND COMMUNITY SERVICES,CSS WANTAGE,CATERING PROVISIONS,12/10/2023,11241491739,-22.6,ASDA GROCERIES ONLINE
OXFORDSHIRE CC,CHILDREN'S & EDUCATION,WITNEY,CATERING PROVISIONS,12/10/2023,11241491759,4.1,CAR PARK CHARGES
OXFORDSHIRE CC,CHILDREN'S & EDUCATION,THAME E&A HOME,CATERING,12/10/2023,11241491085,3.8,WESTGATE OXFORD CAR PA
OXFORDSHIRE CC,CHILDREN'S & EDUCATION,40 THE MOORS,CATERING PROVISIONS,12/10/2023,11241491775,33.87,TESCO STORES 2788
OXFORDSHIRE CC,CHILDREN'S & EDUCATION,NTS UASC AGENCY,MATERIALS,12/10/2023,11241491107,9.31,AMZNMKTPLACE
OXFORDSHIRE CC,CHILDREN'S & EDUCATION,"	OCCG GRANT",MATERIALS,12/10/2023,11241491689,5.99,AMZNMKTPLACE
OXFORDSHIRE CC,CHILDREN'S & EDUCATION,TRANSPORT COSTS,TRANSPORT TO SCHOOL,12/10/2023,11241490979,24.5,OXFORDBUS.CO.UK
OXFORDSHIRE CC,CHILDREN'S & EDUCATION,TRANSPORT COSTS,TRANSPORT TO SCHOOL,12/10/2023,11241490983,24.5,OXFORDBUS.CO.UK
OXFORDSHIRE CC,SOCIAL AND COMMUNITY SERVICES,CSS WITNEY,VEHICLE - HIRE CHARGES,12/10/2023,11241490971,106.16,HIRE STATION-ONE CAL
OXFORDSHIRE CC,CHILDREN'S & EDUCATION,"	LEAVING CARE CITY 1",OTHER EXPENSES,12/10/2023,11241490985,487.76,AMAZON  204-2491785-25
OXFORDSHIRE CC,CHILDREN'S & EDUCATION,CSS WALLINGFORD,CATERING,12/10/2023,11241490975,19.63,AMZNMKTPLACE
OXFORDSHIRE CC,CHILDREN'S & EDUCATION,CHILDREN IN CARE NON-STAFFING - SOUTH,NON-STAFF SUBSISTENCE AND EXPENSES,12/10/2023,11241490989,100,ASDA STORES LTD
OXFORDSHIRE CC,CHILDREN'S & EDUCATION,CHILDREN IN CARE NON-STAFFING - SOUTH,NON-STAFF SUBSISTENCE AND EXPENSES,12/10/2023,11241491001,-67,TESCO GIFT CARD
OXFORDSHIRE CC,CHILDREN'S & EDUCATION,NTS UASC AGENCY,MATERIALS,12/10/2023,11241491691,93.95,AMZNMKTPLACE
OXFORDSHIRE CC,CHILDREN'S & EDUCATION,MARKETING,OTHER SERVICES,12/10/2023,11241491011,189.79,PARKBEE
OXFORDSHIRE CC,CHILDREN'S & EDUCATION,CHILDREN IN CARE NON-STAFFING - SOUTH,NON-STAFF SUBSISTENCE AND EXPENSES,12/10/2023,11241490995,67,TESCO GIFT CARD
OXFORDSHIRE CC,ENVIRONMENT AND ECONOMY,HARD FM,PREMISES REPAIRS,12/10/2023,11241491019,50.69,INTERNATIONAL PASSIVE
OXFORDSHIRE CC,CHILDREN'S & EDUCATION,"	LOOKED AFTER CITY 2",OTHER TRANSPORT ARRANGEMENTS,12/10/2023,11241491467,16,TRAINLINE
OXFORDSHIRE CC,CHILDREN'S & EDUCATION,HOUSE PROJECT,OTHER TRANSPORT ARRANGEMENTS,12/10/2023,11241492129,28.27,LIDL GB
OXFORDSHIRE CC,CHILDREN'S & EDUCATION,"	LOOKED AFTER CITY 2",OTHER TRANSPORT ARRANGEMENTS,12/10/2023,11241491471,2,OXFORD BUS COMPANY
OXFORDSHIRE CC,SOCIAL AND COMMUNITY SERVICES,CSS - BANBURY,EDUCATIONAL AND VOCATIONAL TRAINING ,12/10/2023,11241492109,49.95,GOLDEN CARERS PTY LTD
OXFORDSHIRE CC,CHILDREN'S & EDUCATION,THAME E&A HOME,CATERING,12/10/2023,11241492153,87.64,COSMO
OXFORDSHIRE CC,CHILDREN'S & EDUCATION,"	RESIDENTIAL STRATEGY",CATERING PROVISIONS,12/10/2023,11241491455,28.45,SAINSBURYS S/MKTS
OXFORDSHIRE CC,CHILDREN'S & EDUCATION,HOUSE PROJECT,OTHER TRANSPORT ARRANGEMENTS,12/10/2023,11241492115,4.8,WESTGATE OXFORD CAR PA
OXFORDSHIRE CC,CORPORATE CORE,COUNTY HALL,OTHER PREMISES RELATED COSTS,12/10/2023,11241492171,13.67,AMZNMKTPLACE
OXFORDSHIRE CC,CHILDREN'S & EDUCATION,"	DIRECTOR'S OFFICE",POSTAGE AND DELIVERY,12/10/2023,11241491439,4.49,ROYAL MAIL GROUP LTD
OXFORDSHIRE CC,CHILDREN'S & EDUCATION,"	LOOKED AFTER CITY 2",OTHER TRANSPORT ARRANGEMENTS,12/10/2023,11241491463,2,OXFORD BUS COMPANY
OXFORDSHIRE CC,"CHILDRENS, YOUNG PEOPLE AND FAMILIES","	LEAVING CARE CITY 2",CATERING,12/10/2023,11241491555,6.99,PAPA FRITES
OXFORDSHIRE CC,CHILDREN'S & EDUCATION,HOUSE PROJECT,CATERING PROVISIONS,12/10/2023,11241492119,0.39,LIDL GB
OXFORDSHIRE CC,SOCIAL AND COMMUNITY SERVICES,CSS WITNEY,CATERING PROVISIONS,12/10/2023,11241491551,24.55,MARKS&SPENCER PLC SACA
OXFORDSHIRE CC,SOCIAL AND COMMUNITY SERVICES,CSS - OXFORD,CATERING PROVISIONS,12/10/2023,11241491187,3.96,ALDI STORES 775-142
OXFORDSHIRE CC,CORPORATE CORE,,STATIONERY,12/10/2023,11241491909,88.61,LYRECO UK LTD
OXFORDSHIRE CC,SOCIAL AND COMMUNITY SERVICES,CSS - BANBURY,MATERIALS,12/10/2023,11241492105,5.99,AMZNMKTPLACE
OXFORDSHIRE CC,ADULTS,CSS BICESTER,MATERIALS,12/10/2023,11241491161,4,POUNDLAND LTD - 1505
OXFORDSHIRE CC,SOCIAL AND COMMUNITY SERVICES,CSS - OXFORD,CATERING PROVISIONS,12/10/2023,11241491179,2.75,ALDI STORES 775-142
OXFORDSHIRE CC,CORPORATE CORE,,STATIONERY,12/10/2023,11241491927,21.31,LYRECO UK LTD
OXFORDSHIRE CC,ENVIRONMENT AND ECONOMY,CTRYSIDE OPS STAFF,EQUIPMENT,12/10/2023,11241491945,86.96,AMZNMKTPLACE
OXFORDSHIRE CC,CHILDREN'S & EDUCATION,DIDCOT MOVE-ON HOME,CATERING PROVISIONS,12/10/2023,11241491965,18.75,SAINSBURYS S/MKTS
OXFORDSHIRE CC,CORPORATE CORE,,STATIONERY,12/10/2023,11241491913,176.9,LYRECO UK LTD
OXFORDSHIRE CC,CORPORATE CORE,SCHOOLS FM CATERING AREA 1,MATERIALS,12/10/2023,11241491953,19.24,AMZNMKTPLACE
OXFORDSHIRE CC,CHILDREN'S & EDUCATION,"	RESIDENTIAL STRATEGY",CATERING PROVISIONS,12/10/2023,11241492071,42.1,CHINA CITY
OXFORDSHIRE CC,CORPORATE CORE,SCHOOLS FM CATERING AREA 1,CATERING PROVISIONS,12/10/2023,11241491957,4.9,TESCO-STORES 2305
OXFORDSHIRE CC,CORPORATE CORE,"MARKETING, COMMUNICATIONS & ENGAGEMENT","PUBLICITY, PROMOTIONS AND ADVERTISEMENT",12/10/2023,11241491973,124.39,SNAP INC SNAP SNAP ADS
OXFORDSHIRE CC,CHILDREN'S & EDUCATION,NTS UASC AGENCY,MATERIALS,12/10/2023,11241491117,2.78,AMZNMKTPLACE
OXFORDSHIRE CC,CHILDREN'S & EDUCATION,"	LEAVING CARE CITY 1",CLEANING MATERIALS,12/10/2023,11241491137,1,SAVERS HEALTH & BEAUTY
OXFORDSHIRE CC,CORPORATE CORE,,STATIONERY,12/10/2023,11241491917,301.01,LYRECO UK LTD
OXFORDSHIRE CC,CORPORATE CORE,,STATIONERY,12/10/2023,11241491935,6.12,LYRECO UK LTD
OXFORDSHIRE CC,CORPORATE CORE,,STATIONERY,12/10/2023,11241491903,37.92,LYRECO UK LTD
OXFORDSHIRE CC,CORPORATE CORE,,STATIONERY,12/10/2023,11241491921,27.13,LYRECO UK LTD
OXFORDSHIRE CC,CHILDREN'S & EDUCATION,THAME E&A HOME,OTHER TRANSPORT ARRANGEMENTS,12/10/2023,11241491169,20.2,ARRIVA THE SHIRES LIMI
OXFORDSHIRE CC,CORPORATE CORE,"MARKETING, COMMUNICATIONS & ENGAGEMENT","PUBLICITY, PROMOTIONS AND ADVERTISEMENT",12/10/2023,11241491977,500,FACEBK  MHMNCVF9Z2
OXFORDSHIRE CC,CHILDREN'S & EDUCATION,THAME E&A HOME,SUBSCRIPTIONS,12/10/2023,11241491173,7.99,TESCO SUBSCRIPTION
OXFORDSHIRE CC,CORPORATE CORE,,STATIONERY,12/10/2023,11241491937,32.69,LYRECO UK LTD
OXFORDSHIRE CC,ENVIRONMENT AND ECONOMY,CTRYSIDE OPS STAFF,EQUIPMENT,12/10/2023,11241491941,189.95,AMZNMKTPLACE
OXFORDSHIRE CC,CHILDREN'S & EDUCATION,PAUSE PROGRAMME,CATERING,12/10/2023,11241491381,10.37,MCDONALDS
OXFORDSHIRE CC,CHILDREN'S & EDUCATION,NTS UASC AGENCY,MATERIALS,12/10/2023,11241491115,8.99,AMZNMKTPLACE
OXFORDSHIRE CC,CORPORATE CORE,"MARKETING, COMMUNICATIONS & ENGAGEMENT","PUBLICITY, PROMOTIONS AND ADVERTISEMENT",12/10/2023,11241491983,132.32,SNAP INC SNAP SNAP ADS
OXFORDSHIRE CC,ENVIRONMENT AND ECONOMY,HENLEY LIBRARY,MATERIALS,12/10/2023,11241491985,9.5,AMZNMKTPLACE
OXFORDSHIRE CC,CHILDREN'S & EDUCATION,DIDCOT MOVE-ON HOME,MATERIALS,12/10/2023,11241491313,0.7,SAINSBURYS S/MKTS
OXFORDSHIRE CC,CHILDREN'S & EDUCATION,THAME E&A HOME,CATERING,12/10/2023,11241491331,24.99,TESCO STORES 2008
OXFORDSHIRE CC,CHILDREN'S & EDUCATION,"	MALTFIELD HOUSE",HIRE OF ACCOMMODATION AND FACILITIES,12/10/2023,11241491305,742,SYKES COTTAGES
OXFORDSHIRE CC,CORPORATE CORE,,STATIONERY,12/10/2023,11241491931,34.72,LYRECO UK LTD
OXFORDSHIRE CC,CHILDREN'S & EDUCATION,THAME E&A HOME,CATERING,12/10/2023,11241491335,11.2,TESCO STORES 2008
OXFORDSHIRE CC,CHILDREN'S & EDUCATION,DIDCOT MOVE-ON HOME,CATERING PROVISIONS,12/10/2023,11241491311,5.64,SAINSBURYS S/MKTS
OXFORDSHIRE CC,CHILDREN'S & EDUCATION,THAME E&A HOME,CATERING,12/10/2023,11241491327,56.85,B&M 515 - ABINGDON
OXFORDSHIRE CC,CHILDREN'S & EDUCATION,VIRTUAL SCHOOL POST 16 PPP,EDUCATIONAL AND VOCATIONAL TRAINING ,12/10/2023,11241491375,300,ACTIVATE LEARNING -CC
OXFORDSHIRE CC,CORPORATE CORE,,STATIONERY,12/10/2023,11241491899,48.66,LYRECO UK LTD
OXFORDSHIRE CC,"CHILDRENS, YOUNG PEOPLE AND FAMILIES",NRPF & HOMELESSNESS,HIRE OF ACCOMMODATION AND FACILITIES,12/10/2023,11241492011,562,PREMIER INN
OXFORDSHIRE CC,ENVIRONMENT AND ECONOMY,HENLEY LIBRARY,MATERIALS,12/10/2023,11241491989,13.73,AMZNMKTPLACE
OXFORDSHIRE CC,"CHILDRENS, YOUNG PEOPLE AND FAMILIES",NRPF & HOMELESSNESS,HIRE OF ACCOMMODATION AND FACILITIES,12/10/2023,11241492003,597,PREMIER INN
OXFORDSHIRE CC,"CHILDRENS, YOUNG PEOPLE AND FAMILIES",NRPF & HOMELESSNESS,HIRE OF ACCOMMODATION AND FACILITIES,12/10/2023,11241492007,566,PREMIER INN
OXFORDSHIRE CC,RESOURCES,ICT OPERATIONS & MAI,PURCHASE OF IT EQUIPMENT,12/10/2023,11241492039,499,AMAZON  204-4428539-85
OXFORDSHIRE CC,CHILDREN'S & EDUCATION,EYNSHAM,CATERING PROVISIONS,12/10/2023,11241492055,18.2,CO-OPERATIVE FOOD
OXFORDSHIRE CC,CHILDREN'S & EDUCATION,THAME E&A HOME,RESIDENTIAL ACTIVITIES,12/10/2023,11241491167,17,ZETTLE_ JUNKYARD GOLF
OXFORDSHIRE CC,CHILDREN'S & EDUCATION,PAUSE PROGRAMME,CATERING PROVISIONS,12/10/2023,11241491385,8,POUNDLAND LTD - 1586
OXFORDSHIRE CC,"CHILDRENS, YOUNG PEOPLE AND FAMILIES",NRPF & HOMELESSNESS,HIRE OF ACCOMMODATION AND FACILITIES,12/10/2023,11241492001,627,PREMIER INN
OXFORDSHIRE CC,CHILDREN'S & EDUCATION,TRANSPORT COSTS,TRANSPORT TO SCHOOL,12/10/2023,11241491423,24.5,OXFORDBUS.CO.UK
OXFORDSHIRE CC,ENVIRONMENT AND ECONOMY,HENLEY LIBRARY,MATERIALS,12/10/2023,11241491991,24.7,BRIGHTONS NEWSAGEN
OXFORDSHIRE CC,CHILDREN'S & EDUCATION,PAUSE PROGRAMME,CATERING PROVISIONS,12/10/2023,11241491389,4,ASDA STORE 4442
OXFORDSHIRE CC,CHILDREN'S & EDUCATION,"	LEAVING CARE CITY 2",CATERING,12/10/2023,11241491431,9.12,MCDONALDS
OXFORDSHIRE CC,RESOURCES,ICT OPERATIONS & MAI,PURCHASE OF IT EQUIPMENT,12/10/2023,11241492043,499,AMAZON  204-4428539-85
OXFORDSHIRE CC,SOCIAL AND COMMUNITY SERVICES,CSS - OXFORD,CATERING PROVISIONS,12/10/2023,11241491183,87.61,ALDI STORES 775-142
OXFORDSHIRE CC,CUSTOMER AND CULTURE,DEPARTMENTAL MANAGE,PAYMENTS TO TRANSPORT OPERATORS,12/10/2023,11241492015,-28,TRAINLINE
OXFORDSHIRE CC,CHILDREN'S & EDUCATION,FAMILY SOLUTIONS PLUS NON-STAFF - NORTH,PAYMENTS TO TRANSPORT OPERATORS,12/10/2023,11241492061,61.54,TRAINLINE
OXFORDSHIRE CC,CHILDREN'S & EDUCATION,"	RESIDENTIAL STRATEGY",CATERING PROVISIONS,12/10/2023,11241492067,100.07,ALDI 49 775
OXFORDSHIRE CC,CORPORATE CORE,SOTERIA,STATIONERY,12/10/2023,11241492199,20,SNAPPY SNAPS OXFORD
OXFORDSHIRE CC,CHILDREN'S & EDUCATION,FAMILY SOLUTIONS PLUS NON-STAFF - NORTH,POSTAGE AND DELIVERY,12/10/2023,11241492215,36,POST OFFICE COUNTER
OXFORDSHIRE CC,CORPORATE CORE,SOTERIA,INSURANCE COSTS,12/10/2023,11241492203,24.96,EUROP ASSISTANCE
OXFORDSHIRE CC,CORPORATE CORE,SOTERIA,INSURANCE COSTS,12/10/2023,11241492207,21.84,ALLIANZ GLOBAL ASSISTA
OXFORDSHIRE CC,CHILDREN'S & EDUCATION,"	MARLBOROUGH",OTHER COMMUNICATIONS,12/10/2023,11241492211,239.99,AMZNMKTPLACE
OXFORDSHIRE CC,CHILDREN'S & EDUCATION,FAMILY SOLUTIONS PLUS NON-STAFF - NORTH,CATERING PROVISIONS,12/10/2023,11241492221,1.45,ICELAND
OXFORDSHIRE CC,"CHILDRENS, YOUNG PEOPLE AND FAMILIES",CARE LEAVERS STAFFING,"SUPPLIES, STATIONERY AND MATERIALS",12/10/2023,11241492233,25,BLACKHAWK CS   ICELAND
OXFORDSHIRE CC,CHILDREN'S & EDUCATION,C&I BASE ST ANDREWS,STATIONERY,12/10/2023,11241491215,-14.1,WWW.TTS-GROUPS.CO.UK
OXFORDSHIRE CC,ENVIRONMENT AND ECONOMY,"	WASTE MNGMNT GEN",REGISTRATION AND INSPECTION FEES,12/10/2023,11241491623,96,THOMSON REUTERS UK LTD
OXFORDSHIRE CC,CORPORATE CORE,,STATIONERY,12/10/2023,11241491851,39.41,LYRECO UK LTD
OXFORDSHIRE CC,CORPORATE CORE,,STATIONERY,12/10/2023,11241491873,109.34,LYRECO UK LTD
OXFORDSHIRE CC,CORPORATE CORE,,STATIONERY,12/10/2023,11241491891,75.07,LYRECO UK LTD
OXFORDSHIRE CC,CHILDREN'S & EDUCATION,"	OCCG GRANT",DOMESTIC AND CLEANING EQUIPMENT,12/10/2023,11241491233,14,ASDA STORE 4442
OXFORDSHIRE CC,SHARED SERVICES,CSC SUPP & SERVICES,PURCHASE OF IT EQUIPMENT,12/10/2023,11241491219,79.9,AMAZON.CO.UK H85MP5314
OXFORDSHIRE CC,CHILDREN'S & EDUCATION,"	OCCG GRANT",MATERIALS,12/10/2023,11241491239,9,TIMPSON LTD
OXFORDSHIRE CC,CORPORATE CORE,,STATIONERY,12/10/2023,11241491855,136.82,LYRECO UK LTD
OXFORDSHIRE CC,SOCIAL AND COMMUNITY SERVICES,CSS - OXFORD,POSTAGE AND DELIVERY,12/10/2023,11241491649,396,RM PO BOX ONLINE
OXFORDSHIRE CC,CORPORATE CORE,,STATIONERY,12/10/2023,11241491861,232.81,LYRECO UK LTD
OXFORDSHIRE CC,CORPORATE CORE,,STATIONERY,12/10/2023,11241491879,19.37,LYRECO UK LTD
OXFORDSHIRE CC,SHARED SERVICES,CSC SUPP & SERVICES,PURCHASE OF IT EQUIPMENT,12/10/2023,11241491221,79.9,AMAZON.CO.UK H856363W4
OXFORDSHIRE CC,CHILDREN'S & EDUCATION,EYNSHAM,POSTAGE AND DELIVERY,12/10/2023,11241491243,2.99,POST OFFICE COUNTER
OXFORDSHIRE CC,CORPORATE CORE,,STATIONERY,12/10/2023,11241491869,13.34,LYRECO UK LTD
OXFORDSHIRE CC,CORPORATE CORE,,STATIONERY,12/10/2023,11241491883,23.65,LYRECO UK LTD
OXFORDSHIRE CC,CHILDREN'S & EDUCATION,"	FPT NORTH",SUBSCRIPTIONS,12/10/2023,11241491227,65.94,192.COM
OXFORDSHIRE CC,CORPORATE CORE,,STATIONERY,12/10/2023,11241491875,5.08,LYRECO UK LTD
OXFORDSHIRE CC,CORPORATE CORE,,STATIONERY,12/10/2023,11241491895,16.92,LYRECO UK LTD
OXFORDSHIRE CC,SOCIAL AND COMMUNITY SERVICES,LIBRARY PROJECTS,MATERIALS,11/10/2023,11235491489,143.82,LEGO SYSTEM A/S
OXFORDSHIRE CC,CHILDREN'S & EDUCATION,FAMILY SOLUTIONS PLUS NON-STAFF - NORTH,ENTERTAINMENT EXPENSES,11/10/2023,11235491517,19.9,HTTPS://WWW.LITTLEOWLF
OXFORDSHIRE CC,CHILDREN'S & EDUCATION,FSP NON-STAFFING - CENTRAL,HARDWARE AND CROCKERY,11/10/2023,11235491923,9.99,AMZNMKTPLACE
OXFORDSHIRE CC,CORPORATE CORE,SOTERIA,PAYMENTS TO TRANSPORT OPERATORS,11/10/2023,11235491947,154.99,EUROWINGS YFTIRP_269837
OXFORDSHIRE CC,CHILDREN'S & EDUCATION,THAME E&A HOME,CATERING PROVISIONS,11/10/2023,11235490803,8.9,COSTA THAME
OXFORDSHIRE CC,ENVIRONMENT AND ECONOMY,"	COUNTY PRINT FINSHRS",REGISTRATION AND INSPECTION FEES,11/10/2023,11235490839,"1,020.00",TUV UK LIMITED
OXFORDSHIRE CC,CORPORATE CORE,THAME LIBRARY,"NEWSPAPERS, PERIODICALS AND PUBLICATIONS",11/10/2023,11235491305,5.6,SAINSBURYS S/MKTS
OXFORDSHIRE CC,CHILDREN'S & EDUCATION,EYNSHAM,CATERING,11/10/2023,11235491329,53.3,TESCO STORES 2008
OXFORDSHIRE CC,ENTERPRISEVC,,CAR LEASING - PRIVATE RENTALS,11/10/2023,11235491379,38.75,ENTERPRISE RENT-A-CAR
OXFORDSHIRE CC,"CHILDRENS, YOUNG PEOPLE AND FAMILIES",FSP NON-STAFFING - CENTRAL,MATERIALS,11/10/2023,11235490285,280,WWW.ARGOS.CO.UK
OXFORDSHIRE CC,CHILDREN'S & EDUCATION,"	LEAVING CARE NORTH",PAYMENTS TO TRANSPORT OPERATORS,11/10/2023,11235491465,9.57,TRAINLINE
OXFORDSHIRE CC,"CHILDRENS, YOUNG PEOPLE AND FAMILIES",FAMILY SOLUTIONS PLUS NON-STAFF � SOUTH,PAYMENT TO GOVERNMENT DEPARTMENTS,11/10/2023,11235491495,59,VALE OF WHITE HORSE DC
OXFORDSHIRE CC,CHILDREN'S & EDUCATION,"	OCCG GRANT",CATERING,11/10/2023,11235491525,3.4,VANJORDANS COFFEE HOUS
OXFORDSHIRE CC,SOCIAL AND COMMUNITY SERVICES,COWLEY LIBRARY,MATERIALS,11/10/2023,11235491867,12.34,AMZNMKTPLACE
OXFORDSHIRE CC,CORPORATE CORE,OTHER,INSUR AD HOLD ACC-E,11/10/2023,11235491235,3.29,ROYAL MAIL GROUP LTD
OXFORDSHIRE CC,CHILDREN'S & EDUCATION,SWINDON,HIRED AND CONTRACTED SERVICES,11/10/2023,11235490297,35.98,AMZNMKTPLACE
OXFORDSHIRE CC,CORPORATE CORE,MUSIC UNALLOCABLE,PROFESSIONAL SUBSCRIPTIONS,11/10/2023,11235491875,44.59,PPL PRS LTD
OXFORDSHIRE CC,CHILDREN'S & EDUCATION,"	LEAVING CARE CITY 1",OTHER EXPENSES,11/10/2023,11235490159,18.49,AMAZON  204-6812435-42
OXFORDSHIRE CC,CORPORATE CORE,,STATIONERY,11/10/2023,11235491337,11.32,LYRECO UK LTD
OXFORDSHIRE CC,CORPORATE CORE,SOTERIA,PAYMENTS TO TRANSPORT OPERATORS,11/10/2023,11235491935,86.74,LUFTHANSA
OXFORDSHIRE CC,CORPORATE CORE,OTHER,INSUR AD HOLD ACC-E,11/10/2023,11235491229,"1,976.04",THOMSON REUTERS UK LTD
OXFORDSHIRE CC,CORPORATE CORE,,STATIONERY,11/10/2023,11235491355,-30.62,LYRECO UK LTD
OXFORDSHIRE CC,CHILDREN'S & EDUCATION,SWINDON,HIRED AND CONTRACTED SERVICES,11/10/2023,11235490291,21.98,AMZNMKTPLACE
OXFORDSHIRE CC,"CHILDRENS, YOUNG PEOPLE AND FAMILIES","	LEAVING CARE CITY 2",CATERING,11/10/2023,11235490919,17.98,POPEYES LOUISIANA CHIC
OXFORDSHIRE CC,CHILDREN'S & EDUCATION,CSS - ABINGDON,MATERIALS,11/10/2023,11235492049,25.9,ALDI STORES
OXFORDSHIRE CC,ENTERPRISEVC,,CAR LEASING - PRIVATE RENTALS,11/10/2023,11235491365,38.75,ENTERPRISE RENT-A-CAR
OXFORDSHIRE CC,SOCIAL AND COMMUNITY SERVICES,CSS - BANBURY,ENTERTAINMENT EXPENSES,11/10/2023,11235491913,15.6,SPICEBALL LEISURE CENT
OXFORDSHIRE CC,"CHILDRENS, YOUNG PEOPLE AND FAMILIES","	LEAVING CARE CITY 2",OTHER TRANSPORT ARRANGEMENTS,11/10/2023,11235490923,2,STGCOACH/CTYLINK
OXFORDSHIRE CC,CORPORATE CORE,,STATIONERY,11/10/2023,11235491345,128.44,LYRECO UK LTD
OXFORDSHIRE CC,CHILDREN'S & EDUCATION,CSS WANTAGE,CATERING PROVISIONS,11/10/2023,11235490199,71.74,SAINSBURYS S/MKTS
OXFORDSHIRE CC,ENTERPRISEVC,,CAR LEASING - PRIVATE RENTALS,11/10/2023,11235491385,38.06,ENTERPRISE RENT-A-CAR
OXFORDSHIRE CC,CORPORATE CORE,"	CORPORATE FINANCE",PROFESSIONAL SUBSCRIPTIONS,11/10/2023,11235490717,414,WWW.CIPFA.ORG.UK/PFMCO
OXFORDSHIRE CC,CHILDREN'S & EDUCATION,"	LEAVING CARE SOUTH",CATERING,11/10/2023,11235490747,12,WWW.VOXI.CO.UK
OXFORDSHIRE CC,CHILDREN'S & EDUCATION,KINGFISHER,CATERING PROVISIONS,11/10/2023,11235490205,100,VOUCHER EXPRESS
OXFORDSHIRE CC,ENTERPRISEVC,,CAR LEASING - PRIVATE RENTALS,11/10/2023,11235491391,106.01,ENTERPRISE RENT-A-CAR
OXFORDSHIRE CC,ENVIRONMENT AND ECONOMY,HARD FM,PREMISES REPAIRS,11/10/2023,11235490259,16.04,B & Q 1062
OXFORDSHIRE CC,CORPORATE CORE,INSURANCE TEAM,PAYMENTS TO TRANSPORT OPERATORS,11/10/2023,11235490723,85.3,WWW.GWR.COM
OXFORDSHIRE CC,ENVIRONMENT AND ECONOMY,MUSEUMS COLLECTIONS,MATERIALS,11/10/2023,11235491967,39.92,GAMMA FITTINGS LTD
OXFORDSHIRE CC,"CHILDRENS, YOUNG PEOPLE AND FAMILIES","	LOOKED AFTER CITY 2",OTHER TRANSPORT ARRANGEMENTS,11/10/2023,11235490875,2,OXFORD BUS COMPANY
OXFORDSHIRE CC,SOCIAL AND COMMUNITY SERVICES,CSS - ABINGDON,CATERING PROVISIONS,11/10/2023,11235490177,57.42,TESCO STORES 2008
OXFORDSHIRE CC,ENTERPRISEVC,,CAR LEASING - PRIVATE RENTALS,11/10/2023,11235491371,77.5,ENTERPRISE RENT-A-CAR
OXFORDSHIRE CC,ENTERPRISEVC,,CAR LEASING - PRIVATE RENTALS,11/10/2023,11235491397,63.1,ENTERPRISE RENT-A-CAR
OXFORDSHIRE CC,CHILDREN'S & EDUCATION,CHILDREN IN CARE NON-STAFFING - SOUTH,PAYMENT TO GOVERNMENT DEPARTMENTS,11/10/2023,11235491481,2.4,MAX SPIELMANN LTD
OXFORDSHIRE CC,SOCIAL AND COMMUNITY SERVICES,"	MTFC",CATERING,11/10/2023,11235491509,44.82,WESTON MANOR HOTEL
OXFORDSHIRE CC,CORPORATE CORE,SCHOOLS FM CATERING AREA 1,CATERING PROVISIONS,11/10/2023,11235491535,18.55,TESCO-STORES 2305
OXFORDSHIRE CC,ENVIRONMENT AND ECONOMY,HENLEY LIBRARY,MATERIALS,11/10/2023,11235491569,14.39,AMZNMKTPLACE
OXFORDSHIRE CC,CORPORATE CORE,SOTERIA,PAYMENTS TO TRANSPORT OPERATORS,11/10/2023,11235491943,25.86,LUFTHANSA
OXFORDSHIRE CC,ENVIRONMENT AND ECONOMY,MUSEUMS COLLECTIONS,MATERIALS,11/10/2023,11235491973,11.99,AMZNMKTPLACE
OXFORDSHIRE CC,ENVIRONMENT AND ECONOMY,HARD FM,PREMISES REPAIRS,11/10/2023,11235490265,55.72,B & Q 1062
OXFORDSHIRE CC,CHILDREN'S & EDUCATION,EIS ADMIN,STATIONERY,11/10/2023,11235490451,33,BRYSDALES LTD
OXFORDSHIRE CC,ENTERPRISEVC,,CAR LEASING - PRIVATE RENTALS,11/10/2023,11235491409,111.04,ENTERPRISE RENT-A-CAR
OXFORDSHIRE CC,CHILDREN'S & EDUCATION,40 THE MOORS,FURNITURE,11/10/2023,11235491629,435,BEDS TO U
OXFORDSHIRE CC,SOCIAL AND COMMUNITY SERVICES,CSS - BANBURY,MATERIALS,11/10/2023,11235491825,18.99,AMAZON.CO.UK H89IE3OH4
OXFORDSHIRE CC,ENTERPRISEVC,,CAR LEASING - PRIVATE RENTALS,11/10/2023,11235491401,84.89,ENTERPRISE RENT-A-CAR
OXFORDSHIRE CC,ENTERPRISEVC,,CAR LEASING - PRIVATE RENTALS,11/10/2023,11235491419,50.63,ENTERPRISE RENT-A-CAR
OXFORDSHIRE CC,RESOURCES,ICT OPERATIONS & MAI,PURCHASE OF IT EQUIPMENT,11/10/2023,11235491705,36.5,AMAZON.CO.UK HT3V40YN4
OXFORDSHIRE CC,CHILDREN'S & EDUCATION,FSP STAFFING � NORTH,CATERING PROVISIONS,11/10/2023,11235490617,8.25,TESCO STORES 4480
OXFORDSHIRE CC,SOCIAL AND COMMUNITY SERVICES,CSS - OXFORD,MATERIALS,11/10/2023,11235491007,15.98,AMZNMKTPLACE
OXFORDSHIRE CC,ENTERPRISEVC,,CAR LEASING - PRIVATE RENTALS,11/10/2023,11235491429,100.64,ENTERPRISE RENT-A-CAR
OXFORDSHIRE CC,SOCIAL AND COMMUNITY SERVICES,CSS - BANBURY,CATERING PROVISIONS,11/10/2023,11235491807,10,POUNDSTRETCHER 322
OXFORDSHIRE CC,CHILDREN'S & EDUCATION,MANAGEMENT,CATERING PROVISIONS,11/10/2023,11235491833,150,CRAZY BEAR
OXFORDSHIRE CC,ENTERPRISEVC,,CAR LEASING - PRIVATE RENTALS,11/10/2023,11235491403,174.19,ENTERPRISE RENT-A-CAR
OXFORDSHIRE CC,ENTERPRISEVC,,CAR LEASING - PRIVATE RENTALS,11/10/2023,11235491425,47.69,ENTERPRISE RENT-A-CAR
OXFORDSHIRE CC,CHILDREN'S & EDUCATION,EYNSHAM,CATERING PROVISIONS,11/10/2023,11235491649,3.5,TESCO PFS 2488
OXFORDSHIRE CC,SOCIAL AND COMMUNITY SERVICES,CSS - BANBURY,CATERING PROVISIONS,11/10/2023,11235491815,12,TESCO STORES 2064
OXFORDSHIRE CC,CORPORATE CORE,SCHOOLS FM CATERING AREA 2,CATERING PROVISIONS,11/10/2023,11235491433,26.9,TESCO STORES 2008
OXFORDSHIRE CC,CHILDREN'S & EDUCATION,UASC 16&17,OTHER EXPENSES,11/10/2023,11235490499,13.5,OXFORDBUS.CO.UK
OXFORDSHIRE CC,RESOURCES,ICT OPERATIONS & MAI,PAYMENTS TO TRANSPORT OPERATORS,11/10/2023,11235491723,59.8,WWW.GWR.COM
OXFORDSHIRE CC,SOCIAL AND COMMUNITY SERVICES,CSS - BANBURY,MATERIALS,11/10/2023,11235491753,9,POUNDLAND LTD - 2308
OXFORDSHIRE CC,CHILDREN'S & EDUCATION,THAME E&A HOME,CATERING,11/10/2023,11235490659,12.69,SAINSBURYS S/MKTS
OXFORDSHIRE CC,CUSTOMER AND CULTURE,PROPERTY DISPOSALS,MANAGEMENT CONSULTANT FEES,11/10/2023,11235491841,342,ARBTECH CONSULTING LTD
OXFORDSHIRE CC,CORPORATE CORE,HISTORY SERVICE,FURNITURE,11/10/2023,11235491035,18.3,AMAZON.CO.UK H83WH6FV4
OXFORDSHIRE CC,CHILDREN'S & EDUCATION,"	LOOKED AFTER NORTH",VEHICLE FUEL,11/10/2023,11235491437,13.17,MCDONALDS
OXFORDSHIRE CC,SOCIAL AND COMMUNITY SERVICES,"	TRANSPORT GENERAL",VEHICLE EQUIPMENT AND EXPENSES - OTHER,11/10/2023,11235490307,34.95,AMZNMKTPLACE
OXFORDSHIRE CC,ENVIRONMENT AND ECONOMY,"	ROW MAINT",EQUIPMENT,11/10/2023,11235490809,24.16,BP BUCKLAND CONNECT
OXFORDSHIRE CC,SOCIAL AND COMMUNITY SERVICES,SCHOOLS FM CATERING AREA 2,CATERING PROVISIONS,11/10/2023,11235490845,25.96,BOOKER LTD - 38584104
OXFORDSHIRE CC,"CHILDRENS, YOUNG PEOPLE AND FAMILIES","	LOOKED AFTER CITY 2",OTHER TRANSPORT ARRANGEMENTS,11/10/2023,11235490883,4,STGCOACH/CTYLINK
OXFORDSHIRE CC,CHILDREN'S & EDUCATION,CSS WALLINGFORD,CATERING,11/10/2023,11235490137,10.6,WAITROSE 675
OXFORDSHIRE CC,CORPORATE CORE,,STATIONERY,11/10/2023,11235491351,12.12,LYRECO UK LTD
OXFORDSHIRE CC,CORPORATE CORE,SCHOOLS FM CATERING AREA 1,CATERING PROVISIONS,11/10/2023,11235491543,5.2,TESCO-STORES 2305
OXFORDSHIRE CC,CHILDREN'S & EDUCATION,FSP NON-STAFFING - CENTRAL,PAYMENT TO GOVERNMENT DEPARTMENTS,11/10/2023,11235491583,37.6,OXFORDSHIRE CC WEB1
OXFORDSHIRE CC,CHILDREN'S & EDUCATION,"	LEAVING CARE SOUTH",CATERING,11/10/2023,11235490741,72.57,ESSO ACORN SSTN
OXFORDSHIRE CC,RESOURCES,ICT OPERATIONS & MAI,PURCHASE OF IT EQUIPMENT,11/10/2023,11235491731,272,AMZNMKTPLACE
OXFORDSHIRE CC,SOCIAL AND COMMUNITY SERVICES,CSS - BANBURY,CATERING PROVISIONS,11/10/2023,11235491759,23.2,HOME BARGAINS BANBURY
OXFORDSHIRE CC,ENTERPRISEVC,,CAR LEASING - PRIVATE RENTALS,11/10/2023,11235491415,83.95,ENTERPRISE RENT-A-CAR
OXFORDSHIRE CC,CHILDREN'S & EDUCATION,"	LOOKED AFTER NORTH",VEHICLE FUEL,11/10/2023,11235491445,43.29,TESCO PFS 3878
OXFORDSHIRE CC,CHILDREN'S & EDUCATION,FAMILY SOLUTIONS PLUS NON-STAFF - NORTH,PAYMENTS TO TRANSPORT OPERATORS,11/10/2023,11235491737,-73.1,TRAINLINE
OXFORDSHIRE CC,CHILDREN'S & EDUCATION,"	OCCG GRANT",MATERIALS,11/10/2023,11235491047,99,AMZNMKTPLACE
OXFORDSHIRE CC,SOCIAL AND COMMUNITY SERVICES,CSS WANTAGE,ENTERTAINMENT EXPENSES,11/10/2023,11235491105,14.72,HOLLYWOOD BOWL
OXFORDSHIRE CC,CORPORATE CORE,REGISTRAR,CATERING PROVISIONS,11/10/2023,11235490537,12.5,MARKS & SPENCER PLC SA
OXFORDSHIRE CC,CORPORATE CORE,REGISTRAR,CATERING PROVISIONS,11/10/2023,11235490545,32.2,MARKS & SPENCER PLC SA
OXFORDSHIRE CC,CHILDREN'S & EDUCATION,VULNERABLE LEARNERS,"BOOKS, DVDS AND CDS",11/10/2023,11235490575,71.2,AMAZON.CO.UK H89W58FA4
OXFORDSHIRE CC,SOCIAL AND COMMUNITY SERVICES,CSS - BANBURY,MATERIALS,11/10/2023,11235491747,2.8,HOBBYCRAFT
OXFORDSHIRE CC,CORPORATE CORE,"	PERSONNEL",POSTAGE AND DELIVERY,11/10/2023,11235491025,6.49,ROYAL MAIL GROUP LTD
OXFORDSHIRE CC,RESOURCES,ICT OPERATIONS & MAI,PURCHASE OF IT EQUIPMENT,11/10/2023,11235491711,768,AMZNMKTPLACE
OXFORDSHIRE CC,SOCIAL AND COMMUNITY SERVICES,CSS WANTAGE,ENTERTAINMENT EXPENSES,11/10/2023,11235491101,14.72,HOLLYWOOD BOWL
OXFORDSHIRE CC,CHILDREN'S & EDUCATION,VULNERABLE LEARNERS,"BOOKS, DVDS AND CDS",11/10/2023,11235490571,128.16,AMAZON.CO.UK H87LE1FI4
OXFORDSHIRE CC,RESOURCES,ICT OPERATIONS & MAI,PURCHASE OF IT EQUIPMENT,11/10/2023,11235491717,101.62,YODECK.COM FLIPNODE
OXFORDSHIRE CC,"CHILDRENS, YOUNG PEOPLE AND FAMILIES","	LEAVING CARE CITY 2",OTHER TRANSPORT ARRANGEMENTS,11/10/2023,11235490929,2,STGCOACH/CTYLINK
OXFORDSHIRE CC,CHILDREN'S & EDUCATION,DIDCOT MOVE-ON HOME,CATERING PROVISIONS,11/10/2023,11235490649,3.25,SAINSBURYS S/MKTS
OXFORDSHIRE CC,SOCIAL AND COMMUNITY SERVICES,CSS - BANBURY,CATERING PROVISIONS,11/10/2023,11235491819,5,MARKS&SPENCER PLC
OXFORDSHIRE CC,ENVIRONMENT AND ECONOMY,MUSEUMS COLLECTIONS,MATERIALS,11/10/2023,11235491963,179.99,EBAY O 25-10633-11588
OXFORDSHIRE CC,CHILDREN'S & EDUCATION,THAME E&A HOME,CATERING PROVISIONS,11/10/2023,11235490851,3.85,TESCO STORES 2008
OXFORDSHIRE CC,"CHILDRENS, YOUNG PEOPLE AND FAMILIES","	LOOKED AFTER CITY 2",OTHER TRANSPORT ARRANGEMENTS,11/10/2023,11235490887,2,OXFORD BUS COMPANY
OXFORDSHIRE CC,CHILDREN'S & EDUCATION,"	LEAVING CARE NORTH",PAYMENTS TO TRANSPORT OPERATORS,11/10/2023,11235491475,10.89,TRAINLINE
OXFORDSHIRE CC,SOCIAL AND COMMUNITY SERVICES,"	MTFC",MATERIALS,11/10/2023,11235491503,10,THE WORKS
OXFORDSHIRE CC,CHILDREN'S & EDUCATION,SWINDON,HIRED AND CONTRACTED SERVICES,10/10/2023,11230900403,19.99,AMZNMKTPLACE
OXFORDSHIRE CC,CHILDREN'S & EDUCATION,CHILDREN IN CARE NON-STAFFING - CENTRL 1,PAYMENT TO GOVERNMENT DEPARTMENTS,10/10/2023,11230900397,49.5,WWW.THEKEY.CO.UK
OXFORDSHIRE CC,CHILDREN'S & EDUCATION,NTS UASC AGENCY,MATERIALS,10/10/2023,11230900405,9.95,AMZNMKTPLACE
OXFORDSHIRE CC,SOCIAL AND COMMUNITY SERVICES,SCHOOLS FM CATERING AREA 4,CATERING PROVISIONS,10/10/2023,11230900391,99.7,TESCO STORES 2008
OXFORDSHIRE CC,CHILDREN'S & EDUCATION,CHILDREN IN CARE NON-STAFFING - CENTRL 1,PAYMENT TO GOVERNMENT DEPARTMENTS,10/10/2023,11230900399,121.76,TRAINLINE
OXFORDSHIRE CC,CHILDREN'S & EDUCATION,UASC POST 18,SUBSCRIPTIONS,10/10/2023,11230900695,24.99,BUZZ GYM
OXFORDSHIRE CC,"CHILDRENS, YOUNG PEOPLE AND FAMILIES","	LEAVING CARE SOUTH",OTHER EXPENSES,10/10/2023,11230900707,-20,AO RETAIL LIMITED
OXFORDSHIRE CC,ENVIRONMENT AND ECONOMY,"	MUSEUM DEV OFFICER",PAYMENTS TO TRANSPORT OPERATORS,10/10/2023,11230900703,61.33,TRAINLINE
OXFORDSHIRE CC,"CHILDRENS, YOUNG PEOPLE AND FAMILIES","	LOOKED AFTER CITY 2",OTHER TRANSPORT ARRANGEMENTS,10/10/2023,11230900637,2,OXFORD BUS COMPANY
OXFORDSHIRE CC,SOCIAL AND COMMUNITY SERVICES,CSS - OXFORD,DISABILITY AIDS AND EQUIPMENT,10/10/2023,11230900627,20.97,AMZNMKTPLACE
OXFORDSHIRE CC,CHILDREN'S & EDUCATION,PAUSE PROGRAMME,CATERING,10/10/2023,11230900477,5.2,KK CAPPUCCINO & BAGUET
OXFORDSHIRE CC,CHILDREN'S & EDUCATION,PAUSE PROGRAMME,CATERING PROVISIONS,10/10/2023,11230900481,47,B&M 236 - COWLEY
OXFORDSHIRE CC,CHILDREN'S & EDUCATION,"	LOOKED AFTER NORTH",VEHICLE FUEL,10/10/2023,11230900791,8.6,M6 TOLL
OXFORDSHIRE CC,CHILDREN'S & EDUCATION,"	LOOKED AFTER NORTH",VEHICLE FUEL,10/10/2023,11230900793,8.99,BOOTS THE
OXFORDSHIRE CC,SOCIAL AND COMMUNITY SERVICES,"	MTFC",CATERING PROVISIONS,10/10/2023,11230900801,16.15,MARKS&SPENCER PLC
OXFORDSHIRE CC,CHILDREN'S & EDUCATION,"	RESIDENTIAL STRATEGY",OTHER EXPENSES,10/10/2023,11230900771,8.99,AMZNMKTPLACE
OXFORDSHIRE CC,CHILDREN'S & EDUCATION,"	RESIDENTIAL STRATEGY",OTHER EXPENSES,10/10/2023,11230900779,84.95,AMZNMKTPLACE
OXFORDSHIRE CC,CHILDREN'S & EDUCATION,PAUSE PROGRAMME,MATERIALS,10/10/2023,11230900479,1.5,POUNDLAND LTD - 2035
OXFORDSHIRE CC,CORPORATE CORE,SCHOOLS FM CATERING AREA 2,CATERING PROVISIONS,10/10/2023,11230900787,18,SAINSBURYS S/MKTS
OXFORDSHIRE CC,CHILDREN'S & EDUCATION,"	LOOKED AFTER NORTH",VEHICLE FUEL,10/10/2023,11230900795,15.04,ESSO STAFFORD MWSA
OXFORDSHIRE CC,SOCIAL AND COMMUNITY SERVICES,"	MTFC",CATERING,10/10/2023,11230900803,8.95,COSTA COFFEE 43011441
OXFORDSHIRE CC,CHILDREN'S & EDUCATION,"	RESIDENTIAL STRATEGY",OTHER EXPENSES,10/10/2023,11230900773,8.99,AMZNMKTPLACE
OXFORDSHIRE CC,CHILDREN'S & EDUCATION,"	RESIDENTIAL STRATEGY",OTHER EXPENSES,10/10/2023,11230900781,48.45,AMZNMKTPLACE
OXFORDSHIRE CC,CHILDREN'S & EDUCATION,"	LOOKED AFTER NORTH",VEHICLE FUEL,10/10/2023,11230900789,8.6,M6 TOLL
OXFORDSHIRE CC,CHILDREN'S & EDUCATION,CHILDREN IN CARE NON-STAFFING - SOUTH,PAYMENT TO GOVERNMENT DEPARTMENTS,10/10/2023,11230900797,11.3,HOBBYCRAFT
OXFORDSHIRE CC,"CHILDRENS, YOUNG PEOPLE AND FAMILIES",FAMILY SOLUTIONS PLUS NON-STAFF - NORTH,PAYMENTS TO TRANSPORT OPERATORS,10/10/2023,11230900805,47.37,TRAINLINE
OXFORDSHIRE CC,CHILDREN'S & EDUCATION,"	RESIDENTIAL STRATEGY",OTHER EXPENSES,10/10/2023,11230900775,9.5,AMZNMKTPLACE
OXFORDSHIRE CC,CHILDREN'S & EDUCATION,"	RESIDENTIAL STRATEGY",OTHER EXPENSES,10/10/2023,11230900783,10,AMZNMKTPLACE
OXFORDSHIRE CC,CHILDREN'S & EDUCATION,"	RESIDENTIAL STRATEGY",OTHER EXPENSES,10/10/2023,11230900769,7.99,AMZNMKTPLACE
OXFORDSHIRE CC,CHILDREN'S & EDUCATION,"	RESIDENTIAL STRATEGY",OTHER EXPENSES,10/10/2023,11230900777,9.48,AMZNMKTPLACE
OXFORDSHIRE CC,CHILDREN'S & EDUCATION,"	RESIDENTIAL STRATEGY",OTHER EXPENSES,10/10/2023,11230900785,10,AMZNMKTPLACE
OXFORDSHIRE CC,CORPORATE CORE,,STATIONERY,10/10/2023,11230900743,134.21,LYRECO UK LTD
OXFORDSHIRE CC,CORPORATE CORE,,STATIONERY,10/10/2023,11230900749,36.84,LYRECO UK LTD
OXFORDSHIRE CC,CORPORATE CORE,,STATIONERY,10/10/2023,11230900751,198.72,LYRECO UK LTD
OXFORDSHIRE CC,CHILDREN'S & EDUCATION,NTS UASC AGENCY,MATERIALS,10/10/2023,11230900413,45.95,AMZNMKTPLACE
OXFORDSHIRE CC,"CHILDRENS, YOUNG PEOPLE AND FAMILIES","	LEAVING CARE CITY 1",OTHER TRANSPORT ARRANGEMENTS,10/10/2023,11230900421,8.6,M6 TOLL
OXFORDSHIRE CC,CHILDREN'S & EDUCATION,NTS UASC AGENCY,MATERIALS,10/10/2023,11230900407,9.99,AMZNMKTPLACE
OXFORDSHIRE CC,CHILDREN'S & EDUCATION,NTS UASC AGENCY,MATERIALS,10/10/2023,11230900415,7.31,AMZNMKTPLACE
OXFORDSHIRE CC,CORPORATE CORE,"MARKETING, COMMUNICATIONS & ENGAGEMENT",OTHER EXPENSES,10/10/2023,11230900823,20,HIGH STREET VOUCHERS
OXFORDSHIRE CC,CHILDREN'S & EDUCATION,NTS UASC AGENCY,MATERIALS,10/10/2023,11230900409,9.95,AMZNMKTPLACE
OXFORDSHIRE CC,ENVIRONMENT AND ECONOMY,"	HWAYS NETWORK MGT",EQUIPMENT,10/10/2023,11230900417,306,SP HUDSONS-UK
OXFORDSHIRE CC,CORPORATE CORE,"MARKETING, COMMUNICATIONS & ENGAGEMENT",OTHER EXPENSES,10/10/2023,11230900817,20,HIGH STREET VOUCHERS
OXFORDSHIRE CC,CORPORATE CORE,"MARKETING, COMMUNICATIONS & ENGAGEMENT",OTHER EXPENSES,10/10/2023,11230900825,20,HIGH STREET VOUCHERS
OXFORDSHIRE CC,CORPORATE CORE,SCHOOLS FM CATERING AREA 4,MATERIALS,10/10/2023,11230900543,16.99,AMZNMKTPLACE
OXFORDSHIRE CC,CORPORATE CORE,"MARKETING, COMMUNICATIONS & ENGAGEMENT",OTHER EXPENSES,10/10/2023,11230900857,10,HIGH STREET VOUCHERS
OXFORDSHIRE CC,CHILDREN'S & EDUCATION,NTS UASC AGENCY,MATERIALS,10/10/2023,11230900411,9.99,AMZNMKTPLACE
OXFORDSHIRE CC,"CHILDRENS, YOUNG PEOPLE AND FAMILIES","	LEAVING CARE CITY 1",CATERING,10/10/2023,11230900419,7.65,COSTA COFFEE BLACKPOOL
OXFORDSHIRE CC,CORPORATE CORE,LIBRARY COLLECTIONS,"BOOKS, DVDS AND CDS",10/10/2023,11230900493,310.25,OVERDRIVE DIST
OXFORDSHIRE CC,SOCIAL AND COMMUNITY SERVICES,FLEET OPERATIONS,OTHER TRAINING COURSES AND QUALIFICATION,10/10/2023,11230900501,210,SQ  OXFORDSHIRE FIRST
OXFORDSHIRE CC,CORPORATE CORE,"MARKETING, COMMUNICATIONS & ENGAGEMENT",OTHER EXPENSES,10/10/2023,11230900819,20,HIGH STREET VOUCHERS
OXFORDSHIRE CC,CORPORATE CORE,"MARKETING, COMMUNICATIONS & ENGAGEMENT",OTHER EXPENSES,10/10/2023,11230900827,20,HIGH STREET VOUCHERS
OXFORDSHIRE CC,CHILDREN'S & EDUCATION,"	LEAVING CARE SOUTH",OTHER TRANSPORT ARRANGEMENTS,10/10/2023,11230900545,2.6,CFILLECHI-SLATE QUAY C
OXFORDSHIRE CC,CORPORATE CORE,"MARKETING, COMMUNICATIONS & ENGAGEMENT",OTHER EXPENSES,10/10/2023,11230900859,10,HIGH STREET VOUCHERS
OXFORDSHIRE CC,"CHILDRENS, YOUNG PEOPLE AND FAMILIES",FSP STAFFING � NORTH,CATERING PROVISIONS,10/10/2023,11230900503,6.35,TESCO STORES 4377
OXFORDSHIRE CC,CORPORATE CORE,"MARKETING, COMMUNICATIONS & ENGAGEMENT",OTHER EXPENSES,10/10/2023,11230900853,10,HIGH STREET VOUCHERS
OXFORDSHIRE CC,CORPORATE CORE,"MARKETING, COMMUNICATIONS & ENGAGEMENT",OTHER EXPENSES,10/10/2023,11230900861,10,HIGH STREET VOUCHERS
OXFORDSHIRE CC,CORPORATE CORE,,STATIONERY,10/10/2023,11230900739,161.52,LYRECO UK LTD
OXFORDSHIRE CC,CORPORATE CORE,"MARKETING, COMMUNICATIONS & ENGAGEMENT",OTHER EXPENSES,10/10/2023,11230900821,20,HIGH STREET VOUCHERS
OXFORDSHIRE CC,CORPORATE CORE,"MARKETING, COMMUNICATIONS & ENGAGEMENT",OTHER EXPENSES,10/10/2023,11230900829,20,HIGH STREET VOUCHERS
OXFORDSHIRE CC,CHILDREN'S & EDUCATION,THAME E&A HOME,CATERING,10/10/2023,11230900433,200.48,TESCO STORES 2038
OXFORDSHIRE CC,CORPORATE CORE,"MARKETING, COMMUNICATIONS & ENGAGEMENT",OTHER EXPENSES,10/10/2023,11230900833,20,HIGH STREET VOUCHERS
OXFORDSHIRE CC,CORPORATE CORE,"MARKETING, COMMUNICATIONS & ENGAGEMENT",OTHER EXPENSES,10/10/2023,11230900841,20,HIGH STREET VOUCHERS
OXFORDSHIRE CC,CORPORATE CORE,"MARKETING, COMMUNICATIONS & ENGAGEMENT",OTHER EXPENSES,10/10/2023,11230900849,10,HIGH STREET VOUCHERS
OXFORDSHIRE CC,CORPORATE CORE,"MARKETING, COMMUNICATIONS & ENGAGEMENT",OTHER EXPENSES,10/10/2023,11230900855,10,HIGH STREET VOUCHERS
OXFORDSHIRE CC,CORPORATE CORE,"MARKETING, COMMUNICATIONS & ENGAGEMENT",OTHER EXPENSES,10/10/2023,11230900835,20,HIGH STREET VOUCHERS
OXFORDSHIRE CC,CORPORATE CORE,"MARKETING, COMMUNICATIONS & ENGAGEMENT",OTHER EXPENSES,10/10/2023,11230900843,10,HIGH STREET VOUCHERS
OXFORDSHIRE CC,CORPORATE CORE,"MARKETING, COMMUNICATIONS & ENGAGEMENT",IT SOFTWARE,10/10/2023,11230900863,143.09,GRAMMARLY CONV055UG
OXFORDSHIRE CC,CORPORATE CORE,"MARKETING, COMMUNICATIONS & ENGAGEMENT","PUBLICITY, PROMOTIONS AND ADVERTISEMENT",10/10/2023,11230900865,76.32,SNAP INC SNAP SNAP ADS
OXFORDSHIRE CC,CORPORATE CORE,,STATIONERY,10/10/2023,11230900759,1.73,LYRECO UK LTD
OXFORDSHIRE CC,CHILDREN'S & EDUCATION,"	RESIDENTIAL STRATEGY",OTHER EXPENSES,10/10/2023,11230900767,19.9,AMZNMKTPLACE
OXFORDSHIRE CC,CHILDREN'S & EDUCATION,"	LOOKED AFTER NORTH",VEHICLE FUEL,10/10/2023,11230900487,36.52,ESSO ERMONT WAY SSTN
OXFORDSHIRE CC,CORPORATE CORE,"MARKETING, COMMUNICATIONS & ENGAGEMENT",OTHER EXPENSES,10/10/2023,11230900837,20,HIGH STREET VOUCHERS
OXFORDSHIRE CC,CORPORATE CORE,,STATIONERY,10/10/2023,11230900753,23.53,LYRECO UK LTD
OXFORDSHIRE CC,CORPORATE CORE,,STATIONERY,10/10/2023,11230900761,-38.62,LYRECO UK LTD
OXFORDSHIRE CC,CORPORATE CORE,,STATIONERY,10/10/2023,11230900745,100.37,LYRECO UK LTD
OXFORDSHIRE CC,CORPORATE CORE,"MARKETING, COMMUNICATIONS & ENGAGEMENT",OTHER EXPENSES,10/10/2023,11230900845,10,HIGH STREET VOUCHERS
OXFORDSHIRE CC,CORPORATE CORE,,STATIONERY,10/10/2023,11230900755,167.33,LYRECO UK LTD
OXFORDSHIRE CC,CORPORATE CORE,LIBRARY COLLECTIONS,"BOOKS, DVDS AND CDS",10/10/2023,11230900491,"4,083.15",OVERDRIVE DIST
OXFORDSHIRE CC,CORPORATE CORE,,STATIONERY,10/10/2023,11230900747,38.62,LYRECO UK LTD
OXFORDSHIRE CC,"CHILDRENS, YOUNG PEOPLE AND FAMILIES",DIDCOT MOVE-ON HOME,CATERING PROVISIONS,10/10/2023,11230900439,118.66,TESCO STORES 2919
OXFORDSHIRE CC,CORPORATE CORE,"MARKETING, COMMUNICATIONS & ENGAGEMENT",OTHER EXPENSES,10/10/2023,11230900831,20,HIGH STREET VOUCHERS
OXFORDSHIRE CC,CORPORATE CORE,"MARKETING, COMMUNICATIONS & ENGAGEMENT",OTHER EXPENSES,10/10/2023,11230900839,20,HIGH STREET VOUCHERS
OXFORDSHIRE CC,CORPORATE CORE,"MARKETING, COMMUNICATIONS & ENGAGEMENT",OTHER EXPENSES,10/10/2023,11230900847,10,HIGH STREET VOUCHERS
OXFORDSHIRE CC,CORPORATE CORE,,STATIONERY,10/10/2023,11230900757,259.75,LYRECO UK LTD
OXFORDSHIRE CC,CHILDREN'S & EDUCATION,"	RESIDENTIAL STRATEGY",OTHER EXPENSES,10/10/2023,11230900765,18.98,AMZNMKTPLACE
OXFORDSHIRE CC,CORPORATE CORE,,STATIONERY,10/10/2023,11230900741,87.97,LYRECO UK LTD
OXFORDSHIRE CC,ENVIRONMENT AND ECONOMY,HARD FM,PREMISES REPAIRS,10/10/2023,11230900369,21.07,WILLIAMS & CO
OXFORDSHIRE CC,ENVIRONMENT AND ECONOMY,"	COUNTY PRINT FINSHRS",MATERIALS,10/10/2023,11230900377,25.64,AMZNMKTPLACE
OXFORDSHIRE CC,ENVIRONMENT AND ECONOMY,HARD FM,PREMISES REPAIRS,10/10/2023,11230900373,61.18,WILLIAMS & CO
OXFORDSHIRE CC,ENVIRONMENT AND ECONOMY,HARD FM,PREMISES REPAIRS,10/10/2023,11230900371,29.99,CRM EXPRESS OXFORD
OXFORDSHIRE CC,SOCIAL AND COMMUNITY SERVICES,CSS BICESTER,CATERING PROVISIONS,10/10/2023,11230900379,113.05,TESCO STORES 2162
OXFORDSHIRE CC,ENVIRONMENT AND ECONOMY,"	ROW MAINT",EQUIPMENT,10/10/2023,11230900583,503.11,OXON FASTENING SYSTEMS
OXFORDSHIRE CC,ENVIRONMENT AND ECONOMY,"	COUNTRYSIDE PREMISES",OTHER PREMISES RELATED COSTS,10/10/2023,11230900585,30.67,AMZNMKTPLACE
OXFORDSHIRE CC,ENVIRONMENT AND ECONOMY,"	ROW MAINT",EQUIPMENT,10/10/2023,11230900581,72,SQ  FALCON SIGNS
OXFORDSHIRE CC,CHILDREN'S & EDUCATION,40 THE MOORS,MATERIALS,10/10/2023,11230900883,27.5,SAINSBURYS S/MKTS
OXFORDSHIRE CC,"CHILDRENS, YOUNG PEOPLE AND FAMILIES",VIRT SCHOOL HEAD ROLE EXTENSION GRANT,EDUCATIONAL AND VOCATIONAL TRAINING ,10/10/2023,11230900553,10,EB  EMBEDDING RESTORAT
